{"text_format":"1","workbook":"xlsx","n_sheets":4,"sheets":["Employee Details","Profession","CodeID","CODE"],"not_rendered":{"charts":0,"images":0,"macros":1,"external_links":0,"defined_names":0,"comments":1,"pivot_tables":0},"unopened":[],"bounds":{"document_bytes":16777216,"sheet_cells":100000,"rows_first":2000,"rows_last":500,"rows_between":2000,"halvings":0,"cell_chars":16384,"cell_head_chars":4096},"cells_cut":0,"cells_raw":0,"read":"whole","date_system":"1900"}

{"sheet":"Employee Details","index":0,"n_rows":987,"n_cols":82,"rows_kept":987,"cut":false,"hidden":false,"merged":[]}
["Language\nΓλώσσα","TaxpayerType","Organisation Type\nΤύπος Οργανισμού","TaxpayerStatus","Segment","Commencement Date\nΗμερομηνία Εγγραφής","Site","Is Resident For Tax?\nΕίναι φορολογικός κάτοικος Κύπρου;","Tax Resident Country\nΧώρα Φορολογικής Κατοικίας","AccountantOrTaxAgent","MailToTaxpayer","PrimaryBusinessNature","SecondaryBusinessNature","Title","Salutation","First Name\nΌνομα","MiddleName","Surname\nΕπίθετο","Date Of Birth\nΗμ. Γέννησης","Gender\nΦύλο","Salutation2","Entity","Trade","BusinessStartDate","Bank","NameOfAccountHolder","SwiftorBIC","IBAN","AddressType","Street Name\nΟδός","Street Number\nΑριθμός","Flat Number Or Building Name\nΑρ. Διαμερίσματος ή Όνομα Κτιρίου","Area\nΠεριοχή","District\nΠόλη","Postal Code\nΤαχυδρομικός κώδικας","PrimaryAddress","AddressType2","Country2","POBox","StreetAndNo","TownOrCity","StateOrRegion","PostCode","PrimaryAddress2","Phone Type\nΕίδος Τηλεφώνου","Country Code\nΚωδικός Χώρας","AreaCode","Number\nΑριθμός Τηλεφώνου","Extension","PrimaryPhone","EmailType","Email","PrimaryEmail","Identification Type Social Insurance","Social Insurance Number\nΑριθμός Κοινωνικών Ασφαλίσεων","Country3","DateOfIssue","DateOfExpiry","Identification Type\nΤύπος Ταυτοποίησης","Intentifier\nΑριθμός Εγγράφου","Country\nΧώρα","DateOfIssue1","DateOfExpiry1","Profession/Occupation\nΕπάγγελμα","Community\nΚοινότητα","Citizenship\nΥπηκοότητα","DesignationOfSignatory","IRD classification","TaxTypeCode","CommencementDate2","ReturnFrequency","BalanceMonth","RefundThreshold","AccountantOrTaxAgent2","TaxHolidayStartDate","TaxHolidayEndDate","Bank2","NameOfAccountant","SWIFTorBIC2","IBAN2","QuestionCode2","Answer2"]
[null,{"$f":"IF(OR($A2=\"English\",$A2=\"Ελληνικά\"),\"Individual\",\"\")","v":""},null,{"$f":"IF(OR($A2=\"English\",$A2=\"Ελληνικά\"),\"Standard\",\"\")","v":""},{"$f":"IF(OR($A2=\"English\",$A2=\"Ελληνικά\"),\"Small/Medium Enterprise\",\"\")","v":""},null,{"$f":"IF(A2=\"\",\"\",IF(AH2=\"Ammochostos\",\"Famagusta\",IF(AH2=\"Larnaka\",\"Larnaca\",IF(AH2=\"Lemesos\",\"Limassol\",IF(AH2=\"Nicosia\",\"Nicosia\",IF(AH2=\"Pafos\",\"Paphos\",\"Central Offices\"))))))","v":""},null,null,null,{"$f":"IF(OR($A2=\"English\",$A2=\"Ελληνικά\"),\"Yes\",\"\")","v":""},null,null,{"$f":"IF($T2=\"Male\", \"Mr\", IF($T2=\"Female\", \"Mrs\", \"\"))","v":""},null,null,null,null,null,null,null,null,null,null,null,null,null,null,{"$f":"IF(OR($A2=\"English\",$A2=\"Ελληνικά\"),\"Residence\",\"\")","v":""},null,null,null,null,null,null,{"$f":"IF(OR($A2=\"English\",$A2=\"Ελληνικά\"),\"Yes\",\"\")","v":""},null,null,null,null,null,null,null,null,null,null,null,null,null,{"$f":"IF(OR($A2=\"English\",$A2=\"Ελληνικά\"),\"Yes\",\"\")","v":""},{"$f":"IF(OR($A2=\"English\",$A2=\"Ελληνικά\"),\"Primary\",\"\")","v":""},null,{"$f":"IF(OR($A2=\"English\",$A2=\"Ελληνικά\"),\"Yes\",\"\")","v":""},{"$f":"IF(OR($A2=\"English\",$A2=\"Ελληνικά\"),\"Social Insurance\",\"\")","v":""},null,{"$f":"IF(OR($A2=\"English\",$A2=\"Ελληνικά\"),\"Cyprus\",\"\")","v":""},null,null,null,null,null,null,null,null,null,null,{"$f":"IF(OR($A2=\"English\",$A2=\"Ελληνικά\"),\"Applicant / Taxpayer\",\"\")","v":""},{"$f":"IF(OR($A2=\"English\",$A2=\"Ελληνικά\"),\"INDIVIDUAL WITHOUT RETURN SUBMISSION OBLIGATION\",\"\")","v":""}]
[null,"",null,"","",null,"",null,null,null,"",null,null,"",null,null,null,null,null,null,null,null,null,null,null,null,null,null,"",null,null,null,null,null,null,"",null,null,null,null,null,null,null,null,null,null,null,null,null,"","",null,"","",null,"",null,null,null,null,null,null,null,null,null,null,"",""]
[null,"",null,"","",null,"",null,null,null,"",null,null,"",null,null,null,null,null,null,null,null,null,null,null,null,null,null,"",null,null,null,null,null,null,"",null,null,null,null,null,null,null,null,null,null,null,null,null,"","",null,"","",null,"",null,null,null,null,null,null,null,null,null,null,"",""]
[null,"",null,"","",null,"",null,null,null,"",null,null,"",null,null,null,null,null,null,null,null,null,null,null,null,null,null,"",null,null,null,null,null,null,"",null,null,null,null,null,null,null,null,null,null,null,null,null,"","",null,"","",null,"",null,null,null,null,null,null,null,null,null,null,"",""]
[null,"",null,"","",null,"",null,null,null,"",null,null,"",null,null,null,null,null,null,null,null,null,null,null,null,null,null,"",null,null,null,null,null,null,"",null,null,null,null,null,null,null,null,null,null,null,null,null,"","",null,"","",null,"",null,null,null,null,null,null,null,null,null,null,"",""]
[null,"",null,"","",null,"",null,null,null,"",null,null,"",null,null,null,null,null,null,null,null,null,null,null,null,null,null,"",null,null,null,null,null,null,"",null,null,null,null,null,null,null,null,null,null,null,null,null,"","",null,"","",null,"",null,null,null,null,null,null,null,null,null,null,"",""]
[null,"",null,"","",null,"",null,null,null,"",null,null,"",null,null,null,null,null,null,null,null,null,null,null,null,null,null,"",null,null,null,null,null,null,"",null,null,null,null,null,null,null,null,null,null,null,null,null,"","",null,"","",null,"",null,null,null,null,null,null,null,null,null,null,"",""]
[null,"",null,"","",null,"",null,null,null,"",null,null,"",null,null,null,null,null,null,null,null,null,null,null,null,null,null,"",null,null,null,null,null,null,"",null,null,null,null,null,null,null,null,null,null,null,null,null,"","",null,"","",null,"",null,null,null,null,null,null,null,null,null,null,"",""]
[null,"",null,"","",null,"",null,null,null,"",null,null,"",null,null,null,null,null,null,null,null,null,null,null,null,null,null,"",null,null,null,null,null,null,"",null,null,null,null,null,null,null,null,null,null,null,null,null,"","",null,"","",null,"",null,null,null,null,null,null,null,null,null,null,"",""]
[null,"",null,"","",null,"",null,null,null,"",null,null,"",null,null,null,null,null,null,null,null,null,null,null,null,null,null,"",null,null,null,null,null,null,"",null,null,null,null,null,null,null,null,null,null,null,null,null,"","",null,"","",null,"",null,null,null,null,null,null,null,null,null,null,"",""]
[null,"",null,"","",null,"",null,null,null,"",null,null,"",null,null,null,null,null,null,null,null,null,null,null,null,null,null,"",null,null,null,null,null,null,"",null,null,null,null,null,null,null,null,null,null,null,null,null,"","",null,"","",null,"",null,null,null,null,null,null,null,null,null,null,"",""]
[null,"",null,"","",null,"",null,null,null,"",null,null,"",null,null,null,null,null,null,null,null,null,null,null,null,null,null,"",null,null,null,null,null,null,"",null,null,null,null,null,null,null,null,null,null,null,null,null,"","",null,"","",null,"",null,null,null,null,null,null,null,null,null,null,"",""]
[null,"",null,"","",null,"",null,null,null,"",null,null,"",null,null,null,null,null,null,null,null,null,null,null,null,null,null,"",null,null,null,null,null,null,"",null,null,null,null,null,null,null,null,null,null,null,null,null,"","",null,"","",null,"",null,null,null,null,null,null,null,null,null,null,"",""]
[null,"",null,"","",null,"",null,null,null,"",null,null,"",null,null,null,null,null,null,null,null,null,null,null,null,null,null,"",null,null,null,null,null,null,"",null,null,null,null,null,null,null,null,null,null,null,null,null,"","",null,"","",null,"",null,null,null,null,null,null,null,null,null,null,"",""]
[null,"",null,"","",null,"",null,null,null,"",null,null,"",null,null,null,null,null,null,null,null,null,null,null,null,null,null,"",null,null,null,null,null,null,"",null,null,null,null,null,null,null,null,null,null,null,null,null,"","",null,"","",null,"",null,null,null,null,null,null,null,null,null,null,"",""]
[null,"",null,"","",null,"",null,null,null,"",null,null,"",null,null,null,null,null,null,null,null,null,null,null,null,null,null,"",null,null,null,null,null,null,"",null,null,null,null,null,null,null,null,null,null,null,null,null,"","",null,"","",null,"",null,null,null,null,null,null,null,null,null,null,"",""]
[null,"",null,"","",null,"",null,null,null,"",null,null,"",null,null,null,null,null,null,null,null,null,null,null,null,null,null,"",null,null,null,null,null,null,"",null,null,null,null,null,null,null,null,null,null,null,null,null,"","",null,"","",null,"",null,null,null,null,null,null,null,null,null,null,"",""]
[null,"",null,"","",null,"",null,null,null,"",null,null,"",null,null,null,null,null,null,null,null,null,null,null,null,null,null,"",null,null,null,null,null,null,"",null,null,null,null,null,null,null,null,null,null,null,null,null,"","",null,"","",null,"",null,null,null,null,null,null,null,null,null,null,"",""]
[null,"",null,"","",null,"",null,null,null,"",null,null,"",null,null,null,null,null,null,null,null,null,null,null,null,null,null,"",null,null,null,null,null,null,"",null,null,null,null,null,null,null,null,null,null,null,null,null,"","",null,"","",null,"",null,null,null,null,null,null,null,null,null,null,"",""]
[null,"",null,"","",null,"",null,null,null,"",null,null,"",null,null,null,null,null,null,null,null,null,null,null,null,null,null,"",null,null,null,null,null,null,"",null,null,null,null,null,null,null,null,null,null,null,null,null,"","",null,"","",null,"",null,null,null,null,null,null,null,null,null,null,"",""]
[null,"",null,"","",null,"",null,null,null,"",null,null,"",null,null,null,null,null,null,null,null,null,null,null,null,null,null,"",null,null,null,null,null,null,"",null,null,null,null,null,null,null,null,null,null,null,null,null,"","",null,"","",null,"",null,null,null,null,null,null,null,null,null,null,"",""]
[null,"",null,"","",null,"",null,null,null,"",null,null,"",null,null,null,null,null,null,null,null,null,null,null,null,null,null,"",null,null,null,null,null,null,"",null,null,null,null,null,null,null,null,null,null,null,null,null,"","",null,"","",null,"",null,null,null,null,null,null,null,null,null,null,"",""]
[null,"",null,"","",null,"",null,null,null,"",null,null,"",null,null,null,null,null,null,null,null,null,null,null,null,null,null,"",null,null,null,null,null,null,"",null,null,null,null,null,null,null,null,null,null,null,null,null,"","",null,"","",null,"",null,null,null,null,null,null,null,null,null,null,"",""]
[null,"",null,"","",null,"",null,null,null,"",null,null,"",null,null,null,null,null,null,null,null,null,null,null,null,null,null,"",null,null,null,null,null,null,"",null,null,null,null,null,null,null,null,null,null,null,null,null,"","",null,"","",null,"",null,null,null,null,null,null,null,null,null,null,"",""]
[null,"",null,"","",null,"",null,null,null,"",null,null,"",null,null,null,null,null,null,null,null,null,null,null,null,null,null,"",null,null,null,null,null,null,"",null,null,null,null,null,null,null,null,null,null,null,null,null,"","",null,"","",null,"",null,null,null,null,null,null,null,null,null,null,"",""]
[null,"",null,"","",null,"",null,null,null,"",null,null,"",null,null,null,null,null,null,null,null,null,null,null,null,null,null,"",null,null,null,null,null,null,"",null,null,null,null,null,null,null,null,null,null,null,null,null,"","",null,"","",null,"",null,null,null,null,null,null,null,null,null,null,"",""]
[null,"",null,"","",null,"",null,null,null,"",null,null,"",null,null,null,null,null,null,null,null,null,null,null,null,null,null,"",null,null,null,null,null,null,"",null,null,null,null,null,null,null,null,null,null,null,null,null,"","",null,"","",null,"",null,null,null,null,null,null,null,null,null,null,"",""]
[null,"",null,"","",null,"",null,null,null,"",null,null,"",null,null,null,null,null,null,null,null,null,null,null,null,null,null,"",null,null,null,null,null,null,"",null,null,null,null,null,null,null,null,null,null,null,null,null,"","",null,"","",null,"",null,null,null,null,null,null,null,null,null,null,"",""]
[null,"",null,"","",null,"",null,null,null,"",null,null,"",null,null,null,null,null,null,null,null,null,null,null,null,null,null,"",null,null,null,null,null,null,"",null,null,null,null,null,null,null,null,null,null,null,null,null,"","",null,"","",null,"",null,null,null,null,null,null,null,null,null,null,"",""]
[null,"",null,"","",null,"",null,null,null,"",null,null,"",null,null,null,null,null,null,null,null,null,null,null,null,null,null,"",null,null,null,null,null,null,"",null,null,null,null,null,null,null,null,null,null,null,null,null,"","",null,"","",null,"",null,null,null,null,null,null,null,null,null,null,"",""]
[null,"",null,"","",null,"",null,null,null,"",null,null,"",null,null,null,null,null,null,null,null,null,null,null,null,null,null,"",null,null,null,null,null,null,"",null,null,null,null,null,null,null,null,null,null,null,null,null,"","",null,"","",null,"",null,null,null,null,null,null,null,null,null,null,"",""]
[null,"",null,"","",null,"",null,null,null,"",null,null,"",null,null,null,null,null,null,null,null,null,null,null,null,null,null,"",null,null,null,null,null,null,"",null,null,null,null,null,null,null,null,null,null,null,null,null,"","",null,"","",null,"",null,null,null,null,null,null,null,null,null,null,"",""]
[null,"",null,"","",null,"",null,null,null,"",null,null,"",null,null,null,null,null,null,null,null,null,null,null,null,null,null,"",null,null,null,null,null,null,"",null,null,null,null,null,null,null,null,null,null,null,null,null,"","",null,"","",null,"",null,null,null,null,null,null,null,null,null,null,"",""]
[null,"",null,"","",null,"",null,null,null,"",null,null,"",null,null,null,null,null,null,null,null,null,null,null,null,null,null,"",null,null,null,null,null,null,"",null,null,null,null,null,null,null,null,null,null,null,null,null,"","",null,"","",null,"",null,null,null,null,null,null,null,null,null,null,"",""]
[null,"",null,"","",null,"",null,null,null,"",null,null,"",null,null,null,null,null,null,null,null,null,null,null,null,null,null,"",null,null,null,null,null,null,"",null,null,null,null,null,null,null,null,null,null,null,null,null,"","",null,"","",null,"",null,null,null,null,null,null,null,null,null,null,"",""]
[null,"",null,"","",null,"",null,null,null,"",null,null,"",null,null,null,null,null,null,null,null,null,null,null,null,null,null,"",null,null,null,null,null,null,"",null,null,null,null,null,null,null,null,null,null,null,null,null,"","",null,"","",null,"",null,null,null,null,null,null,null,null,null,null,"",""]
[null,"",null,"","",null,"",null,null,null,"",null,null,"",null,null,null,null,null,null,null,null,null,null,null,null,null,null,"",null,null,null,null,null,null,"",null,null,null,null,null,null,null,null,null,null,null,null,null,"","",null,"","",null,"",null,null,null,null,null,null,null,null,null,null,"",""]
[null,"",null,"","",null,"",null,null,null,"",null,null,"",null,null,null,null,null,null,null,null,null,null,null,null,null,null,"",null,null,null,null,null,null,"",null,null,null,null,null,null,null,null,null,null,null,null,null,"","",null,"","",null,"",null,null,null,null,null,null,null,null,null,null,"",""]
[null,"",null,"","",null,"",null,null,null,"",null,null,"",null,null,null,null,null,null,null,null,null,null,null,null,null,null,"",null,null,null,null,null,null,"",null,null,null,null,null,null,null,null,null,null,null,null,null,"","",null,"","",null,"",null,null,null,null,null,null,null,null,null,null,"",""]
[null,"",null,"","",null,"",null,null,null,"",null,null,"",null,null,null,null,null,null,null,null,null,null,null,null,null,null,"",null,null,null,null,null,null,"",null,null,null,null,null,null,null,null,null,null,null,null,null,"","",null,"","",null,"",null,null,null,null,null,null,null,null,null,null,"",""]
[null,"",null,"","",null,"",null,null,null,"",null,null,"",null,null,null,null,null,null,null,null,null,null,null,null,null,null,"",null,null,null,null,null,null,"",null,null,null,null,null,null,null,null,null,null,null,null,null,"","",null,"","",null,"",null,null,null,null,null,null,null,null,null,null,"",""]
[null,"",null,"","",null,"",null,null,null,"",null,null,"",null,null,null,null,null,null,null,null,null,null,null,null,null,null,"",null,null,null,null,null,null,"",null,null,null,null,null,null,null,null,null,null,null,null,null,"","",null,"","",null,"",null,null,null,null,null,null,null,null,null,null,"",""]
[null,"",null,"","",null,"",null,null,null,"",null,null,"",null,null,null,null,null,null,null,null,null,null,null,null,null,null,"",null,null,null,null,null,null,"",null,null,null,null,null,null,null,null,null,null,null,null,null,"","",null,"","",null,"",null,null,null,null,null,null,null,null,null,null,"",""]
[null,"",null,"","",null,"",null,null,null,"",null,null,"",null,null,null,null,null,null,null,null,null,null,null,null,null,null,"",null,null,null,null,null,null,"",null,null,null,null,null,null,null,null,null,null,null,null,null,"","",null,"","",null,"",null,null,null,null,null,null,null,null,null,null,"",""]
[null,"",null,"","",null,"",null,null,null,"",null,null,"",null,null,null,null,null,null,null,null,null,null,null,null,null,null,"",null,null,null,null,null,null,"",null,null,null,null,null,null,null,null,null,null,null,null,null,"","",null,"","",null,"",null,null,null,null,null,null,null,null,null,null,"",""]
[null,"",null,"","",null,"",null,null,null,"",null,null,"",null,null,null,null,null,null,null,null,null,null,null,null,null,null,"",null,null,null,null,null,null,"",null,null,null,null,null,null,null,null,null,null,null,null,null,"","",null,"","",null,"",null,null,null,null,null,null,null,null,null,null,"",""]
[null,"",null,"","",null,"",null,null,null,"",null,null,"",null,null,null,null,null,null,null,null,null,null,null,null,null,null,"",null,null,null,null,null,null,"",null,null,null,null,null,null,null,null,null,null,null,null,null,"","",null,"","",null,"",null,null,null,null,null,null,null,null,null,null,"",""]
[null,"",null,"","",null,"",null,null,null,"",null,null,"",null,null,null,null,null,null,null,null,null,null,null,null,null,null,"",null,null,null,null,null,null,"",null,null,null,null,null,null,null,null,null,null,null,null,null,"","",null,"","",null,"",null,null,null,null,null,null,null,null,null,null,"",""]
[null,"",null,"","",null,"",null,null,null,"",null,null,"",null,null,null,null,null,null,null,null,null,null,null,null,null,null,"",null,null,null,null,null,null,"",null,null,null,null,null,null,null,null,null,null,null,null,null,"","",null,"","",null,"",null,null,null,null,null,null,null,null,null,null,"",""]
[null,"",null,"","",null,"",null,null,null,"",null,null,"",null,null,null,null,null,null,null,null,null,null,null,null,null,null,"",null,null,null,null,null,null,"",null,null,null,null,null,null,null,null,null,null,null,null,null,"","",null,"","",null,"",null,null,null,null,null,null,null,null,null,null,"",""]
[null,{"$f":"IF(OR($A52=\"English\",$A52=\"Ελληνικά\"),\"Individual\",\"\")","v":""},null,{"$f":"IF(OR($A52=\"English\",$A52=\"Ελληνικά\"),\"Standard\",\"\")","v":""},{"$f":"IF(OR($A52=\"English\",$A52=\"Ελληνικά\"),\"Small/Medium Enterprise\",\"\")","v":""},null,"",null,null,null,"",null,null,"",null,null,null,null,null,null,null,null,null,null,null,null,null,null,"",null,null,null,null,null,null,"",null,null,null,null,null,null,null,null,null,null,null,null,null,"","",null,"","",null,"",null,null,null,null,null,null,null,null,null,null,"",""]
[null,"",null,"","",null,{"$f":"IF(A53=\"\",\"\",IF(AH53=\"Ammochostos\",\"Famagusta\",IF(AH53=\"Larnaka\",\"Larnaca\",IF(AH53=\"Lemesos\",\"Limassol\",IF(AH53=\"Nicosia\",\"Nicosia\",IF(AH53=\"Pafos\",\"Paphos\",\"Central Offices\"))))))","v":""},null,null,null,"",null,null,"",null,null,null,null,null,null,null,null,null,null,null,null,null,null,{"$f":"IF(OR($A53=\"English\",$A53=\"Ελληνικά\"),\"Residence\",\"\")","v":""},null,null,null,null,null,null,{"$f":"IF(OR($A53=\"English\",$A53=\"Ελληνικά\"),\"Yes\",\"\")","v":""},null,null,null,null,null,null,null,null,null,null,null,null,null,{"$f":"IF(OR($A53=\"English\",$A53=\"Ελληνικά\"),\"Yes\",\"\")","v":""},{"$f":"IF(OR($A53=\"English\",$A53=\"Ελληνικά\"),\"Primary\",\"\")","v":""},null,{"$f":"IF(OR($A53=\"English\",$A53=\"Ελληνικά\"),\"Yes\",\"\")","v":""},"",null,"",null,null,null,null,null,null,null,null,null,null,"",{"$f":"IF(OR($A53=\"English\",$A53=\"Ελληνικά\"),\"INDIVIDUAL WITHOUT RETURN SUBMISSION OBLIGATION\",\"\")","v":""}]
[null,"",null,"","",null,"",null,null,null,{"$f":"IF(OR($A54=\"English\",$A54=\"Ελληνικά\"),\"Yes\",\"\")","v":""},null,null,{"$f":"IF($T54=\"Male\", \"Mr\", IF($T54=\"Female\", \"Mrs\", \"\"))","v":""},null,null,null,null,null,null,null,null,null,null,null,null,null,null,"",null,null,null,null,null,null,"",null,null,null,null,null,null,null,null,null,null,null,null,null,"","",null,"",{"$f":"IF(OR($A54=\"English\",$A54=\"Ελληνικά\"),\"Social Insurance\",\"\")","v":""},null,{"$f":"IF(OR($A54=\"English\",$A54=\"Ελληνικά\"),\"Cyprus\",\"\")","v":""},null,null,null,null,null,null,null,null,null,null,{"$f":"IF(OR($A54=\"English\",$A54=\"Ελληνικά\"),\"Applicant / Taxpayer\",\"\")","v":""},""]
[null,"",null,"","",null,"",null,null,null,"",null,null,"",null,null,null,null,null,null,null,null,null,null,null,null,null,null,"",null,null,null,null,null,null,"",null,null,null,null,null,null,null,null,null,null,null,null,null,"","",null,"","",null,"",null,null,null,null,null,null,null,null,null,null,"",""]
[null,"",null,"","",null,"",null,null,null,"",null,null,"",null,null,null,null,null,null,null,null,null,null,null,null,null,null,"",null,null,null,null,null,null,"",null,null,null,null,null,null,null,null,null,null,null,null,null,"","",null,"","",null,"",null,null,null,null,null,null,null,null,null,null,"",""]
[null,"",null,"","",null,"",null,null,null,"",null,null,"",null,null,null,null,null,null,null,null,null,null,null,null,null,null,"",null,null,null,null,null,null,"",null,null,null,null,null,null,null,null,null,null,null,null,null,"","",null,"","",null,"",null,null,null,null,null,null,null,null,null,null,"",""]
[null,"",null,"","",null,"",null,null,null,"",null,null,"",null,null,null,null,null,null,null,null,null,null,null,null,null,null,"",null,null,null,null,null,null,"",null,null,null,null,null,null,null,null,null,null,null,null,null,"","",null,"","",null,"",null,null,null,null,null,null,null,null,null,null,"",""]
[null,"",null,"","",null,"",null,null,null,"",null,null,"",null,null,null,null,null,null,null,null,null,null,null,null,null,null,"",null,null,null,null,null,null,"",null,null,null,null,null,null,null,null,null,null,null,null,null,"","",null,"","",null,"",null,null,null,null,null,null,null,null,null,null,"",""]
[null,"",null,"","",null,"",null,null,null,"",null,null,"",null,null,null,null,null,null,null,null,null,null,null,null,null,null,"",null,null,null,null,null,null,"",null,null,null,null,null,null,null,null,null,null,null,null,null,"","",null,"","",null,"",null,null,null,null,null,null,null,null,null,null,"",""]
[null,"",null,"","",null,"",null,null,null,"",null,null,"",null,null,null,null,null,null,null,null,null,null,null,null,null,null,"",null,null,null,null,null,null,"",null,null,null,null,null,null,null,null,null,null,null,null,null,"","",null,"","",null,"",null,null,null,null,null,null,null,null,null,null,"",""]
[null,"",null,"","",null,"",null,null,null,"",null,null,"",null,null,null,null,null,null,null,null,null,null,null,null,null,null,"",null,null,null,null,null,null,"",null,null,null,null,null,null,null,null,null,null,null,null,null,"","",null,"","",null,"",null,null,null,null,null,null,null,null,null,null,"",""]
[null,"",null,"","",null,"",null,null,null,"",null,null,"",null,null,null,null,null,null,null,null,null,null,null,null,null,null,"",null,null,null,null,null,null,"",null,null,null,null,null,null,null,null,null,null,null,null,null,"","",null,"","",null,"",null,null,null,null,null,null,null,null,null,null,"",""]
[null,"",null,"","",null,"",null,null,null,"",null,null,"",null,null,null,null,null,null,null,null,null,null,null,null,null,null,"",null,null,null,null,null,null,"",null,null,null,null,null,null,null,null,null,null,null,null,null,"","",null,"","",null,"",null,null,null,null,null,null,null,null,null,null,"",""]
[null,"",null,"","",null,"",null,null,null,"",null,null,"",null,null,null,null,null,null,null,null,null,null,null,null,null,null,"",null,null,null,null,null,null,"",null,null,null,null,null,null,null,null,null,null,null,null,null,"","",null,"","",null,"",null,null,null,null,null,null,null,null,null,null,"",""]
[null,"",null,"","",null,"",null,null,null,"",null,null,"",null,null,null,null,null,null,null,null,null,null,null,null,null,null,"",null,null,null,null,null,null,"",null,null,null,null,null,null,null,null,null,null,null,null,null,"","",null,"","",null,"",null,null,null,null,null,null,null,null,null,null,"",""]
[null,"",null,"","",null,"",null,null,null,"",null,null,"",null,null,null,null,null,null,null,null,null,null,null,null,null,null,"",null,null,null,null,null,null,"",null,null,null,null,null,null,null,null,null,null,null,null,null,"","",null,"","",null,"",null,null,null,null,null,null,null,null,null,null,"",""]
[null,"",null,"","",null,"",null,null,null,"",null,null,"",null,null,null,null,null,null,null,null,null,null,null,null,null,null,"",null,null,null,null,null,null,"",null,null,null,null,null,null,null,null,null,null,null,null,null,"","",null,"","",null,"",null,null,null,null,null,null,null,null,null,null,"",""]
[null,"",null,"","",null,"",null,null,null,"",null,null,"",null,null,null,null,null,null,null,null,null,null,null,null,null,null,"",null,null,null,null,null,null,"",null,null,null,null,null,null,null,null,null,null,null,null,null,"","",null,"","",null,"",null,null,null,null,null,null,null,null,null,null,"",""]
[null,"",null,"","",null,"",null,null,null,"",null,null,"",null,null,null,null,null,null,null,null,null,null,null,null,null,null,"",null,null,null,null,null,null,"",null,null,null,null,null,null,null,null,null,null,null,null,null,"","",null,"","",null,"",null,null,null,null,null,null,null,null,null,null,"",""]
[null,"",null,"","",null,"",null,null,null,"",null,null,"",null,null,null,null,null,null,null,null,null,null,null,null,null,null,"",null,null,null,null,null,null,"",null,null,null,null,null,null,null,null,null,null,null,null,null,"","",null,"","",null,"",null,null,null,null,null,null,null,null,null,null,"",""]
[null,"",null,"","",null,"",null,null,null,"",null,null,"",null,null,null,null,null,null,null,null,null,null,null,null,null,null,"",null,null,null,null,null,null,"",null,null,null,null,null,null,null,null,null,null,null,null,null,"","",null,"","",null,"",null,null,null,null,null,null,null,null,null,null,"",""]
[null,"",null,"","",null,"",null,null,null,"",null,null,"",null,null,null,null,null,null,null,null,null,null,null,null,null,null,"",null,null,null,null,null,null,"",null,null,null,null,null,null,null,null,null,null,null,null,null,"","",null,"","",null,"",null,null,null,null,null,null,null,null,null,null,"",""]
[null,"",null,"","",null,"",null,null,null,"",null,null,"",null,null,null,null,null,null,null,null,null,null,null,null,null,null,"",null,null,null,null,null,null,"",null,null,null,null,null,null,null,null,null,null,null,null,null,"","",null,"","",null,"",null,null,null,null,null,null,null,null,null,null,"",""]
[null,"",null,"","",null,"",null,null,null,"",null,null,"",null,null,null,null,null,null,null,null,null,null,null,null,null,null,"",null,null,null,null,null,null,"",null,null,null,null,null,null,null,null,null,null,null,null,null,"","",null,"","",null,"",null,null,null,null,null,null,null,null,null,null,"",""]
[null,"",null,"","",null,"",null,null,null,"",null,null,"",null,null,null,null,null,null,null,null,null,null,null,null,null,null,"",null,null,null,null,null,null,"",null,null,null,null,null,null,null,null,null,null,null,null,null,"","",null,"","",null,"",null,null,null,null,null,null,null,null,null,null,"",""]
[null,"",null,"","",null,"",null,null,null,"",null,null,"",null,null,null,null,null,null,null,null,null,null,null,null,null,null,"",null,null,null,null,null,null,"",null,null,null,null,null,null,null,null,null,null,null,null,null,"","",null,"","",null,"",null,null,null,null,null,null,null,null,null,null,"",""]
[null,"",null,"","",null,"",null,null,null,"",null,null,"",null,null,null,null,null,null,null,null,null,null,null,null,null,null,"",null,null,null,null,null,null,"",null,null,null,null,null,null,null,null,null,null,null,null,null,"","",null,"","",null,"",null,null,null,null,null,null,null,null,null,null,"",""]
[null,"",null,"","",null,"",null,null,null,"",null,null,"",null,null,null,null,null,null,null,null,null,null,null,null,null,null,"",null,null,null,null,null,null,"",null,null,null,null,null,null,null,null,null,null,null,null,null,"","",null,"","",null,"",null,null,null,null,null,null,null,null,null,null,"",""]
[null,"",null,"","",null,"",null,null,null,"",null,null,"",null,null,null,null,null,null,null,null,null,null,null,null,null,null,"",null,null,null,null,null,null,"",null,null,null,null,null,null,null,null,null,null,null,null,null,"","",null,"","",null,"",null,null,null,null,null,null,null,null,null,null,"",""]
[null,"",null,"","",null,"",null,null,null,"",null,null,"",null,null,null,null,null,null,null,null,null,null,null,null,null,null,"",null,null,null,null,null,null,"",null,null,null,null,null,null,null,null,null,null,null,null,null,"","",null,"","",null,"",null,null,null,null,null,null,null,null,null,null,"",""]
[null,"",null,"","",null,"",null,null,null,"",null,null,"",null,null,null,null,null,null,null,null,null,null,null,null,null,null,"",null,null,null,null,null,null,"",null,null,null,null,null,null,null,null,null,null,null,null,null,"","",null,"","",null,"",null,null,null,null,null,null,null,null,null,null,"",""]
[null,"",null,"","",null,"",null,null,null,"",null,null,"",null,null,null,null,null,null,null,null,null,null,null,null,null,null,"",null,null,null,null,null,null,"",null,null,null,null,null,null,null,null,null,null,null,null,null,"","",null,"","",null,"",null,null,null,null,null,null,null,null,null,null,"",""]
[null,"",null,"","",null,"",null,null,null,"",null,null,"",null,null,null,null,null,null,null,null,null,null,null,null,null,null,"",null,null,null,null,null,null,"",null,null,null,null,null,null,null,null,null,null,null,null,null,"","",null,"","",null,"",null,null,null,null,null,null,null,null,null,null,"",""]
[null,"",null,"","",null,"",null,null,null,"",null,null,"",null,null,null,null,null,null,null,null,null,null,null,null,null,null,"",null,null,null,null,null,null,"",null,null,null,null,null,null,null,null,null,null,null,null,null,"","",null,"","",null,"",null,null,null,null,null,null,null,null,null,null,"",""]
[null,"",null,"","",null,"",null,null,null,"",null,null,"",null,null,null,null,null,null,null,null,null,null,null,null,null,null,"",null,null,null,null,null,null,"",null,null,null,null,null,null,null,null,null,null,null,null,null,"","",null,"","",null,"",null,null,null,null,null,null,null,null,null,null,"",""]
[null,"",null,"","",null,"",null,null,null,"",null,null,"",null,null,null,null,null,null,null,null,null,null,null,null,null,null,"",null,null,null,null,null,null,"",null,null,null,null,null,null,null,null,null,null,null,null,null,"","",null,"","",null,"",null,null,null,null,null,null,null,null,null,null,"",""]
[null,"",null,"","",null,"",null,null,null,"",null,null,"",null,null,null,null,null,null,null,null,null,null,null,null,null,null,"",null,null,null,null,null,null,"",null,null,null,null,null,null,null,null,null,null,null,null,null,"","",null,"","",null,"",null,null,null,null,null,null,null,null,null,null,"",""]
[null,"",null,"","",null,"",null,null,null,"",null,null,"",null,null,null,null,null,null,null,null,null,null,null,null,null,null,"",null,null,null,null,null,null,"",null,null,null,null,null,null,null,null,null,null,null,null,null,"","",null,"","",null,"",null,null,null,null,null,null,null,null,null,null,"",""]
[null,"",null,"","",null,"",null,null,null,"",null,null,"",null,null,null,null,null,null,null,null,null,null,null,null,null,null,"",null,null,null,null,null,null,"",null,null,null,null,null,null,null,null,null,null,null,null,null,"","",null,"","",null,"",null,null,null,null,null,null,null,null,null,null,"",""]
[null,"",null,"","",null,"",null,null,null,"",null,null,"",null,null,null,null,null,null,null,null,null,null,null,null,null,null,"",null,null,null,null,null,null,"",null,null,null,null,null,null,null,null,null,null,null,null,null,"","",null,"","",null,"",null,null,null,null,null,null,null,null,null,null,"",""]
[null,"",null,"","",null,"",null,null,null,"",null,null,"",null,null,null,null,null,null,null,null,null,null,null,null,null,null,"",null,null,null,null,null,null,"",null,null,null,null,null,null,null,null,null,null,null,null,null,"","",null,"","",null,"",null,null,null,null,null,null,null,null,null,null,"",""]
[null,"",null,"","",null,"",null,null,null,"",null,null,"",null,null,null,null,null,null,null,null,null,null,null,null,null,null,"",null,null,null,null,null,null,"",null,null,null,null,null,null,null,null,null,null,null,null,null,"","",null,"","",null,"",null,null,null,null,null,null,null,null,null,null,"",""]
[null,"",null,"","",null,"",null,null,null,"",null,null,"",null,null,null,null,null,null,null,null,null,null,null,null,null,null,"",null,null,null,null,null,null,"",null,null,null,null,null,null,null,null,null,null,null,null,null,"","",null,"","",null,"",null,null,null,null,null,null,null,null,null,null,"",""]
[null,"",null,"","",null,"",null,null,null,"",null,null,"",null,null,null,null,null,null,null,null,null,null,null,null,null,null,"",null,null,null,null,null,null,"",null,null,null,null,null,null,null,null,null,null,null,null,null,"","",null,"","",null,"",null,null,null,null,null,null,null,null,null,null,"",""]
[null,"",null,"","",null,"",null,null,null,"",null,null,"",null,null,null,null,null,null,null,null,null,null,null,null,null,null,"",null,null,null,null,null,null,"",null,null,null,null,null,null,null,null,null,null,null,null,null,"","",null,"","",null,"",null,null,null,null,null,null,null,null,null,null,"",""]
[null,"",null,"","",null,"",null,null,null,"",null,null,"",null,null,null,null,null,null,null,null,null,null,null,null,null,null,"",null,null,null,null,null,null,"",null,null,null,null,null,null,null,null,null,null,null,null,null,"","",null,"","",null,"",null,null,null,null,null,null,null,null,null,null,"",""]
[null,"",null,"","",null,"",null,null,null,"",null,null,"",null,null,null,null,null,null,null,null,null,null,null,null,null,null,"",null,null,null,null,null,null,"",null,null,null,null,null,null,null,null,null,null,null,null,null,"","",null,"","",null,"",null,null,null,null,null,null,null,null,null,null,"",""]
[null,"",null,"","",null,"",null,null,null,"",null,null,"",null,null,null,null,null,null,null,null,null,null,null,null,null,null,"",null,null,null,null,null,null,"",null,null,null,null,null,null,null,null,null,null,null,null,null,"","",null,"","",null,"",null,null,null,null,null,null,null,null,null,null,"",""]
[null,"",null,"","",null,"",null,null,null,"",null,null,"",null,null,null,null,null,null,null,null,null,null,null,null,null,null,"",null,null,null,null,null,null,"",null,null,null,null,null,null,null,null,null,null,null,null,null,"","",null,"","",null,"",null,null,null,null,null,null,null,null,null,null,"",""]
[null,"",null,"","",null,"",null,null,null,"",null,null,"",null,null,null,null,null,null,null,null,null,null,null,null,null,null,"",null,null,null,null,null,null,"",null,null,null,null,null,null,null,null,null,null,null,null,null,"","",null,"","",null,"",null,null,null,null,null,null,null,null,null,null,"",""]
[null,"",null,"","",null,"",null,null,null,"",null,null,"",null,null,null,null,null,null,null,null,null,null,null,null,null,null,"",null,null,null,null,null,null,"",null,null,null,null,null,null,null,null,null,null,null,null,null,"","",null,"","",null,"",null,null,null,null,null,null,null,null,null,null,"",""]
[null,"",null,"","",null,"",null,null,null,"",null,null,"",null,null,null,null,null,null,null,null,null,null,null,null,null,null,"",null,null,null,null,null,null,"",null,null,null,null,null,null,null,null,null,null,null,null,null,"","",null,"","",null,"",null,null,null,null,null,null,null,null,null,null,"",""]
[null,"",null,"","",null,"",null,null,null,"",null,null,"",null,null,null,null,null,null,null,null,null,null,null,null,null,null,"",null,null,null,null,null,null,"",null,null,null,null,null,null,null,null,null,null,null,null,null,"","",null,"","",null,"",null,null,null,null,null,null,null,null,null,null,"",""]
[null,"",null,"","",null,"",null,null,null,"",null,null,"",null,null,null,null,null,null,null,null,null,null,null,null,null,null,"",null,null,null,null,null,null,"",null,null,null,null,null,null,null,null,null,null,null,null,null,"","",null,"","",null,"",null,null,null,null,null,null,null,null,null,null,"",""]
[null,"",null,"","",null,"",null,null,null,"",null,null,"",null,null,null,null,null,null,null,null,null,null,null,null,null,null,"",null,null,null,null,null,null,"",null,null,null,null,null,null,null,null,null,null,null,null,null,"","",null,"","",null,"",null,null,null,null,null,null,null,null,null,null,"",""]
[null,"",null,"","",null,"",null,null,null,"",null,null,"",null,null,null,null,null,null,null,null,null,null,null,null,null,null,"",null,null,null,null,null,null,"",null,null,null,null,null,null,null,null,null,null,null,null,null,"","",null,"","",null,"",null,null,null,null,null,null,null,null,null,null,"",""]
[null,"",null,"","",null,"",null,null,null,"",null,null,"",null,null,null,null,null,null,null,null,null,null,null,null,null,null,"",null,null,null,null,null,null,"",null,null,null,null,null,null,null,null,null,null,null,null,null,"","",null,"","",null,"",null,null,null,null,null,null,null,null,null,null,"",""]
[null,"",null,"","",null,"",null,null,null,"",null,null,"",null,null,null,null,null,null,null,null,null,null,null,null,null,null,"",null,null,null,null,null,null,"",null,null,null,null,null,null,null,null,null,null,null,null,null,"","",null,"","",null,"",null,null,null,null,null,null,null,null,null,null,"",""]
[null,"",null,"","",null,"",null,null,null,"",null,null,"",null,null,null,null,null,null,null,null,null,null,null,null,null,null,"",null,null,null,null,null,null,"",null,null,null,null,null,null,null,null,null,null,null,null,null,"","",null,"","",null,"",null,null,null,null,null,null,null,null,null,null,"",""]
[null,"",null,"","",null,"",null,null,null,"",null,null,"",null,null,null,null,null,null,null,null,null,null,null,null,null,null,"",null,null,null,null,null,null,"",null,null,null,null,null,null,null,null,null,null,null,null,null,"","",null,"","",null,"",null,null,null,null,null,null,null,null,null,null,"",""]
[null,"",null,"","",null,"",null,null,null,"",null,null,"",null,null,null,null,null,null,null,null,null,null,null,null,null,null,"",null,null,null,null,null,null,"",null,null,null,null,null,null,null,null,null,null,null,null,null,"","",null,"","",null,"",null,null,null,null,null,null,null,null,null,null,"",""]
[null,"",null,"","",null,"",null,null,null,"",null,null,"",null,null,null,null,null,null,null,null,null,null,null,null,null,null,"",null,null,null,null,null,null,"",null,null,null,null,null,null,null,null,null,null,null,null,null,"","",null,"","",null,"",null,null,null,null,null,null,null,null,null,null,"",""]
[null,"",null,"","",null,"",null,null,null,"",null,null,"",null,null,null,null,null,null,null,null,null,null,null,null,null,null,"",null,null,null,null,null,null,"",null,null,null,null,null,null,null,null,null,null,null,null,null,"","",null,"","",null,"",null,null,null,null,null,null,null,null,null,null,"",""]
[null,"",null,"","",null,"",null,null,null,"",null,null,"",null,null,null,null,null,null,null,null,null,null,null,null,null,null,"",null,null,null,null,null,null,"",null,null,null,null,null,null,null,null,null,null,null,null,null,"","",null,"","",null,"",null,null,null,null,null,null,null,null,null,null,"",""]
[null,{"$f":"IF(OR($A116=\"English\",$A116=\"Ελληνικά\"),\"Individual\",\"\")","v":""},null,{"$f":"IF(OR($A116=\"English\",$A116=\"Ελληνικά\"),\"Standard\",\"\")","v":""},{"$f":"IF(OR($A116=\"English\",$A116=\"Ελληνικά\"),\"Small/Medium Enterprise\",\"\")","v":""},null,"",null,null,null,"",null,null,"",null,null,null,null,null,null,null,null,null,null,null,null,null,null,"",null,null,null,null,null,null,"",null,null,null,null,null,null,null,null,null,null,null,null,null,"","",null,"","",null,"",null,null,null,null,null,null,null,null,null,null,"",""]
[null,"",null,"","",null,{"$f":"IF(A117=\"\",\"\",IF(AH117=\"Ammochostos\",\"Famagusta\",IF(AH117=\"Larnaka\",\"Larnaca\",IF(AH117=\"Lemesos\",\"Limassol\",IF(AH117=\"Nicosia\",\"Nicosia\",IF(AH117=\"Pafos\",\"Paphos\",\"Central Offices\"))))))","v":""},null,null,null,"",null,null,"",null,null,null,null,null,null,null,null,null,null,null,null,null,null,{"$f":"IF(OR($A117=\"English\",$A117=\"Ελληνικά\"),\"Residence\",\"\")","v":""},null,null,null,null,null,null,{"$f":"IF(OR($A117=\"English\",$A117=\"Ελληνικά\"),\"Yes\",\"\")","v":""},null,null,null,null,null,null,null,null,null,null,null,null,null,{"$f":"IF(OR($A117=\"English\",$A117=\"Ελληνικά\"),\"Yes\",\"\")","v":""},{"$f":"IF(OR($A117=\"English\",$A117=\"Ελληνικά\"),\"Primary\",\"\")","v":""},null,{"$f":"IF(OR($A117=\"English\",$A117=\"Ελληνικά\"),\"Yes\",\"\")","v":""},"",null,"",null,null,null,null,null,null,null,null,null,null,"",{"$f":"IF(OR($A117=\"English\",$A117=\"Ελληνικά\"),\"INDIVIDUAL WITHOUT RETURN SUBMISSION OBLIGATION\",\"\")","v":""}]
[null,"",null,"","",null,"",null,null,null,{"$f":"IF(OR($A118=\"English\",$A118=\"Ελληνικά\"),\"Yes\",\"\")","v":""},null,null,{"$f":"IF($T118=\"Male\", \"Mr\", IF($T118=\"Female\", \"Mrs\", \"\"))","v":""},null,null,null,null,null,null,null,null,null,null,null,null,null,null,"",null,null,null,null,null,null,"",null,null,null,null,null,null,null,null,null,null,null,null,null,"","",null,"",{"$f":"IF(OR($A118=\"English\",$A118=\"Ελληνικά\"),\"Social Insurance\",\"\")","v":""},null,{"$f":"IF(OR($A118=\"English\",$A118=\"Ελληνικά\"),\"Cyprus\",\"\")","v":""},null,null,null,null,null,null,null,null,null,null,{"$f":"IF(OR($A118=\"English\",$A118=\"Ελληνικά\"),\"Applicant / Taxpayer\",\"\")","v":""},""]
[null,"",null,"","",null,"",null,null,null,"",null,null,"",null,null,null,null,null,null,null,null,null,null,null,null,null,null,"",null,null,null,null,null,null,"",null,null,null,null,null,null,null,null,null,null,null,null,null,"","",null,"","",null,"",null,null,null,null,null,null,null,null,null,null,"",""]
[null,"",null,"","",null,"",null,null,null,"",null,null,"",null,null,null,null,null,null,null,null,null,null,null,null,null,null,"",null,null,null,null,null,null,"",null,null,null,null,null,null,null,null,null,null,null,null,null,"","",null,"","",null,"",null,null,null,null,null,null,null,null,null,null,"",""]
[null,"",null,"","",null,"",null,null,null,"",null,null,"",null,null,null,null,null,null,null,null,null,null,null,null,null,null,"",null,null,null,null,null,null,"",null,null,null,null,null,null,null,null,null,null,null,null,null,"","",null,"","",null,"",null,null,null,null,null,null,null,null,null,null,"",""]
[null,"",null,"","",null,"",null,null,null,"",null,null,"",null,null,null,null,null,null,null,null,null,null,null,null,null,null,"",null,null,null,null,null,null,"",null,null,null,null,null,null,null,null,null,null,null,null,null,"","",null,"","",null,"",null,null,null,null,null,null,null,null,null,null,"",""]
[null,"",null,"","",null,"",null,null,null,"",null,null,"",null,null,null,null,null,null,null,null,null,null,null,null,null,null,"",null,null,null,null,null,null,"",null,null,null,null,null,null,null,null,null,null,null,null,null,"","",null,"","",null,"",null,null,null,null,null,null,null,null,null,null,"",""]
[null,"",null,"","",null,"",null,null,null,"",null,null,"",null,null,null,null,null,null,null,null,null,null,null,null,null,null,"",null,null,null,null,null,null,"",null,null,null,null,null,null,null,null,null,null,null,null,null,"","",null,"","",null,"",null,null,null,null,null,null,null,null,null,null,"",""]
[null,"",null,"","",null,"",null,null,null,"",null,null,"",null,null,null,null,null,null,null,null,null,null,null,null,null,null,"",null,null,null,null,null,null,"",null,null,null,null,null,null,null,null,null,null,null,null,null,"","",null,"","",null,"",null,null,null,null,null,null,null,null,null,null,"",""]
[null,"",null,"","",null,"",null,null,null,"",null,null,"",null,null,null,null,null,null,null,null,null,null,null,null,null,null,"",null,null,null,null,null,null,"",null,null,null,null,null,null,null,null,null,null,null,null,null,"","",null,"","",null,"",null,null,null,null,null,null,null,null,null,null,"",""]
[null,"",null,"","",null,"",null,null,null,"",null,null,"",null,null,null,null,null,null,null,null,null,null,null,null,null,null,"",null,null,null,null,null,null,"",null,null,null,null,null,null,null,null,null,null,null,null,null,"","",null,"","",null,"",null,null,null,null,null,null,null,null,null,null,"",""]
[null,"",null,"","",null,"",null,null,null,"",null,null,"",null,null,null,null,null,null,null,null,null,null,null,null,null,null,"",null,null,null,null,null,null,"",null,null,null,null,null,null,null,null,null,null,null,null,null,"","",null,"","",null,"",null,null,null,null,null,null,null,null,null,null,"",""]
[null,"",null,"","",null,"",null,null,null,"",null,null,"",null,null,null,null,null,null,null,null,null,null,null,null,null,null,"",null,null,null,null,null,null,"",null,null,null,null,null,null,null,null,null,null,null,null,null,"","",null,"","",null,"",null,null,null,null,null,null,null,null,null,null,"",""]
[null,"",null,"","",null,"",null,null,null,"",null,null,"",null,null,null,null,null,null,null,null,null,null,null,null,null,null,"",null,null,null,null,null,null,"",null,null,null,null,null,null,null,null,null,null,null,null,null,"","",null,"","",null,"",null,null,null,null,null,null,null,null,null,null,"",""]
[null,"",null,"","",null,"",null,null,null,"",null,null,"",null,null,null,null,null,null,null,null,null,null,null,null,null,null,"",null,null,null,null,null,null,"",null,null,null,null,null,null,null,null,null,null,null,null,null,"","",null,"","",null,"",null,null,null,null,null,null,null,null,null,null,"",""]
[null,"",null,"","",null,"",null,null,null,"",null,null,"",null,null,null,null,null,null,null,null,null,null,null,null,null,null,"",null,null,null,null,null,null,"",null,null,null,null,null,null,null,null,null,null,null,null,null,"","",null,"","",null,"",null,null,null,null,null,null,null,null,null,null,"",""]
[null,"",null,"","",null,"",null,null,null,"",null,null,"",null,null,null,null,null,null,null,null,null,null,null,null,null,null,"",null,null,null,null,null,null,"",null,null,null,null,null,null,null,null,null,null,null,null,null,"","",null,"","",null,"",null,null,null,null,null,null,null,null,null,null,"",""]
[null,"",null,"","",null,"",null,null,null,"",null,null,"",null,null,null,null,null,null,null,null,null,null,null,null,null,null,"",null,null,null,null,null,null,"",null,null,null,null,null,null,null,null,null,null,null,null,null,"","",null,"","",null,"",null,null,null,null,null,null,null,null,null,null,"",""]
[null,"",null,"","",null,"",null,null,null,"",null,null,"",null,null,null,null,null,null,null,null,null,null,null,null,null,null,"",null,null,null,null,null,null,"",null,null,null,null,null,null,null,null,null,null,null,null,null,"","",null,"","",null,"",null,null,null,null,null,null,null,null,null,null,"",""]
[null,"",null,"","",null,"",null,null,null,"",null,null,"",null,null,null,null,null,null,null,null,null,null,null,null,null,null,"",null,null,null,null,null,null,"",null,null,null,null,null,null,null,null,null,null,null,null,null,"","",null,"","",null,"",null,null,null,null,null,null,null,null,null,null,"",""]
[null,"",null,"","",null,"",null,null,null,"",null,null,"",null,null,null,null,null,null,null,null,null,null,null,null,null,null,"",null,null,null,null,null,null,"",null,null,null,null,null,null,null,null,null,null,null,null,null,"","",null,"","",null,"",null,null,null,null,null,null,null,null,null,null,"",""]
[null,"",null,"","",null,"",null,null,null,"",null,null,"",null,null,null,null,null,null,null,null,null,null,null,null,null,null,"",null,null,null,null,null,null,"",null,null,null,null,null,null,null,null,null,null,null,null,null,"","",null,"","",null,"",null,null,null,null,null,null,null,null,null,null,"",""]
[null,"",null,"","",null,"",null,null,null,"",null,null,"",null,null,null,null,null,null,null,null,null,null,null,null,null,null,"",null,null,null,null,null,null,"",null,null,null,null,null,null,null,null,null,null,null,null,null,"","",null,"","",null,"",null,null,null,null,null,null,null,null,null,null,"",""]
[null,"",null,"","",null,"",null,null,null,"",null,null,"",null,null,null,null,null,null,null,null,null,null,null,null,null,null,"",null,null,null,null,null,null,"",null,null,null,null,null,null,null,null,null,null,null,null,null,"","",null,"","",null,"",null,null,null,null,null,null,null,null,null,null,"",""]
[null,"",null,"","",null,"",null,null,null,"",null,null,"",null,null,null,null,null,null,null,null,null,null,null,null,null,null,"",null,null,null,null,null,null,"",null,null,null,null,null,null,null,null,null,null,null,null,null,"","",null,"","",null,"",null,null,null,null,null,null,null,null,null,null,"",""]
[null,"",null,"","",null,"",null,null,null,"",null,null,"",null,null,null,null,null,null,null,null,null,null,null,null,null,null,"",null,null,null,null,null,null,"",null,null,null,null,null,null,null,null,null,null,null,null,null,"","",null,"","",null,"",null,null,null,null,null,null,null,null,null,null,"",""]
[null,"",null,"","",null,"",null,null,null,"",null,null,"",null,null,null,null,null,null,null,null,null,null,null,null,null,null,"",null,null,null,null,null,null,"",null,null,null,null,null,null,null,null,null,null,null,null,null,"","",null,"","",null,"",null,null,null,null,null,null,null,null,null,null,"",""]
[null,"",null,"","",null,"",null,null,null,"",null,null,"",null,null,null,null,null,null,null,null,null,null,null,null,null,null,"",null,null,null,null,null,null,"",null,null,null,null,null,null,null,null,null,null,null,null,null,"","",null,"","",null,"",null,null,null,null,null,null,null,null,null,null,"",""]
[null,"",null,"","",null,"",null,null,null,"",null,null,"",null,null,null,null,null,null,null,null,null,null,null,null,null,null,"",null,null,null,null,null,null,"",null,null,null,null,null,null,null,null,null,null,null,null,null,"","",null,"","",null,"",null,null,null,null,null,null,null,null,null,null,"",""]
[null,"",null,"","",null,"",null,null,null,"",null,null,"",null,null,null,null,null,null,null,null,null,null,null,null,null,null,"",null,null,null,null,null,null,"",null,null,null,null,null,null,null,null,null,null,null,null,null,"","",null,"","",null,"",null,null,null,null,null,null,null,null,null,null,"",""]
[null,"",null,"","",null,"",null,null,null,"",null,null,"",null,null,null,null,null,null,null,null,null,null,null,null,null,null,"",null,null,null,null,null,null,"",null,null,null,null,null,null,null,null,null,null,null,null,null,"","",null,"","",null,"",null,null,null,null,null,null,null,null,null,null,"",""]
[null,"",null,"","",null,"",null,null,null,"",null,null,"",null,null,null,null,null,null,null,null,null,null,null,null,null,null,"",null,null,null,null,null,null,"",null,null,null,null,null,null,null,null,null,null,null,null,null,"","",null,"","",null,"",null,null,null,null,null,null,null,null,null,null,"",""]
[null,"",null,"","",null,"",null,null,null,"",null,null,"",null,null,null,null,null,null,null,null,null,null,null,null,null,null,"",null,null,null,null,null,null,"",null,null,null,null,null,null,null,null,null,null,null,null,null,"","",null,"","",null,"",null,null,null,null,null,null,null,null,null,null,"",""]
[null,"",null,"","",null,"",null,null,null,"",null,null,"",null,null,null,null,null,null,null,null,null,null,null,null,null,null,"",null,null,null,null,null,null,"",null,null,null,null,null,null,null,null,null,null,null,null,null,"","",null,"","",null,"",null,null,null,null,null,null,null,null,null,null,"",""]
[null,"",null,"","",null,"",null,null,null,"",null,null,"",null,null,null,null,null,null,null,null,null,null,null,null,null,null,"",null,null,null,null,null,null,"",null,null,null,null,null,null,null,null,null,null,null,null,null,"","",null,"","",null,"",null,null,null,null,null,null,null,null,null,null,"",""]
[null,"",null,"","",null,"",null,null,null,"",null,null,"",null,null,null,null,null,null,null,null,null,null,null,null,null,null,"",null,null,null,null,null,null,"",null,null,null,null,null,null,null,null,null,null,null,null,null,"","",null,"","",null,"",null,null,null,null,null,null,null,null,null,null,"",""]
[null,"",null,"","",null,"",null,null,null,"",null,null,"",null,null,null,null,null,null,null,null,null,null,null,null,null,null,"",null,null,null,null,null,null,"",null,null,null,null,null,null,null,null,null,null,null,null,null,"","",null,"","",null,"",null,null,null,null,null,null,null,null,null,null,"",""]
[null,"",null,"","",null,"",null,null,null,"",null,null,"",null,null,null,null,null,null,null,null,null,null,null,null,null,null,"",null,null,null,null,null,null,"",null,null,null,null,null,null,null,null,null,null,null,null,null,"","",null,"","",null,"",null,null,null,null,null,null,null,null,null,null,"",""]
[null,"",null,"","",null,"",null,null,null,"",null,null,"",null,null,null,null,null,null,null,null,null,null,null,null,null,null,"",null,null,null,null,null,null,"",null,null,null,null,null,null,null,null,null,null,null,null,null,"","",null,"","",null,"",null,null,null,null,null,null,null,null,null,null,"",""]
[null,"",null,"","",null,"",null,null,null,"",null,null,"",null,null,null,null,null,null,null,null,null,null,null,null,null,null,"",null,null,null,null,null,null,"",null,null,null,null,null,null,null,null,null,null,null,null,null,"","",null,"","",null,"",null,null,null,null,null,null,null,null,null,null,"",""]
[null,"",null,"","",null,"",null,null,null,"",null,null,"",null,null,null,null,null,null,null,null,null,null,null,null,null,null,"",null,null,null,null,null,null,"",null,null,null,null,null,null,null,null,null,null,null,null,null,"","",null,"","",null,"",null,null,null,null,null,null,null,null,null,null,"",""]
[null,"",null,"","",null,"",null,null,null,"",null,null,"",null,null,null,null,null,null,null,null,null,null,null,null,null,null,"",null,null,null,null,null,null,"",null,null,null,null,null,null,null,null,null,null,null,null,null,"","",null,"","",null,"",null,null,null,null,null,null,null,null,null,null,"",""]
[null,"",null,"","",null,"",null,null,null,"",null,null,"",null,null,null,null,null,null,null,null,null,null,null,null,null,null,"",null,null,null,null,null,null,"",null,null,null,null,null,null,null,null,null,null,null,null,null,"","",null,"","",null,"",null,null,null,null,null,null,null,null,null,null,"",""]
[null,"",null,"","",null,"",null,null,null,"",null,null,"",null,null,null,null,null,null,null,null,null,null,null,null,null,null,"",null,null,null,null,null,null,"",null,null,null,null,null,null,null,null,null,null,null,null,null,"","",null,"","",null,"",null,null,null,null,null,null,null,null,null,null,"",""]
[null,"",null,"","",null,"",null,null,null,"",null,null,"",null,null,null,null,null,null,null,null,null,null,null,null,null,null,"",null,null,null,null,null,null,"",null,null,null,null,null,null,null,null,null,null,null,null,null,"","",null,"","",null,"",null,null,null,null,null,null,null,null,null,null,"",""]
[null,"",null,"","",null,"",null,null,null,"",null,null,"",null,null,null,null,null,null,null,null,null,null,null,null,null,null,"",null,null,null,null,null,null,"",null,null,null,null,null,null,null,null,null,null,null,null,null,"","",null,"","",null,"",null,null,null,null,null,null,null,null,null,null,"",""]
[null,"",null,"","",null,"",null,null,null,"",null,null,"",null,null,null,null,null,null,null,null,null,null,null,null,null,null,"",null,null,null,null,null,null,"",null,null,null,null,null,null,null,null,null,null,null,null,null,"","",null,"","",null,"",null,null,null,null,null,null,null,null,null,null,"",""]
[null,"",null,"","",null,"",null,null,null,"",null,null,"",null,null,null,null,null,null,null,null,null,null,null,null,null,null,"",null,null,null,null,null,null,"",null,null,null,null,null,null,null,null,null,null,null,null,null,"","",null,"","",null,"",null,null,null,null,null,null,null,null,null,null,"",""]
[null,"",null,"","",null,"",null,null,null,"",null,null,"",null,null,null,null,null,null,null,null,null,null,null,null,null,null,"",null,null,null,null,null,null,"",null,null,null,null,null,null,null,null,null,null,null,null,null,"","",null,"","",null,"",null,null,null,null,null,null,null,null,null,null,"",""]
[null,"",null,"","",null,"",null,null,null,"",null,null,"",null,null,null,null,null,null,null,null,null,null,null,null,null,null,"",null,null,null,null,null,null,"",null,null,null,null,null,null,null,null,null,null,null,null,null,"","",null,"","",null,"",null,null,null,null,null,null,null,null,null,null,"",""]
[null,"",null,"","",null,"",null,null,null,"",null,null,"",null,null,null,null,null,null,null,null,null,null,null,null,null,null,"",null,null,null,null,null,null,"",null,null,null,null,null,null,null,null,null,null,null,null,null,"","",null,"","",null,"",null,null,null,null,null,null,null,null,null,null,"",""]
[null,"",null,"","",null,"",null,null,null,"",null,null,"",null,null,null,null,null,null,null,null,null,null,null,null,null,null,"",null,null,null,null,null,null,"",null,null,null,null,null,null,null,null,null,null,null,null,null,"","",null,"","",null,"",null,null,null,null,null,null,null,null,null,null,"",""]
[null,"",null,"","",null,"",null,null,null,"",null,null,"",null,null,null,null,null,null,null,null,null,null,null,null,null,null,"",null,null,null,null,null,null,"",null,null,null,null,null,null,null,null,null,null,null,null,null,"","",null,"","",null,"",null,null,null,null,null,null,null,null,null,null,"",""]
[null,"",null,"","",null,"",null,null,null,"",null,null,"",null,null,null,null,null,null,null,null,null,null,null,null,null,null,"",null,null,null,null,null,null,"",null,null,null,null,null,null,null,null,null,null,null,null,null,"","",null,"","",null,"",null,null,null,null,null,null,null,null,null,null,"",""]
[null,"",null,"","",null,"",null,null,null,"",null,null,"",null,null,null,null,null,null,null,null,null,null,null,null,null,null,"",null,null,null,null,null,null,"",null,null,null,null,null,null,null,null,null,null,null,null,null,"","",null,"","",null,"",null,null,null,null,null,null,null,null,null,null,"",""]
[null,"",null,"","",null,"",null,null,null,"",null,null,"",null,null,null,null,null,null,null,null,null,null,null,null,null,null,"",null,null,null,null,null,null,"",null,null,null,null,null,null,null,null,null,null,null,null,null,"","",null,"","",null,"",null,null,null,null,null,null,null,null,null,null,"",""]
[null,"",null,"","",null,"",null,null,null,"",null,null,"",null,null,null,null,null,null,null,null,null,null,null,null,null,null,"",null,null,null,null,null,null,"",null,null,null,null,null,null,null,null,null,null,null,null,null,"","",null,"","",null,"",null,null,null,null,null,null,null,null,null,null,"",""]
[null,"",null,"","",null,"",null,null,null,"",null,null,"",null,null,null,null,null,null,null,null,null,null,null,null,null,null,"",null,null,null,null,null,null,"",null,null,null,null,null,null,null,null,null,null,null,null,null,"","",null,"","",null,"",null,null,null,null,null,null,null,null,null,null,"",""]
[null,"",null,"","",null,"",null,null,null,"",null,null,"",null,null,null,null,null,null,null,null,null,null,null,null,null,null,"",null,null,null,null,null,null,"",null,null,null,null,null,null,null,null,null,null,null,null,null,"","",null,"","",null,"",null,null,null,null,null,null,null,null,null,null,"",""]
[null,"",null,"","",null,"",null,null,null,"",null,null,"",null,null,null,null,null,null,null,null,null,null,null,null,null,null,"",null,null,null,null,null,null,"",null,null,null,null,null,null,null,null,null,null,null,null,null,"","",null,"","",null,"",null,null,null,null,null,null,null,null,null,null,"",""]
[null,"",null,"","",null,"",null,null,null,"",null,null,"",null,null,null,null,null,null,null,null,null,null,null,null,null,null,"",null,null,null,null,null,null,"",null,null,null,null,null,null,null,null,null,null,null,null,null,"","",null,"","",null,"",null,null,null,null,null,null,null,null,null,null,"",""]
[null,"",null,"","",null,"",null,null,null,"",null,null,"",null,null,null,null,null,null,null,null,null,null,null,null,null,null,"",null,null,null,null,null,null,"",null,null,null,null,null,null,null,null,null,null,null,null,null,"","",null,"","",null,"",null,null,null,null,null,null,null,null,null,null,"",""]
[null,"",null,"","",null,"",null,null,null,"",null,null,"",null,null,null,null,null,null,null,null,null,null,null,null,null,null,"",null,null,null,null,null,null,"",null,null,null,null,null,null,null,null,null,null,null,null,null,"","",null,"","",null,"",null,null,null,null,null,null,null,null,null,null,"",""]
[null,{"$f":"IF(OR($A180=\"English\",$A180=\"Ελληνικά\"),\"Individual\",\"\")","v":""},null,{"$f":"IF(OR($A180=\"English\",$A180=\"Ελληνικά\"),\"Standard\",\"\")","v":""},{"$f":"IF(OR($A180=\"English\",$A180=\"Ελληνικά\"),\"Small/Medium Enterprise\",\"\")","v":""},null,"",null,null,null,"",null,null,"",null,null,null,null,null,null,null,null,null,null,null,null,null,null,"",null,null,null,null,null,null,"",null,null,null,null,null,null,null,null,null,null,null,null,null,"","",null,"","",null,"",null,null,null,null,null,null,null,null,null,null,"",""]
[null,"",null,"","",null,{"$f":"IF(A181=\"\",\"\",IF(AH181=\"Ammochostos\",\"Famagusta\",IF(AH181=\"Larnaka\",\"Larnaca\",IF(AH181=\"Lemesos\",\"Limassol\",IF(AH181=\"Nicosia\",\"Nicosia\",IF(AH181=\"Pafos\",\"Paphos\",\"Central Offices\"))))))","v":""},null,null,null,"",null,null,"",null,null,null,null,null,null,null,null,null,null,null,null,null,null,{"$f":"IF(OR($A181=\"English\",$A181=\"Ελληνικά\"),\"Residence\",\"\")","v":""},null,null,null,null,null,null,{"$f":"IF(OR($A181=\"English\",$A181=\"Ελληνικά\"),\"Yes\",\"\")","v":""},null,null,null,null,null,null,null,null,null,null,null,null,null,{"$f":"IF(OR($A181=\"English\",$A181=\"Ελληνικά\"),\"Yes\",\"\")","v":""},{"$f":"IF(OR($A181=\"English\",$A181=\"Ελληνικά\"),\"Primary\",\"\")","v":""},null,{"$f":"IF(OR($A181=\"English\",$A181=\"Ελληνικά\"),\"Yes\",\"\")","v":""},"",null,"",null,null,null,null,null,null,null,null,null,null,"",{"$f":"IF(OR($A181=\"English\",$A181=\"Ελληνικά\"),\"INDIVIDUAL WITHOUT RETURN SUBMISSION OBLIGATION\",\"\")","v":""}]
[null,"",null,"","",null,"",null,null,null,{"$f":"IF(OR($A182=\"English\",$A182=\"Ελληνικά\"),\"Yes\",\"\")","v":""},null,null,{"$f":"IF($T182=\"Male\", \"Mr\", IF($T182=\"Female\", \"Mrs\", \"\"))","v":""},null,null,null,null,null,null,null,null,null,null,null,null,null,null,"",null,null,null,null,null,null,"",null,null,null,null,null,null,null,null,null,null,null,null,null,"","",null,"",{"$f":"IF(OR($A182=\"English\",$A182=\"Ελληνικά\"),\"Social Insurance\",\"\")","v":""},null,{"$f":"IF(OR($A182=\"English\",$A182=\"Ελληνικά\"),\"Cyprus\",\"\")","v":""},null,null,null,null,null,null,null,null,null,null,{"$f":"IF(OR($A182=\"English\",$A182=\"Ελληνικά\"),\"Applicant / Taxpayer\",\"\")","v":""},""]
[null,"",null,"","",null,"",null,null,null,"",null,null,"",null,null,null,null,null,null,null,null,null,null,null,null,null,null,"",null,null,null,null,null,null,"",null,null,null,null,null,null,null,null,null,null,null,null,null,"","",null,"","",null,"",null,null,null,null,null,null,null,null,null,null,"",""]
[null,"",null,"","",null,"",null,null,null,"",null,null,"",null,null,null,null,null,null,null,null,null,null,null,null,null,null,"",null,null,null,null,null,null,"",null,null,null,null,null,null,null,null,null,null,null,null,null,"","",null,"","",null,"",null,null,null,null,null,null,null,null,null,null,"",""]
[null,"",null,"","",null,"",null,null,null,"",null,null,"",null,null,null,null,null,null,null,null,null,null,null,null,null,null,"",null,null,null,null,null,null,"",null,null,null,null,null,null,null,null,null,null,null,null,null,"","",null,"","",null,"",null,null,null,null,null,null,null,null,null,null,"",""]
[null,"",null,"","",null,"",null,null,null,"",null,null,"",null,null,null,null,null,null,null,null,null,null,null,null,null,null,"",null,null,null,null,null,null,"",null,null,null,null,null,null,null,null,null,null,null,null,null,"","",null,"","",null,"",null,null,null,null,null,null,null,null,null,null,"",""]
[null,"",null,"","",null,"",null,null,null,"",null,null,"",null,null,null,null,null,null,null,null,null,null,null,null,null,null,"",null,null,null,null,null,null,"",null,null,null,null,null,null,null,null,null,null,null,null,null,"","",null,"","",null,"",null,null,null,null,null,null,null,null,null,null,"",""]
[null,"",null,"","",null,"",null,null,null,"",null,null,"",null,null,null,null,null,null,null,null,null,null,null,null,null,null,"",null,null,null,null,null,null,"",null,null,null,null,null,null,null,null,null,null,null,null,null,"","",null,"","",null,"",null,null,null,null,null,null,null,null,null,null,"",""]
[null,"",null,"","",null,"",null,null,null,"",null,null,"",null,null,null,null,null,null,null,null,null,null,null,null,null,null,"",null,null,null,null,null,null,"",null,null,null,null,null,null,null,null,null,null,null,null,null,"","",null,"","",null,"",null,null,null,null,null,null,null,null,null,null,"",""]
[null,"",null,"","",null,"",null,null,null,"",null,null,"",null,null,null,null,null,null,null,null,null,null,null,null,null,null,"",null,null,null,null,null,null,"",null,null,null,null,null,null,null,null,null,null,null,null,null,"","",null,"","",null,"",null,null,null,null,null,null,null,null,null,null,"",""]
[null,"",null,"","",null,"",null,null,null,"",null,null,"",null,null,null,null,null,null,null,null,null,null,null,null,null,null,"",null,null,null,null,null,null,"",null,null,null,null,null,null,null,null,null,null,null,null,null,"","",null,"","",null,"",null,null,null,null,null,null,null,null,null,null,"",""]
[null,"",null,"","",null,"",null,null,null,"",null,null,"",null,null,null,null,null,null,null,null,null,null,null,null,null,null,"",null,null,null,null,null,null,"",null,null,null,null,null,null,null,null,null,null,null,null,null,"","",null,"","",null,"",null,null,null,null,null,null,null,null,null,null,"",""]
[null,"",null,"","",null,"",null,null,null,"",null,null,"",null,null,null,null,null,null,null,null,null,null,null,null,null,null,"",null,null,null,null,null,null,"",null,null,null,null,null,null,null,null,null,null,null,null,null,"","",null,"","",null,"",null,null,null,null,null,null,null,null,null,null,"",""]
[null,"",null,"","",null,"",null,null,null,"",null,null,"",null,null,null,null,null,null,null,null,null,null,null,null,null,null,"",null,null,null,null,null,null,"",null,null,null,null,null,null,null,null,null,null,null,null,null,"","",null,"","",null,"",null,null,null,null,null,null,null,null,null,null,"",""]
[null,"",null,"","",null,"",null,null,null,"",null,null,"",null,null,null,null,null,null,null,null,null,null,null,null,null,null,"",null,null,null,null,null,null,"",null,null,null,null,null,null,null,null,null,null,null,null,null,"","",null,"","",null,"",null,null,null,null,null,null,null,null,null,null,"",""]
[null,"",null,"","",null,"",null,null,null,"",null,null,"",null,null,null,null,null,null,null,null,null,null,null,null,null,null,"",null,null,null,null,null,null,"",null,null,null,null,null,null,null,null,null,null,null,null,null,"","",null,"","",null,"",null,null,null,null,null,null,null,null,null,null,"",""]
[null,"",null,"","",null,"",null,null,null,"",null,null,"",null,null,null,null,null,null,null,null,null,null,null,null,null,null,"",null,null,null,null,null,null,"",null,null,null,null,null,null,null,null,null,null,null,null,null,"","",null,"","",null,"",null,null,null,null,null,null,null,null,null,null,"",""]
[null,"",null,"","",null,"",null,null,null,"",null,null,"",null,null,null,null,null,null,null,null,null,null,null,null,null,null,"",null,null,null,null,null,null,"",null,null,null,null,null,null,null,null,null,null,null,null,null,"","",null,"","",null,"",null,null,null,null,null,null,null,null,null,null,"",""]
[null,"",null,"","",null,"",null,null,null,"",null,null,"",null,null,null,null,null,null,null,null,null,null,null,null,null,null,"",null,null,null,null,null,null,"",null,null,null,null,null,null,null,null,null,null,null,null,null,"","",null,"","",null,"",null,null,null,null,null,null,null,null,null,null,"",""]
[null,"",null,"","",null,"",null,null,null,"",null,null,"",null,null,null,null,null,null,null,null,null,null,null,null,null,null,"",null,null,null,null,null,null,"",null,null,null,null,null,null,null,null,null,null,null,null,null,"","",null,"","",null,"",null,null,null,null,null,null,null,null,null,null,"",""]
[null,"",null,"","",null,"",null,null,null,"",null,null,"",null,null,null,null,null,null,null,null,null,null,null,null,null,null,"",null,null,null,null,null,null,"",null,null,null,null,null,null,null,null,null,null,null,null,null,"","",null,"","",null,"",null,null,null,null,null,null,null,null,null,null,"",""]
[null,"",null,"","",null,"",null,null,null,"",null,null,"",null,null,null,null,null,null,null,null,null,null,null,null,null,null,"",null,null,null,null,null,null,"",null,null,null,null,null,null,null,null,null,null,null,null,null,"","",null,"","",null,"",null,null,null,null,null,null,null,null,null,null,"",""]
[null,"",null,"","",null,"",null,null,null,"",null,null,"",null,null,null,null,null,null,null,null,null,null,null,null,null,null,"",null,null,null,null,null,null,"",null,null,null,null,null,null,null,null,null,null,null,null,null,"","",null,"","",null,"",null,null,null,null,null,null,null,null,null,null,"",""]
[null,"",null,"","",null,"",null,null,null,"",null,null,"",null,null,null,null,null,null,null,null,null,null,null,null,null,null,"",null,null,null,null,null,null,"",null,null,null,null,null,null,null,null,null,null,null,null,null,"","",null,"","",null,"",null,null,null,null,null,null,null,null,null,null,"",""]
[null,"",null,"","",null,"",null,null,null,"",null,null,"",null,null,null,null,null,null,null,null,null,null,null,null,null,null,"",null,null,null,null,null,null,"",null,null,null,null,null,null,null,null,null,null,null,null,null,"","",null,"","",null,"",null,null,null,null,null,null,null,null,null,null,"",""]
[null,"",null,"","",null,"",null,null,null,"",null,null,"",null,null,null,null,null,null,null,null,null,null,null,null,null,null,"",null,null,null,null,null,null,"",null,null,null,null,null,null,null,null,null,null,null,null,null,"","",null,"","",null,"",null,null,null,null,null,null,null,null,null,null,"",""]
[null,"",null,"","",null,"",null,null,null,"",null,null,"",null,null,null,null,null,null,null,null,null,null,null,null,null,null,"",null,null,null,null,null,null,"",null,null,null,null,null,null,null,null,null,null,null,null,null,"","",null,"","",null,"",null,null,null,null,null,null,null,null,null,null,"",""]
[null,"",null,"","",null,"",null,null,null,"",null,null,"",null,null,null,null,null,null,null,null,null,null,null,null,null,null,"",null,null,null,null,null,null,"",null,null,null,null,null,null,null,null,null,null,null,null,null,"","",null,"","",null,"",null,null,null,null,null,null,null,null,null,null,"",""]
[null,"",null,"","",null,"",null,null,null,"",null,null,"",null,null,null,null,null,null,null,null,null,null,null,null,null,null,"",null,null,null,null,null,null,"",null,null,null,null,null,null,null,null,null,null,null,null,null,"","",null,"","",null,"",null,null,null,null,null,null,null,null,null,null,"",""]
[null,"",null,"","",null,"",null,null,null,"",null,null,"",null,null,null,null,null,null,null,null,null,null,null,null,null,null,"",null,null,null,null,null,null,"",null,null,null,null,null,null,null,null,null,null,null,null,null,"","",null,"","",null,"",null,null,null,null,null,null,null,null,null,null,"",""]
[null,"",null,"","",null,"",null,null,null,"",null,null,"",null,null,null,null,null,null,null,null,null,null,null,null,null,null,"",null,null,null,null,null,null,"",null,null,null,null,null,null,null,null,null,null,null,null,null,"","",null,"","",null,"",null,null,null,null,null,null,null,null,null,null,"",""]
[null,"",null,"","",null,"",null,null,null,"",null,null,"",null,null,null,null,null,null,null,null,null,null,null,null,null,null,"",null,null,null,null,null,null,"",null,null,null,null,null,null,null,null,null,null,null,null,null,"","",null,"","",null,"",null,null,null,null,null,null,null,null,null,null,"",""]
[null,"",null,"","",null,"",null,null,null,"",null,null,"",null,null,null,null,null,null,null,null,null,null,null,null,null,null,"",null,null,null,null,null,null,"",null,null,null,null,null,null,null,null,null,null,null,null,null,"","",null,"","",null,"",null,null,null,null,null,null,null,null,null,null,"",""]
[null,"",null,"","",null,"",null,null,null,"",null,null,"",null,null,null,null,null,null,null,null,null,null,null,null,null,null,"",null,null,null,null,null,null,"",null,null,null,null,null,null,null,null,null,null,null,null,null,"","",null,"","",null,"",null,null,null,null,null,null,null,null,null,null,"",""]
[null,"",null,"","",null,"",null,null,null,"",null,null,"",null,null,null,null,null,null,null,null,null,null,null,null,null,null,"",null,null,null,null,null,null,"",null,null,null,null,null,null,null,null,null,null,null,null,null,"","",null,"","",null,"",null,null,null,null,null,null,null,null,null,null,"",""]
[null,"",null,"","",null,"",null,null,null,"",null,null,"",null,null,null,null,null,null,null,null,null,null,null,null,null,null,"",null,null,null,null,null,null,"",null,null,null,null,null,null,null,null,null,null,null,null,null,"","",null,"","",null,"",null,null,null,null,null,null,null,null,null,null,"",""]
[null,"",null,"","",null,"",null,null,null,"",null,null,"",null,null,null,null,null,null,null,null,null,null,null,null,null,null,"",null,null,null,null,null,null,"",null,null,null,null,null,null,null,null,null,null,null,null,null,"","",null,"","",null,"",null,null,null,null,null,null,null,null,null,null,"",""]
[null,"",null,"","",null,"",null,null,null,"",null,null,"",null,null,null,null,null,null,null,null,null,null,null,null,null,null,"",null,null,null,null,null,null,"",null,null,null,null,null,null,null,null,null,null,null,null,null,"","",null,"","",null,"",null,null,null,null,null,null,null,null,null,null,"",""]
[null,"",null,"","",null,"",null,null,null,"",null,null,"",null,null,null,null,null,null,null,null,null,null,null,null,null,null,"",null,null,null,null,null,null,"",null,null,null,null,null,null,null,null,null,null,null,null,null,"","",null,"","",null,"",null,null,null,null,null,null,null,null,null,null,"",""]
[null,"",null,"","",null,"",null,null,null,"",null,null,"",null,null,null,null,null,null,null,null,null,null,null,null,null,null,"",null,null,null,null,null,null,"",null,null,null,null,null,null,null,null,null,null,null,null,null,"","",null,"","",null,"",null,null,null,null,null,null,null,null,null,null,"",""]
[null,"",null,"","",null,"",null,null,null,"",null,null,"",null,null,null,null,null,null,null,null,null,null,null,null,null,null,"",null,null,null,null,null,null,"",null,null,null,null,null,null,null,null,null,null,null,null,null,"","",null,"","",null,"",null,null,null,null,null,null,null,null,null,null,"",""]
[null,"",null,"","",null,"",null,null,null,"",null,null,"",null,null,null,null,null,null,null,null,null,null,null,null,null,null,"",null,null,null,null,null,null,"",null,null,null,null,null,null,null,null,null,null,null,null,null,"","",null,"","",null,"",null,null,null,null,null,null,null,null,null,null,"",""]
[null,"",null,"","",null,"",null,null,null,"",null,null,"",null,null,null,null,null,null,null,null,null,null,null,null,null,null,"",null,null,null,null,null,null,"",null,null,null,null,null,null,null,null,null,null,null,null,null,"","",null,"","",null,"",null,null,null,null,null,null,null,null,null,null,"",""]
[null,"",null,"","",null,"",null,null,null,"",null,null,"",null,null,null,null,null,null,null,null,null,null,null,null,null,null,"",null,null,null,null,null,null,"",null,null,null,null,null,null,null,null,null,null,null,null,null,"","",null,"","",null,"",null,null,null,null,null,null,null,null,null,null,"",""]
[null,"",null,"","",null,"",null,null,null,"",null,null,"",null,null,null,null,null,null,null,null,null,null,null,null,null,null,"",null,null,null,null,null,null,"",null,null,null,null,null,null,null,null,null,null,null,null,null,"","",null,"","",null,"",null,null,null,null,null,null,null,null,null,null,"",""]
[null,"",null,"","",null,"",null,null,null,"",null,null,"",null,null,null,null,null,null,null,null,null,null,null,null,null,null,"",null,null,null,null,null,null,"",null,null,null,null,null,null,null,null,null,null,null,null,null,"","",null,"","",null,"",null,null,null,null,null,null,null,null,null,null,"",""]
[null,"",null,"","",null,"",null,null,null,"",null,null,"",null,null,null,null,null,null,null,null,null,null,null,null,null,null,"",null,null,null,null,null,null,"",null,null,null,null,null,null,null,null,null,null,null,null,null,"","",null,"","",null,"",null,null,null,null,null,null,null,null,null,null,"",""]
[null,"",null,"","",null,"",null,null,null,"",null,null,"",null,null,null,null,null,null,null,null,null,null,null,null,null,null,"",null,null,null,null,null,null,"",null,null,null,null,null,null,null,null,null,null,null,null,null,"","",null,"","",null,"",null,null,null,null,null,null,null,null,null,null,"",""]
[null,"",null,"","",null,"",null,null,null,"",null,null,"",null,null,null,null,null,null,null,null,null,null,null,null,null,null,"",null,null,null,null,null,null,"",null,null,null,null,null,null,null,null,null,null,null,null,null,"","",null,"","",null,"",null,null,null,null,null,null,null,null,null,null,"",""]
[null,"",null,"","",null,"",null,null,null,"",null,null,"",null,null,null,null,null,null,null,null,null,null,null,null,null,null,"",null,null,null,null,null,null,"",null,null,null,null,null,null,null,null,null,null,null,null,null,"","",null,"","",null,"",null,null,null,null,null,null,null,null,null,null,"",""]
[null,"",null,"","",null,"",null,null,null,"",null,null,"",null,null,null,null,null,null,null,null,null,null,null,null,null,null,"",null,null,null,null,null,null,"",null,null,null,null,null,null,null,null,null,null,null,null,null,"","",null,"","",null,"",null,null,null,null,null,null,null,null,null,null,"",""]
[null,"",null,"","",null,"",null,null,null,"",null,null,"",null,null,null,null,null,null,null,null,null,null,null,null,null,null,"",null,null,null,null,null,null,"",null,null,null,null,null,null,null,null,null,null,null,null,null,"","",null,"","",null,"",null,null,null,null,null,null,null,null,null,null,"",""]
[null,"",null,"","",null,"",null,null,null,"",null,null,"",null,null,null,null,null,null,null,null,null,null,null,null,null,null,"",null,null,null,null,null,null,"",null,null,null,null,null,null,null,null,null,null,null,null,null,"","",null,"","",null,"",null,null,null,null,null,null,null,null,null,null,"",""]
[null,"",null,"","",null,"",null,null,null,"",null,null,"",null,null,null,null,null,null,null,null,null,null,null,null,null,null,"",null,null,null,null,null,null,"",null,null,null,null,null,null,null,null,null,null,null,null,null,"","",null,"","",null,"",null,null,null,null,null,null,null,null,null,null,"",""]
[null,"",null,"","",null,"",null,null,null,"",null,null,"",null,null,null,null,null,null,null,null,null,null,null,null,null,null,"",null,null,null,null,null,null,"",null,null,null,null,null,null,null,null,null,null,null,null,null,"","",null,"","",null,"",null,null,null,null,null,null,null,null,null,null,"",""]
[null,"",null,"","",null,"",null,null,null,"",null,null,"",null,null,null,null,null,null,null,null,null,null,null,null,null,null,"",null,null,null,null,null,null,"",null,null,null,null,null,null,null,null,null,null,null,null,null,"","",null,"","",null,"",null,null,null,null,null,null,null,null,null,null,"",""]
[null,"",null,"","",null,"",null,null,null,"",null,null,"",null,null,null,null,null,null,null,null,null,null,null,null,null,null,"",null,null,null,null,null,null,"",null,null,null,null,null,null,null,null,null,null,null,null,null,"","",null,"","",null,"",null,null,null,null,null,null,null,null,null,null,"",""]
[null,"",null,"","",null,"",null,null,null,"",null,null,"",null,null,null,null,null,null,null,null,null,null,null,null,null,null,"",null,null,null,null,null,null,"",null,null,null,null,null,null,null,null,null,null,null,null,null,"","",null,"","",null,"",null,null,null,null,null,null,null,null,null,null,"",""]
[null,"",null,"","",null,"",null,null,null,"",null,null,"",null,null,null,null,null,null,null,null,null,null,null,null,null,null,"",null,null,null,null,null,null,"",null,null,null,null,null,null,null,null,null,null,null,null,null,"","",null,"","",null,"",null,null,null,null,null,null,null,null,null,null,"",""]
[null,"",null,"","",null,"",null,null,null,"",null,null,"",null,null,null,null,null,null,null,null,null,null,null,null,null,null,"",null,null,null,null,null,null,"",null,null,null,null,null,null,null,null,null,null,null,null,null,"","",null,"","",null,"",null,null,null,null,null,null,null,null,null,null,"",""]
[null,"",null,"","",null,"",null,null,null,"",null,null,"",null,null,null,null,null,null,null,null,null,null,null,null,null,null,"",null,null,null,null,null,null,"",null,null,null,null,null,null,null,null,null,null,null,null,null,"","",null,"","",null,"",null,null,null,null,null,null,null,null,null,null,"",""]
[null,"",null,"","",null,"",null,null,null,"",null,null,"",null,null,null,null,null,null,null,null,null,null,null,null,null,null,"",null,null,null,null,null,null,"",null,null,null,null,null,null,null,null,null,null,null,null,null,"","",null,"","",null,"",null,null,null,null,null,null,null,null,null,null,"",""]
[null,"",null,"","",null,"",null,null,null,"",null,null,"",null,null,null,null,null,null,null,null,null,null,null,null,null,null,"",null,null,null,null,null,null,"",null,null,null,null,null,null,null,null,null,null,null,null,null,"","",null,"","",null,"",null,null,null,null,null,null,null,null,null,null,"",""]
[null,{"$f":"IF(OR($A244=\"English\",$A244=\"Ελληνικά\"),\"Individual\",\"\")","v":""},null,{"$f":"IF(OR($A244=\"English\",$A244=\"Ελληνικά\"),\"Standard\",\"\")","v":""},{"$f":"IF(OR($A244=\"English\",$A244=\"Ελληνικά\"),\"Small/Medium Enterprise\",\"\")","v":""},null,"",null,null,null,"",null,null,"",null,null,null,null,null,null,null,null,null,null,null,null,null,null,"",null,null,null,null,null,null,"",null,null,null,null,null,null,null,null,null,null,null,null,null,"","",null,"","",null,"",null,null,null,null,null,null,null,null,null,null,"",""]
[null,"",null,"","",null,{"$f":"IF(A245=\"\",\"\",IF(AH245=\"Ammochostos\",\"Famagusta\",IF(AH245=\"Larnaka\",\"Larnaca\",IF(AH245=\"Lemesos\",\"Limassol\",IF(AH245=\"Nicosia\",\"Nicosia\",IF(AH245=\"Pafos\",\"Paphos\",\"Central Offices\"))))))","v":""},null,null,null,"",null,null,"",null,null,null,null,null,null,null,null,null,null,null,null,null,null,{"$f":"IF(OR($A245=\"English\",$A245=\"Ελληνικά\"),\"Residence\",\"\")","v":""},null,null,null,null,null,null,{"$f":"IF(OR($A245=\"English\",$A245=\"Ελληνικά\"),\"Yes\",\"\")","v":""},null,null,null,null,null,null,null,null,null,null,null,null,null,{"$f":"IF(OR($A245=\"English\",$A245=\"Ελληνικά\"),\"Yes\",\"\")","v":""},{"$f":"IF(OR($A245=\"English\",$A245=\"Ελληνικά\"),\"Primary\",\"\")","v":""},null,{"$f":"IF(OR($A245=\"English\",$A245=\"Ελληνικά\"),\"Yes\",\"\")","v":""},"",null,"",null,null,null,null,null,null,null,null,null,null,"",{"$f":"IF(OR($A245=\"English\",$A245=\"Ελληνικά\"),\"INDIVIDUAL WITHOUT RETURN SUBMISSION OBLIGATION\",\"\")","v":""}]
[null,"",null,"","",null,"",null,null,null,{"$f":"IF(OR($A246=\"English\",$A246=\"Ελληνικά\"),\"Yes\",\"\")","v":""},null,null,{"$f":"IF($T246=\"Male\", \"Mr\", IF($T246=\"Female\", \"Mrs\", \"\"))","v":""},null,null,null,null,null,null,null,null,null,null,null,null,null,null,"",null,null,null,null,null,null,"",null,null,null,null,null,null,null,null,null,null,null,null,null,"","",null,"",{"$f":"IF(OR($A246=\"English\",$A246=\"Ελληνικά\"),\"Social Insurance\",\"\")","v":""},null,{"$f":"IF(OR($A246=\"English\",$A246=\"Ελληνικά\"),\"Cyprus\",\"\")","v":""},null,null,null,null,null,null,null,null,null,null,{"$f":"IF(OR($A246=\"English\",$A246=\"Ελληνικά\"),\"Applicant / Taxpayer\",\"\")","v":""},""]
[null,"",null,"","",null,"",null,null,null,"",null,null,"",null,null,null,null,null,null,null,null,null,null,null,null,null,null,"",null,null,null,null,null,null,"",null,null,null,null,null,null,null,null,null,null,null,null,null,"","",null,"","",null,"",null,null,null,null,null,null,null,null,null,null,"",""]
[null,"",null,"","",null,"",null,null,null,"",null,null,"",null,null,null,null,null,null,null,null,null,null,null,null,null,null,"",null,null,null,null,null,null,"",null,null,null,null,null,null,null,null,null,null,null,null,null,"","",null,"","",null,"",null,null,null,null,null,null,null,null,null,null,"",""]
[null,"",null,"","",null,"",null,null,null,"",null,null,"",null,null,null,null,null,null,null,null,null,null,null,null,null,null,"",null,null,null,null,null,null,"",null,null,null,null,null,null,null,null,null,null,null,null,null,"","",null,"","",null,"",null,null,null,null,null,null,null,null,null,null,"",""]
[null,"",null,"","",null,"",null,null,null,"",null,null,"",null,null,null,null,null,null,null,null,null,null,null,null,null,null,"",null,null,null,null,null,null,"",null,null,null,null,null,null,null,null,null,null,null,null,null,"","",null,"","",null,"",null,null,null,null,null,null,null,null,null,null,"",""]
[null,"",null,"","",null,"",null,null,null,"",null,null,"",null,null,null,null,null,null,null,null,null,null,null,null,null,null,"",null,null,null,null,null,null,"",null,null,null,null,null,null,null,null,null,null,null,null,null,"","",null,"","",null,"",null,null,null,null,null,null,null,null,null,null,"",""]
[null,"",null,"","",null,"",null,null,null,"",null,null,"",null,null,null,null,null,null,null,null,null,null,null,null,null,null,"",null,null,null,null,null,null,"",null,null,null,null,null,null,null,null,null,null,null,null,null,"","",null,"","",null,"",null,null,null,null,null,null,null,null,null,null,"",""]
[null,"",null,"","",null,"",null,null,null,"",null,null,"",null,null,null,null,null,null,null,null,null,null,null,null,null,null,"",null,null,null,null,null,null,"",null,null,null,null,null,null,null,null,null,null,null,null,null,"","",null,"","",null,"",null,null,null,null,null,null,null,null,null,null,"",""]
[null,"",null,"","",null,"",null,null,null,"",null,null,"",null,null,null,null,null,null,null,null,null,null,null,null,null,null,"",null,null,null,null,null,null,"",null,null,null,null,null,null,null,null,null,null,null,null,null,"","",null,"","",null,"",null,null,null,null,null,null,null,null,null,null,"",""]
[null,"",null,"","",null,"",null,null,null,"",null,null,"",null,null,null,null,null,null,null,null,null,null,null,null,null,null,"",null,null,null,null,null,null,"",null,null,null,null,null,null,null,null,null,null,null,null,null,"","",null,"","",null,"",null,null,null,null,null,null,null,null,null,null,"",""]
[null,"",null,"","",null,"",null,null,null,"",null,null,"",null,null,null,null,null,null,null,null,null,null,null,null,null,null,"",null,null,null,null,null,null,"",null,null,null,null,null,null,null,null,null,null,null,null,null,"","",null,"","",null,"",null,null,null,null,null,null,null,null,null,null,"",""]
[null,"",null,"","",null,"",null,null,null,"",null,null,"",null,null,null,null,null,null,null,null,null,null,null,null,null,null,"",null,null,null,null,null,null,"",null,null,null,null,null,null,null,null,null,null,null,null,null,"","",null,"","",null,"",null,null,null,null,null,null,null,null,null,null,"",""]
[null,"",null,"","",null,"",null,null,null,"",null,null,"",null,null,null,null,null,null,null,null,null,null,null,null,null,null,"",null,null,null,null,null,null,"",null,null,null,null,null,null,null,null,null,null,null,null,null,"","",null,"","",null,"",null,null,null,null,null,null,null,null,null,null,"",""]
[null,"",null,"","",null,"",null,null,null,"",null,null,"",null,null,null,null,null,null,null,null,null,null,null,null,null,null,"",null,null,null,null,null,null,"",null,null,null,null,null,null,null,null,null,null,null,null,null,"","",null,"","",null,"",null,null,null,null,null,null,null,null,null,null,"",""]
[null,"",null,"","",null,"",null,null,null,"",null,null,"",null,null,null,null,null,null,null,null,null,null,null,null,null,null,"",null,null,null,null,null,null,"",null,null,null,null,null,null,null,null,null,null,null,null,null,"","",null,"","",null,"",null,null,null,null,null,null,null,null,null,null,"",""]
[null,"",null,"","",null,"",null,null,null,"",null,null,"",null,null,null,null,null,null,null,null,null,null,null,null,null,null,"",null,null,null,null,null,null,"",null,null,null,null,null,null,null,null,null,null,null,null,null,"","",null,"","",null,"",null,null,null,null,null,null,null,null,null,null,"",""]
[null,"",null,"","",null,"",null,null,null,"",null,null,"",null,null,null,null,null,null,null,null,null,null,null,null,null,null,"",null,null,null,null,null,null,"",null,null,null,null,null,null,null,null,null,null,null,null,null,"","",null,"","",null,"",null,null,null,null,null,null,null,null,null,null,"",""]
[null,"",null,"","",null,"",null,null,null,"",null,null,"",null,null,null,null,null,null,null,null,null,null,null,null,null,null,"",null,null,null,null,null,null,"",null,null,null,null,null,null,null,null,null,null,null,null,null,"","",null,"","",null,"",null,null,null,null,null,null,null,null,null,null,"",""]
[null,"",null,"","",null,"",null,null,null,"",null,null,"",null,null,null,null,null,null,null,null,null,null,null,null,null,null,"",null,null,null,null,null,null,"",null,null,null,null,null,null,null,null,null,null,null,null,null,"","",null,"","",null,"",null,null,null,null,null,null,null,null,null,null,"",""]
[null,"",null,"","",null,"",null,null,null,"",null,null,"",null,null,null,null,null,null,null,null,null,null,null,null,null,null,"",null,null,null,null,null,null,"",null,null,null,null,null,null,null,null,null,null,null,null,null,"","",null,"","",null,"",null,null,null,null,null,null,null,null,null,null,"",""]
[null,"",null,"","",null,"",null,null,null,"",null,null,"",null,null,null,null,null,null,null,null,null,null,null,null,null,null,"",null,null,null,null,null,null,"",null,null,null,null,null,null,null,null,null,null,null,null,null,"","",null,"","",null,"",null,null,null,null,null,null,null,null,null,null,"",""]
[null,"",null,"","",null,"",null,null,null,"",null,null,"",null,null,null,null,null,null,null,null,null,null,null,null,null,null,"",null,null,null,null,null,null,"",null,null,null,null,null,null,null,null,null,null,null,null,null,"","",null,"","",null,"",null,null,null,null,null,null,null,null,null,null,"",""]
[null,"",null,"","",null,"",null,null,null,"",null,null,"",null,null,null,null,null,null,null,null,null,null,null,null,null,null,"",null,null,null,null,null,null,"",null,null,null,null,null,null,null,null,null,null,null,null,null,"","",null,"","",null,"",null,null,null,null,null,null,null,null,null,null,"",""]
[null,"",null,"","",null,"",null,null,null,"",null,null,"",null,null,null,null,null,null,null,null,null,null,null,null,null,null,"",null,null,null,null,null,null,"",null,null,null,null,null,null,null,null,null,null,null,null,null,"","",null,"","",null,"",null,null,null,null,null,null,null,null,null,null,"",""]
[null,"",null,"","",null,"",null,null,null,"",null,null,"",null,null,null,null,null,null,null,null,null,null,null,null,null,null,"",null,null,null,null,null,null,"",null,null,null,null,null,null,null,null,null,null,null,null,null,"","",null,"","",null,"",null,null,null,null,null,null,null,null,null,null,"",""]
[null,"",null,"","",null,"",null,null,null,"",null,null,"",null,null,null,null,null,null,null,null,null,null,null,null,null,null,"",null,null,null,null,null,null,"",null,null,null,null,null,null,null,null,null,null,null,null,null,"","",null,"","",null,"",null,null,null,null,null,null,null,null,null,null,"",""]
[null,"",null,"","",null,"",null,null,null,"",null,null,"",null,null,null,null,null,null,null,null,null,null,null,null,null,null,"",null,null,null,null,null,null,"",null,null,null,null,null,null,null,null,null,null,null,null,null,"","",null,"","",null,"",null,null,null,null,null,null,null,null,null,null,"",""]
[null,"",null,"","",null,"",null,null,null,"",null,null,"",null,null,null,null,null,null,null,null,null,null,null,null,null,null,"",null,null,null,null,null,null,"",null,null,null,null,null,null,null,null,null,null,null,null,null,"","",null,"","",null,"",null,null,null,null,null,null,null,null,null,null,"",""]
[null,"",null,"","",null,"",null,null,null,"",null,null,"",null,null,null,null,null,null,null,null,null,null,null,null,null,null,"",null,null,null,null,null,null,"",null,null,null,null,null,null,null,null,null,null,null,null,null,"","",null,"","",null,"",null,null,null,null,null,null,null,null,null,null,"",""]
[null,"",null,"","",null,"",null,null,null,"",null,null,"",null,null,null,null,null,null,null,null,null,null,null,null,null,null,"",null,null,null,null,null,null,"",null,null,null,null,null,null,null,null,null,null,null,null,null,"","",null,"","",null,"",null,null,null,null,null,null,null,null,null,null,"",""]
[null,"",null,"","",null,"",null,null,null,"",null,null,"",null,null,null,null,null,null,null,null,null,null,null,null,null,null,"",null,null,null,null,null,null,"",null,null,null,null,null,null,null,null,null,null,null,null,null,"","",null,"","",null,"",null,null,null,null,null,null,null,null,null,null,"",""]
[null,"",null,"","",null,"",null,null,null,"",null,null,"",null,null,null,null,null,null,null,null,null,null,null,null,null,null,"",null,null,null,null,null,null,"",null,null,null,null,null,null,null,null,null,null,null,null,null,"","",null,"","",null,"",null,null,null,null,null,null,null,null,null,null,"",""]
[null,"",null,"","",null,"",null,null,null,"",null,null,"",null,null,null,null,null,null,null,null,null,null,null,null,null,null,"",null,null,null,null,null,null,"",null,null,null,null,null,null,null,null,null,null,null,null,null,"","",null,"","",null,"",null,null,null,null,null,null,null,null,null,null,"",""]
[null,"",null,"","",null,"",null,null,null,"",null,null,"",null,null,null,null,null,null,null,null,null,null,null,null,null,null,"",null,null,null,null,null,null,"",null,null,null,null,null,null,null,null,null,null,null,null,null,"","",null,"","",null,"",null,null,null,null,null,null,null,null,null,null,"",""]
[null,"",null,"","",null,"",null,null,null,"",null,null,"",null,null,null,null,null,null,null,null,null,null,null,null,null,null,"",null,null,null,null,null,null,"",null,null,null,null,null,null,null,null,null,null,null,null,null,"","",null,"","",null,"",null,null,null,null,null,null,null,null,null,null,"",""]
[null,"",null,"","",null,"",null,null,null,"",null,null,"",null,null,null,null,null,null,null,null,null,null,null,null,null,null,"",null,null,null,null,null,null,"",null,null,null,null,null,null,null,null,null,null,null,null,null,"","",null,"","",null,"",null,null,null,null,null,null,null,null,null,null,"",""]
[null,"",null,"","",null,"",null,null,null,"",null,null,"",null,null,null,null,null,null,null,null,null,null,null,null,null,null,"",null,null,null,null,null,null,"",null,null,null,null,null,null,null,null,null,null,null,null,null,"","",null,"","",null,"",null,null,null,null,null,null,null,null,null,null,"",""]
[null,"",null,"","",null,"",null,null,null,"",null,null,"",null,null,null,null,null,null,null,null,null,null,null,null,null,null,"",null,null,null,null,null,null,"",null,null,null,null,null,null,null,null,null,null,null,null,null,"","",null,"","",null,"",null,null,null,null,null,null,null,null,null,null,"",""]
[null,"",null,"","",null,"",null,null,null,"",null,null,"",null,null,null,null,null,null,null,null,null,null,null,null,null,null,"",null,null,null,null,null,null,"",null,null,null,null,null,null,null,null,null,null,null,null,null,"","",null,"","",null,"",null,null,null,null,null,null,null,null,null,null,"",""]
[null,"",null,"","",null,"",null,null,null,"",null,null,"",null,null,null,null,null,null,null,null,null,null,null,null,null,null,"",null,null,null,null,null,null,"",null,null,null,null,null,null,null,null,null,null,null,null,null,"","",null,"","",null,"",null,null,null,null,null,null,null,null,null,null,"",""]
[null,"",null,"","",null,"",null,null,null,"",null,null,"",null,null,null,null,null,null,null,null,null,null,null,null,null,null,"",null,null,null,null,null,null,"",null,null,null,null,null,null,null,null,null,null,null,null,null,"","",null,"","",null,"",null,null,null,null,null,null,null,null,null,null,"",""]
[null,"",null,"","",null,"",null,null,null,"",null,null,"",null,null,null,null,null,null,null,null,null,null,null,null,null,null,"",null,null,null,null,null,null,"",null,null,null,null,null,null,null,null,null,null,null,null,null,"","",null,"","",null,"",null,null,null,null,null,null,null,null,null,null,"",""]
[null,"",null,"","",null,"",null,null,null,"",null,null,"",null,null,null,null,null,null,null,null,null,null,null,null,null,null,"",null,null,null,null,null,null,"",null,null,null,null,null,null,null,null,null,null,null,null,null,"","",null,"","",null,"",null,null,null,null,null,null,null,null,null,null,"",""]
[null,"",null,"","",null,"",null,null,null,"",null,null,"",null,null,null,null,null,null,null,null,null,null,null,null,null,null,"",null,null,null,null,null,null,"",null,null,null,null,null,null,null,null,null,null,null,null,null,"","",null,"","",null,"",null,null,null,null,null,null,null,null,null,null,"",""]
[null,"",null,"","",null,"",null,null,null,"",null,null,"",null,null,null,null,null,null,null,null,null,null,null,null,null,null,"",null,null,null,null,null,null,"",null,null,null,null,null,null,null,null,null,null,null,null,null,"","",null,"","",null,"",null,null,null,null,null,null,null,null,null,null,"",""]
[null,"",null,"","",null,"",null,null,null,"",null,null,"",null,null,null,null,null,null,null,null,null,null,null,null,null,null,"",null,null,null,null,null,null,"",null,null,null,null,null,null,null,null,null,null,null,null,null,"","",null,"","",null,"",null,null,null,null,null,null,null,null,null,null,"",""]
[null,"",null,"","",null,"",null,null,null,"",null,null,"",null,null,null,null,null,null,null,null,null,null,null,null,null,null,"",null,null,null,null,null,null,"",null,null,null,null,null,null,null,null,null,null,null,null,null,"","",null,"","",null,"",null,null,null,null,null,null,null,null,null,null,"",""]
[null,"",null,"","",null,"",null,null,null,"",null,null,"",null,null,null,null,null,null,null,null,null,null,null,null,null,null,"",null,null,null,null,null,null,"",null,null,null,null,null,null,null,null,null,null,null,null,null,"","",null,"","",null,"",null,null,null,null,null,null,null,null,null,null,"",""]
[null,"",null,"","",null,"",null,null,null,"",null,null,"",null,null,null,null,null,null,null,null,null,null,null,null,null,null,"",null,null,null,null,null,null,"",null,null,null,null,null,null,null,null,null,null,null,null,null,"","",null,"","",null,"",null,null,null,null,null,null,null,null,null,null,"",""]
[null,"",null,"","",null,"",null,null,null,"",null,null,"",null,null,null,null,null,null,null,null,null,null,null,null,null,null,"",null,null,null,null,null,null,"",null,null,null,null,null,null,null,null,null,null,null,null,null,"","",null,"","",null,"",null,null,null,null,null,null,null,null,null,null,"",""]
[null,"",null,"","",null,"",null,null,null,"",null,null,"",null,null,null,null,null,null,null,null,null,null,null,null,null,null,"",null,null,null,null,null,null,"",null,null,null,null,null,null,null,null,null,null,null,null,null,"","",null,"","",null,"",null,null,null,null,null,null,null,null,null,null,"",""]
[null,"",null,"","",null,"",null,null,null,"",null,null,"",null,null,null,null,null,null,null,null,null,null,null,null,null,null,"",null,null,null,null,null,null,"",null,null,null,null,null,null,null,null,null,null,null,null,null,"","",null,"","",null,"",null,null,null,null,null,null,null,null,null,null,"",""]
[null,"",null,"","",null,"",null,null,null,"",null,null,"",null,null,null,null,null,null,null,null,null,null,null,null,null,null,"",null,null,null,null,null,null,"",null,null,null,null,null,null,null,null,null,null,null,null,null,"","",null,"","",null,"",null,null,null,null,null,null,null,null,null,null,"",""]
[null,"",null,"","",null,"",null,null,null,"",null,null,"",null,null,null,null,null,null,null,null,null,null,null,null,null,null,"",null,null,null,null,null,null,"",null,null,null,null,null,null,null,null,null,null,null,null,null,"","",null,"","",null,"",null,null,null,null,null,null,null,null,null,null,"",""]
[null,"",null,"","",null,"",null,null,null,"",null,null,"",null,null,null,null,null,null,null,null,null,null,null,null,null,null,"",null,null,null,null,null,null,"",null,null,null,null,null,null,null,null,null,null,null,null,null,"","",null,"","",null,"",null,null,null,null,null,null,null,null,null,null,"",""]
[null,"",null,"","",null,"",null,null,null,"",null,null,"",null,null,null,null,null,null,null,null,null,null,null,null,null,null,"",null,null,null,null,null,null,"",null,null,null,null,null,null,null,null,null,null,null,null,null,"","",null,"","",null,"",null,null,null,null,null,null,null,null,null,null,"",""]
[null,"",null,"","",null,"",null,null,null,"",null,null,"",null,null,null,null,null,null,null,null,null,null,null,null,null,null,"",null,null,null,null,null,null,"",null,null,null,null,null,null,null,null,null,null,null,null,null,"","",null,"","",null,"",null,null,null,null,null,null,null,null,null,null,"",""]
[null,"",null,"","",null,"",null,null,null,"",null,null,"",null,null,null,null,null,null,null,null,null,null,null,null,null,null,"",null,null,null,null,null,null,"",null,null,null,null,null,null,null,null,null,null,null,null,null,"","",null,"","",null,"",null,null,null,null,null,null,null,null,null,null,"",""]
[null,"",null,"","",null,"",null,null,null,"",null,null,"",null,null,null,null,null,null,null,null,null,null,null,null,null,null,"",null,null,null,null,null,null,"",null,null,null,null,null,null,null,null,null,null,null,null,null,"","",null,"","",null,"",null,null,null,null,null,null,null,null,null,null,"",""]
[null,"",null,"","",null,"",null,null,null,"",null,null,"",null,null,null,null,null,null,null,null,null,null,null,null,null,null,"",null,null,null,null,null,null,"",null,null,null,null,null,null,null,null,null,null,null,null,null,"","",null,"","",null,"",null,null,null,null,null,null,null,null,null,null,"",""]
[null,"",null,"","",null,"",null,null,null,"",null,null,"",null,null,null,null,null,null,null,null,null,null,null,null,null,null,"",null,null,null,null,null,null,"",null,null,null,null,null,null,null,null,null,null,null,null,null,"","",null,"","",null,"",null,null,null,null,null,null,null,null,null,null,"",""]
[null,"",null,"","",null,"",null,null,null,"",null,null,"",null,null,null,null,null,null,null,null,null,null,null,null,null,null,"",null,null,null,null,null,null,"",null,null,null,null,null,null,null,null,null,null,null,null,null,"","",null,"","",null,"",null,null,null,null,null,null,null,null,null,null,"",""]
[null,{"$f":"IF(OR($A308=\"English\",$A308=\"Ελληνικά\"),\"Individual\",\"\")","v":""},null,{"$f":"IF(OR($A308=\"English\",$A308=\"Ελληνικά\"),\"Standard\",\"\")","v":""},{"$f":"IF(OR($A308=\"English\",$A308=\"Ελληνικά\"),\"Small/Medium Enterprise\",\"\")","v":""},null,"",null,null,null,"",null,null,"",null,null,null,null,null,null,null,null,null,null,null,null,null,null,"",null,null,null,null,null,null,"",null,null,null,null,null,null,null,null,null,null,null,null,null,"","",null,"","",null,"",null,null,null,null,null,null,null,null,null,null,"",""]
[null,"",null,"","",null,{"$f":"IF(A309=\"\",\"\",IF(AH309=\"Ammochostos\",\"Famagusta\",IF(AH309=\"Larnaka\",\"Larnaca\",IF(AH309=\"Lemesos\",\"Limassol\",IF(AH309=\"Nicosia\",\"Nicosia\",IF(AH309=\"Pafos\",\"Paphos\",\"Central Offices\"))))))","v":""},null,null,null,"",null,null,"",null,null,null,null,null,null,null,null,null,null,null,null,null,null,{"$f":"IF(OR($A309=\"English\",$A309=\"Ελληνικά\"),\"Residence\",\"\")","v":""},null,null,null,null,null,null,{"$f":"IF(OR($A309=\"English\",$A309=\"Ελληνικά\"),\"Yes\",\"\")","v":""},null,null,null,null,null,null,null,null,null,null,null,null,null,{"$f":"IF(OR($A309=\"English\",$A309=\"Ελληνικά\"),\"Yes\",\"\")","v":""},{"$f":"IF(OR($A309=\"English\",$A309=\"Ελληνικά\"),\"Primary\",\"\")","v":""},null,{"$f":"IF(OR($A309=\"English\",$A309=\"Ελληνικά\"),\"Yes\",\"\")","v":""},"",null,"",null,null,null,null,null,null,null,null,null,null,"",{"$f":"IF(OR($A309=\"English\",$A309=\"Ελληνικά\"),\"INDIVIDUAL WITHOUT RETURN SUBMISSION OBLIGATION\",\"\")","v":""}]
[null,"",null,"","",null,"",null,null,null,{"$f":"IF(OR($A310=\"English\",$A310=\"Ελληνικά\"),\"Yes\",\"\")","v":""},null,null,{"$f":"IF($T310=\"Male\", \"Mr\", IF($T310=\"Female\", \"Mrs\", \"\"))","v":""},null,null,null,null,null,null,null,null,null,null,null,null,null,null,"",null,null,null,null,null,null,"",null,null,null,null,null,null,null,null,null,null,null,null,null,"","",null,"",{"$f":"IF(OR($A310=\"English\",$A310=\"Ελληνικά\"),\"Social Insurance\",\"\")","v":""},null,{"$f":"IF(OR($A310=\"English\",$A310=\"Ελληνικά\"),\"Cyprus\",\"\")","v":""},null,null,null,null,null,null,null,null,null,null,{"$f":"IF(OR($A310=\"English\",$A310=\"Ελληνικά\"),\"Applicant / Taxpayer\",\"\")","v":""},""]
[null,"",null,"","",null,"",null,null,null,"",null,null,"",null,null,null,null,null,null,null,null,null,null,null,null,null,null,"",null,null,null,null,null,null,"",null,null,null,null,null,null,null,null,null,null,null,null,null,"","",null,"","",null,"",null,null,null,null,null,null,null,null,null,null,"",""]
[null,"",null,"","",null,"",null,null,null,"",null,null,"",null,null,null,null,null,null,null,null,null,null,null,null,null,null,"",null,null,null,null,null,null,"",null,null,null,null,null,null,null,null,null,null,null,null,null,"","",null,"","",null,"",null,null,null,null,null,null,null,null,null,null,"",""]
[null,"",null,"","",null,"",null,null,null,"",null,null,"",null,null,null,null,null,null,null,null,null,null,null,null,null,null,"",null,null,null,null,null,null,"",null,null,null,null,null,null,null,null,null,null,null,null,null,"","",null,"","",null,"",null,null,null,null,null,null,null,null,null,null,"",""]
[null,"",null,"","",null,"",null,null,null,"",null,null,"",null,null,null,null,null,null,null,null,null,null,null,null,null,null,"",null,null,null,null,null,null,"",null,null,null,null,null,null,null,null,null,null,null,null,null,"","",null,"","",null,"",null,null,null,null,null,null,null,null,null,null,"",""]
[null,"",null,"","",null,"",null,null,null,"",null,null,"",null,null,null,null,null,null,null,null,null,null,null,null,null,null,"",null,null,null,null,null,null,"",null,null,null,null,null,null,null,null,null,null,null,null,null,"","",null,"","",null,"",null,null,null,null,null,null,null,null,null,null,"",""]
[null,"",null,"","",null,"",null,null,null,"",null,null,"",null,null,null,null,null,null,null,null,null,null,null,null,null,null,"",null,null,null,null,null,null,"",null,null,null,null,null,null,null,null,null,null,null,null,null,"","",null,"","",null,"",null,null,null,null,null,null,null,null,null,null,"",""]
[null,"",null,"","",null,"",null,null,null,"",null,null,"",null,null,null,null,null,null,null,null,null,null,null,null,null,null,"",null,null,null,null,null,null,"",null,null,null,null,null,null,null,null,null,null,null,null,null,"","",null,"","",null,"",null,null,null,null,null,null,null,null,null,null,"",""]
[null,"",null,"","",null,"",null,null,null,"",null,null,"",null,null,null,null,null,null,null,null,null,null,null,null,null,null,"",null,null,null,null,null,null,"",null,null,null,null,null,null,null,null,null,null,null,null,null,"","",null,"","",null,"",null,null,null,null,null,null,null,null,null,null,"",""]
[null,"",null,"","",null,"",null,null,null,"",null,null,"",null,null,null,null,null,null,null,null,null,null,null,null,null,null,"",null,null,null,null,null,null,"",null,null,null,null,null,null,null,null,null,null,null,null,null,"","",null,"","",null,"",null,null,null,null,null,null,null,null,null,null,"",""]
[null,"",null,"","",null,"",null,null,null,"",null,null,"",null,null,null,null,null,null,null,null,null,null,null,null,null,null,"",null,null,null,null,null,null,"",null,null,null,null,null,null,null,null,null,null,null,null,null,"","",null,"","",null,"",null,null,null,null,null,null,null,null,null,null,"",""]
[null,"",null,"","",null,"",null,null,null,"",null,null,"",null,null,null,null,null,null,null,null,null,null,null,null,null,null,"",null,null,null,null,null,null,"",null,null,null,null,null,null,null,null,null,null,null,null,null,"","",null,"","",null,"",null,null,null,null,null,null,null,null,null,null,"",""]
[null,"",null,"","",null,"",null,null,null,"",null,null,"",null,null,null,null,null,null,null,null,null,null,null,null,null,null,"",null,null,null,null,null,null,"",null,null,null,null,null,null,null,null,null,null,null,null,null,"","",null,"","",null,"",null,null,null,null,null,null,null,null,null,null,"",""]
[null,"",null,"","",null,"",null,null,null,"",null,null,"",null,null,null,null,null,null,null,null,null,null,null,null,null,null,"",null,null,null,null,null,null,"",null,null,null,null,null,null,null,null,null,null,null,null,null,"","",null,"","",null,"",null,null,null,null,null,null,null,null,null,null,"",""]
[null,"",null,"","",null,"",null,null,null,"",null,null,"",null,null,null,null,null,null,null,null,null,null,null,null,null,null,"",null,null,null,null,null,null,"",null,null,null,null,null,null,null,null,null,null,null,null,null,"","",null,"","",null,"",null,null,null,null,null,null,null,null,null,null,"",""]
[null,"",null,"","",null,"",null,null,null,"",null,null,"",null,null,null,null,null,null,null,null,null,null,null,null,null,null,"",null,null,null,null,null,null,"",null,null,null,null,null,null,null,null,null,null,null,null,null,"","",null,"","",null,"",null,null,null,null,null,null,null,null,null,null,"",""]
[null,"",null,"","",null,"",null,null,null,"",null,null,"",null,null,null,null,null,null,null,null,null,null,null,null,null,null,"",null,null,null,null,null,null,"",null,null,null,null,null,null,null,null,null,null,null,null,null,"","",null,"","",null,"",null,null,null,null,null,null,null,null,null,null,"",""]
[null,"",null,"","",null,"",null,null,null,"",null,null,"",null,null,null,null,null,null,null,null,null,null,null,null,null,null,"",null,null,null,null,null,null,"",null,null,null,null,null,null,null,null,null,null,null,null,null,"","",null,"","",null,"",null,null,null,null,null,null,null,null,null,null,"",""]
[null,"",null,"","",null,"",null,null,null,"",null,null,"",null,null,null,null,null,null,null,null,null,null,null,null,null,null,"",null,null,null,null,null,null,"",null,null,null,null,null,null,null,null,null,null,null,null,null,"","",null,"","",null,"",null,null,null,null,null,null,null,null,null,null,"",""]
[null,"",null,"","",null,"",null,null,null,"",null,null,"",null,null,null,null,null,null,null,null,null,null,null,null,null,null,"",null,null,null,null,null,null,"",null,null,null,null,null,null,null,null,null,null,null,null,null,"","",null,"","",null,"",null,null,null,null,null,null,null,null,null,null,"",""]
[null,"",null,"","",null,"",null,null,null,"",null,null,"",null,null,null,null,null,null,null,null,null,null,null,null,null,null,"",null,null,null,null,null,null,"",null,null,null,null,null,null,null,null,null,null,null,null,null,"","",null,"","",null,"",null,null,null,null,null,null,null,null,null,null,"",""]
[null,"",null,"","",null,"",null,null,null,"",null,null,"",null,null,null,null,null,null,null,null,null,null,null,null,null,null,"",null,null,null,null,null,null,"",null,null,null,null,null,null,null,null,null,null,null,null,null,"","",null,"","",null,"",null,null,null,null,null,null,null,null,null,null,"",""]
[null,"",null,"","",null,"",null,null,null,"",null,null,"",null,null,null,null,null,null,null,null,null,null,null,null,null,null,"",null,null,null,null,null,null,"",null,null,null,null,null,null,null,null,null,null,null,null,null,"","",null,"","",null,"",null,null,null,null,null,null,null,null,null,null,"",""]
[null,"",null,"","",null,"",null,null,null,"",null,null,"",null,null,null,null,null,null,null,null,null,null,null,null,null,null,"",null,null,null,null,null,null,"",null,null,null,null,null,null,null,null,null,null,null,null,null,"","",null,"","",null,"",null,null,null,null,null,null,null,null,null,null,"",""]
[null,"",null,"","",null,"",null,null,null,"",null,null,"",null,null,null,null,null,null,null,null,null,null,null,null,null,null,"",null,null,null,null,null,null,"",null,null,null,null,null,null,null,null,null,null,null,null,null,"","",null,"","",null,"",null,null,null,null,null,null,null,null,null,null,"",""]
[null,"",null,"","",null,"",null,null,null,"",null,null,"",null,null,null,null,null,null,null,null,null,null,null,null,null,null,"",null,null,null,null,null,null,"",null,null,null,null,null,null,null,null,null,null,null,null,null,"","",null,"","",null,"",null,null,null,null,null,null,null,null,null,null,"",""]
[null,"",null,"","",null,"",null,null,null,"",null,null,"",null,null,null,null,null,null,null,null,null,null,null,null,null,null,"",null,null,null,null,null,null,"",null,null,null,null,null,null,null,null,null,null,null,null,null,"","",null,"","",null,"",null,null,null,null,null,null,null,null,null,null,"",""]
[null,"",null,"","",null,"",null,null,null,"",null,null,"",null,null,null,null,null,null,null,null,null,null,null,null,null,null,"",null,null,null,null,null,null,"",null,null,null,null,null,null,null,null,null,null,null,null,null,"","",null,"","",null,"",null,null,null,null,null,null,null,null,null,null,"",""]
[null,"",null,"","",null,"",null,null,null,"",null,null,"",null,null,null,null,null,null,null,null,null,null,null,null,null,null,"",null,null,null,null,null,null,"",null,null,null,null,null,null,null,null,null,null,null,null,null,"","",null,"","",null,"",null,null,null,null,null,null,null,null,null,null,"",""]
[null,"",null,"","",null,"",null,null,null,"",null,null,"",null,null,null,null,null,null,null,null,null,null,null,null,null,null,"",null,null,null,null,null,null,"",null,null,null,null,null,null,null,null,null,null,null,null,null,"","",null,"","",null,"",null,null,null,null,null,null,null,null,null,null,"",""]
[null,"",null,"","",null,"",null,null,null,"",null,null,"",null,null,null,null,null,null,null,null,null,null,null,null,null,null,"",null,null,null,null,null,null,"",null,null,null,null,null,null,null,null,null,null,null,null,null,"","",null,"","",null,"",null,null,null,null,null,null,null,null,null,null,"",""]
[null,"",null,"","",null,"",null,null,null,"",null,null,"",null,null,null,null,null,null,null,null,null,null,null,null,null,null,"",null,null,null,null,null,null,"",null,null,null,null,null,null,null,null,null,null,null,null,null,"","",null,"","",null,"",null,null,null,null,null,null,null,null,null,null,"",""]
[null,"",null,"","",null,"",null,null,null,"",null,null,"",null,null,null,null,null,null,null,null,null,null,null,null,null,null,"",null,null,null,null,null,null,"",null,null,null,null,null,null,null,null,null,null,null,null,null,"","",null,"","",null,"",null,null,null,null,null,null,null,null,null,null,"",""]
[null,"",null,"","",null,"",null,null,null,"",null,null,"",null,null,null,null,null,null,null,null,null,null,null,null,null,null,"",null,null,null,null,null,null,"",null,null,null,null,null,null,null,null,null,null,null,null,null,"","",null,"","",null,"",null,null,null,null,null,null,null,null,null,null,"",""]
[null,"",null,"","",null,"",null,null,null,"",null,null,"",null,null,null,null,null,null,null,null,null,null,null,null,null,null,"",null,null,null,null,null,null,"",null,null,null,null,null,null,null,null,null,null,null,null,null,"","",null,"","",null,"",null,null,null,null,null,null,null,null,null,null,"",""]
[null,"",null,"","",null,"",null,null,null,"",null,null,"",null,null,null,null,null,null,null,null,null,null,null,null,null,null,"",null,null,null,null,null,null,"",null,null,null,null,null,null,null,null,null,null,null,null,null,"","",null,"","",null,"",null,null,null,null,null,null,null,null,null,null,"",""]
[null,"",null,"","",null,"",null,null,null,"",null,null,"",null,null,null,null,null,null,null,null,null,null,null,null,null,null,"",null,null,null,null,null,null,"",null,null,null,null,null,null,null,null,null,null,null,null,null,"","",null,"","",null,"",null,null,null,null,null,null,null,null,null,null,"",""]
[null,"",null,"","",null,"",null,null,null,"",null,null,"",null,null,null,null,null,null,null,null,null,null,null,null,null,null,"",null,null,null,null,null,null,"",null,null,null,null,null,null,null,null,null,null,null,null,null,"","",null,"","",null,"",null,null,null,null,null,null,null,null,null,null,"",""]
[null,"",null,"","",null,"",null,null,null,"",null,null,"",null,null,null,null,null,null,null,null,null,null,null,null,null,null,"",null,null,null,null,null,null,"",null,null,null,null,null,null,null,null,null,null,null,null,null,"","",null,"","",null,"",null,null,null,null,null,null,null,null,null,null,"",""]
[null,"",null,"","",null,"",null,null,null,"",null,null,"",null,null,null,null,null,null,null,null,null,null,null,null,null,null,"",null,null,null,null,null,null,"",null,null,null,null,null,null,null,null,null,null,null,null,null,"","",null,"","",null,"",null,null,null,null,null,null,null,null,null,null,"",""]
[null,"",null,"","",null,"",null,null,null,"",null,null,"",null,null,null,null,null,null,null,null,null,null,null,null,null,null,"",null,null,null,null,null,null,"",null,null,null,null,null,null,null,null,null,null,null,null,null,"","",null,"","",null,"",null,null,null,null,null,null,null,null,null,null,"",""]
[null,"",null,"","",null,"",null,null,null,"",null,null,"",null,null,null,null,null,null,null,null,null,null,null,null,null,null,"",null,null,null,null,null,null,"",null,null,null,null,null,null,null,null,null,null,null,null,null,"","",null,"","",null,"",null,null,null,null,null,null,null,null,null,null,"",""]
[null,"",null,"","",null,"",null,null,null,"",null,null,"",null,null,null,null,null,null,null,null,null,null,null,null,null,null,"",null,null,null,null,null,null,"",null,null,null,null,null,null,null,null,null,null,null,null,null,"","",null,"","",null,"",null,null,null,null,null,null,null,null,null,null,"",""]
[null,"",null,"","",null,"",null,null,null,"",null,null,"",null,null,null,null,null,null,null,null,null,null,null,null,null,null,"",null,null,null,null,null,null,"",null,null,null,null,null,null,null,null,null,null,null,null,null,"","",null,"","",null,"",null,null,null,null,null,null,null,null,null,null,"",""]
[null,"",null,"","",null,"",null,null,null,"",null,null,"",null,null,null,null,null,null,null,null,null,null,null,null,null,null,"",null,null,null,null,null,null,"",null,null,null,null,null,null,null,null,null,null,null,null,null,"","",null,"","",null,"",null,null,null,null,null,null,null,null,null,null,"",""]
[null,"",null,"","",null,"",null,null,null,"",null,null,"",null,null,null,null,null,null,null,null,null,null,null,null,null,null,"",null,null,null,null,null,null,"",null,null,null,null,null,null,null,null,null,null,null,null,null,"","",null,"","",null,"",null,null,null,null,null,null,null,null,null,null,"",""]
[null,"",null,"","",null,"",null,null,null,"",null,null,"",null,null,null,null,null,null,null,null,null,null,null,null,null,null,"",null,null,null,null,null,null,"",null,null,null,null,null,null,null,null,null,null,null,null,null,"","",null,"","",null,"",null,null,null,null,null,null,null,null,null,null,"",""]
[null,"",null,"","",null,"",null,null,null,"",null,null,"",null,null,null,null,null,null,null,null,null,null,null,null,null,null,"",null,null,null,null,null,null,"",null,null,null,null,null,null,null,null,null,null,null,null,null,"","",null,"","",null,"",null,null,null,null,null,null,null,null,null,null,"",""]
[null,"",null,"","",null,"",null,null,null,"",null,null,"",null,null,null,null,null,null,null,null,null,null,null,null,null,null,"",null,null,null,null,null,null,"",null,null,null,null,null,null,null,null,null,null,null,null,null,"","",null,"","",null,"",null,null,null,null,null,null,null,null,null,null,"",""]
[null,"",null,"","",null,"",null,null,null,"",null,null,"",null,null,null,null,null,null,null,null,null,null,null,null,null,null,"",null,null,null,null,null,null,"",null,null,null,null,null,null,null,null,null,null,null,null,null,"","",null,"","",null,"",null,null,null,null,null,null,null,null,null,null,"",""]
[null,"",null,"","",null,"",null,null,null,"",null,null,"",null,null,null,null,null,null,null,null,null,null,null,null,null,null,"",null,null,null,null,null,null,"",null,null,null,null,null,null,null,null,null,null,null,null,null,"","",null,"","",null,"",null,null,null,null,null,null,null,null,null,null,"",""]
[null,"",null,"","",null,"",null,null,null,"",null,null,"",null,null,null,null,null,null,null,null,null,null,null,null,null,null,"",null,null,null,null,null,null,"",null,null,null,null,null,null,null,null,null,null,null,null,null,"","",null,"","",null,"",null,null,null,null,null,null,null,null,null,null,"",""]
[null,"",null,"","",null,"",null,null,null,"",null,null,"",null,null,null,null,null,null,null,null,null,null,null,null,null,null,"",null,null,null,null,null,null,"",null,null,null,null,null,null,null,null,null,null,null,null,null,"","",null,"","",null,"",null,null,null,null,null,null,null,null,null,null,"",""]
[null,"",null,"","",null,"",null,null,null,"",null,null,"",null,null,null,null,null,null,null,null,null,null,null,null,null,null,"",null,null,null,null,null,null,"",null,null,null,null,null,null,null,null,null,null,null,null,null,"","",null,"","",null,"",null,null,null,null,null,null,null,null,null,null,"",""]
[null,"",null,"","",null,"",null,null,null,"",null,null,"",null,null,null,null,null,null,null,null,null,null,null,null,null,null,"",null,null,null,null,null,null,"",null,null,null,null,null,null,null,null,null,null,null,null,null,"","",null,"","",null,"",null,null,null,null,null,null,null,null,null,null,"",""]
[null,"",null,"","",null,"",null,null,null,"",null,null,"",null,null,null,null,null,null,null,null,null,null,null,null,null,null,"",null,null,null,null,null,null,"",null,null,null,null,null,null,null,null,null,null,null,null,null,"","",null,"","",null,"",null,null,null,null,null,null,null,null,null,null,"",""]
[null,"",null,"","",null,"",null,null,null,"",null,null,"",null,null,null,null,null,null,null,null,null,null,null,null,null,null,"",null,null,null,null,null,null,"",null,null,null,null,null,null,null,null,null,null,null,null,null,"","",null,"","",null,"",null,null,null,null,null,null,null,null,null,null,"",""]
[null,"",null,"","",null,"",null,null,null,"",null,null,"",null,null,null,null,null,null,null,null,null,null,null,null,null,null,"",null,null,null,null,null,null,"",null,null,null,null,null,null,null,null,null,null,null,null,null,"","",null,"","",null,"",null,null,null,null,null,null,null,null,null,null,"",""]
[null,"",null,"","",null,"",null,null,null,"",null,null,"",null,null,null,null,null,null,null,null,null,null,null,null,null,null,"",null,null,null,null,null,null,"",null,null,null,null,null,null,null,null,null,null,null,null,null,"","",null,"","",null,"",null,null,null,null,null,null,null,null,null,null,"",""]
[null,"",null,"","",null,"",null,null,null,"",null,null,"",null,null,null,null,null,null,null,null,null,null,null,null,null,null,"",null,null,null,null,null,null,"",null,null,null,null,null,null,null,null,null,null,null,null,null,"","",null,"","",null,"",null,null,null,null,null,null,null,null,null,null,"",""]
[null,"",null,"","",null,"",null,null,null,"",null,null,"",null,null,null,null,null,null,null,null,null,null,null,null,null,null,"",null,null,null,null,null,null,"",null,null,null,null,null,null,null,null,null,null,null,null,null,"","",null,"","",null,"",null,null,null,null,null,null,null,null,null,null,"",""]
[null,"",null,"","",null,"",null,null,null,"",null,null,"",null,null,null,null,null,null,null,null,null,null,null,null,null,null,"",null,null,null,null,null,null,"",null,null,null,null,null,null,null,null,null,null,null,null,null,"","",null,"","",null,"",null,null,null,null,null,null,null,null,null,null,"",""]
[null,{"$f":"IF(OR($A372=\"English\",$A372=\"Ελληνικά\"),\"Individual\",\"\")","v":""},null,{"$f":"IF(OR($A372=\"English\",$A372=\"Ελληνικά\"),\"Standard\",\"\")","v":""},{"$f":"IF(OR($A372=\"English\",$A372=\"Ελληνικά\"),\"Small/Medium Enterprise\",\"\")","v":""},null,"",null,null,null,"",null,null,"",null,null,null,null,null,null,null,null,null,null,null,null,null,null,"",null,null,null,null,null,null,"",null,null,null,null,null,null,null,null,null,null,null,null,null,"","",null,"","",null,"",null,null,null,null,null,null,null,null,null,null,"",""]
[null,"",null,"","",null,{"$f":"IF(A373=\"\",\"\",IF(AH373=\"Ammochostos\",\"Famagusta\",IF(AH373=\"Larnaka\",\"Larnaca\",IF(AH373=\"Lemesos\",\"Limassol\",IF(AH373=\"Nicosia\",\"Nicosia\",IF(AH373=\"Pafos\",\"Paphos\",\"Central Offices\"))))))","v":""},null,null,null,"",null,null,"",null,null,null,null,null,null,null,null,null,null,null,null,null,null,{"$f":"IF(OR($A373=\"English\",$A373=\"Ελληνικά\"),\"Residence\",\"\")","v":""},null,null,null,null,null,null,{"$f":"IF(OR($A373=\"English\",$A373=\"Ελληνικά\"),\"Yes\",\"\")","v":""},null,null,null,null,null,null,null,null,null,null,null,null,null,{"$f":"IF(OR($A373=\"English\",$A373=\"Ελληνικά\"),\"Yes\",\"\")","v":""},{"$f":"IF(OR($A373=\"English\",$A373=\"Ελληνικά\"),\"Primary\",\"\")","v":""},null,{"$f":"IF(OR($A373=\"English\",$A373=\"Ελληνικά\"),\"Yes\",\"\")","v":""},"",null,"",null,null,null,null,null,null,null,null,null,null,"",{"$f":"IF(OR($A373=\"English\",$A373=\"Ελληνικά\"),\"INDIVIDUAL WITHOUT RETURN SUBMISSION OBLIGATION\",\"\")","v":""}]
[null,"",null,"","",null,"",null,null,null,{"$f":"IF(OR($A374=\"English\",$A374=\"Ελληνικά\"),\"Yes\",\"\")","v":""},null,null,{"$f":"IF($T374=\"Male\", \"Mr\", IF($T374=\"Female\", \"Mrs\", \"\"))","v":""},null,null,null,null,null,null,null,null,null,null,null,null,null,null,"",null,null,null,null,null,null,"",null,null,null,null,null,null,null,null,null,null,null,null,null,"","",null,"",{"$f":"IF(OR($A374=\"English\",$A374=\"Ελληνικά\"),\"Social Insurance\",\"\")","v":""},null,{"$f":"IF(OR($A374=\"English\",$A374=\"Ελληνικά\"),\"Cyprus\",\"\")","v":""},null,null,null,null,null,null,null,null,null,null,{"$f":"IF(OR($A374=\"English\",$A374=\"Ελληνικά\"),\"Applicant / Taxpayer\",\"\")","v":""},""]
[null,"",null,"","",null,"",null,null,null,"",null,null,"",null,null,null,null,null,null,null,null,null,null,null,null,null,null,"",null,null,null,null,null,null,"",null,null,null,null,null,null,null,null,null,null,null,null,null,"","",null,"","",null,"",null,null,null,null,null,null,null,null,null,null,"",""]
[null,"",null,"","",null,"",null,null,null,"",null,null,"",null,null,null,null,null,null,null,null,null,null,null,null,null,null,"",null,null,null,null,null,null,"",null,null,null,null,null,null,null,null,null,null,null,null,null,"","",null,"","",null,"",null,null,null,null,null,null,null,null,null,null,"",""]
[null,"",null,"","",null,"",null,null,null,"",null,null,"",null,null,null,null,null,null,null,null,null,null,null,null,null,null,"",null,null,null,null,null,null,"",null,null,null,null,null,null,null,null,null,null,null,null,null,"","",null,"","",null,"",null,null,null,null,null,null,null,null,null,null,"",""]
[null,"",null,"","",null,"",null,null,null,"",null,null,"",null,null,null,null,null,null,null,null,null,null,null,null,null,null,"",null,null,null,null,null,null,"",null,null,null,null,null,null,null,null,null,null,null,null,null,"","",null,"","",null,"",null,null,null,null,null,null,null,null,null,null,"",""]
[null,"",null,"","",null,"",null,null,null,"",null,null,"",null,null,null,null,null,null,null,null,null,null,null,null,null,null,"",null,null,null,null,null,null,"",null,null,null,null,null,null,null,null,null,null,null,null,null,"","",null,"","",null,"",null,null,null,null,null,null,null,null,null,null,"",""]
[null,"",null,"","",null,"",null,null,null,"",null,null,"",null,null,null,null,null,null,null,null,null,null,null,null,null,null,"",null,null,null,null,null,null,"",null,null,null,null,null,null,null,null,null,null,null,null,null,"","",null,"","",null,"",null,null,null,null,null,null,null,null,null,null,"",""]
[null,"",null,"","",null,"",null,null,null,"",null,null,"",null,null,null,null,null,null,null,null,null,null,null,null,null,null,"",null,null,null,null,null,null,"",null,null,null,null,null,null,null,null,null,null,null,null,null,"","",null,"","",null,"",null,null,null,null,null,null,null,null,null,null,"",""]
[null,"",null,"","",null,"",null,null,null,"",null,null,"",null,null,null,null,null,null,null,null,null,null,null,null,null,null,"",null,null,null,null,null,null,"",null,null,null,null,null,null,null,null,null,null,null,null,null,"","",null,"","",null,"",null,null,null,null,null,null,null,null,null,null,"",""]
[null,"",null,"","",null,"",null,null,null,"",null,null,"",null,null,null,null,null,null,null,null,null,null,null,null,null,null,"",null,null,null,null,null,null,"",null,null,null,null,null,null,null,null,null,null,null,null,null,"","",null,"","",null,"",null,null,null,null,null,null,null,null,null,null,"",""]
[null,"",null,"","",null,"",null,null,null,"",null,null,"",null,null,null,null,null,null,null,null,null,null,null,null,null,null,"",null,null,null,null,null,null,"",null,null,null,null,null,null,null,null,null,null,null,null,null,"","",null,"","",null,"",null,null,null,null,null,null,null,null,null,null,"",""]
[null,"",null,"","",null,"",null,null,null,"",null,null,"",null,null,null,null,null,null,null,null,null,null,null,null,null,null,"",null,null,null,null,null,null,"",null,null,null,null,null,null,null,null,null,null,null,null,null,"","",null,"","",null,"",null,null,null,null,null,null,null,null,null,null,"",""]
[null,"",null,"","",null,"",null,null,null,"",null,null,"",null,null,null,null,null,null,null,null,null,null,null,null,null,null,"",null,null,null,null,null,null,"",null,null,null,null,null,null,null,null,null,null,null,null,null,"","",null,"","",null,"",null,null,null,null,null,null,null,null,null,null,"",""]
[null,"",null,"","",null,"",null,null,null,"",null,null,"",null,null,null,null,null,null,null,null,null,null,null,null,null,null,"",null,null,null,null,null,null,"",null,null,null,null,null,null,null,null,null,null,null,null,null,"","",null,"","",null,"",null,null,null,null,null,null,null,null,null,null,"",""]
[null,"",null,"","",null,"",null,null,null,"",null,null,"",null,null,null,null,null,null,null,null,null,null,null,null,null,null,"",null,null,null,null,null,null,"",null,null,null,null,null,null,null,null,null,null,null,null,null,"","",null,"","",null,"",null,null,null,null,null,null,null,null,null,null,"",""]
[null,"",null,"","",null,"",null,null,null,"",null,null,"",null,null,null,null,null,null,null,null,null,null,null,null,null,null,"",null,null,null,null,null,null,"",null,null,null,null,null,null,null,null,null,null,null,null,null,"","",null,"","",null,"",null,null,null,null,null,null,null,null,null,null,"",""]
[null,"",null,"","",null,"",null,null,null,"",null,null,"",null,null,null,null,null,null,null,null,null,null,null,null,null,null,"",null,null,null,null,null,null,"",null,null,null,null,null,null,null,null,null,null,null,null,null,"","",null,"","",null,"",null,null,null,null,null,null,null,null,null,null,"",""]
[null,"",null,"","",null,"",null,null,null,"",null,null,"",null,null,null,null,null,null,null,null,null,null,null,null,null,null,"",null,null,null,null,null,null,"",null,null,null,null,null,null,null,null,null,null,null,null,null,"","",null,"","",null,"",null,null,null,null,null,null,null,null,null,null,"",""]
[null,"",null,"","",null,"",null,null,null,"",null,null,"",null,null,null,null,null,null,null,null,null,null,null,null,null,null,"",null,null,null,null,null,null,"",null,null,null,null,null,null,null,null,null,null,null,null,null,"","",null,"","",null,"",null,null,null,null,null,null,null,null,null,null,"",""]
[null,"",null,"","",null,"",null,null,null,"",null,null,"",null,null,null,null,null,null,null,null,null,null,null,null,null,null,"",null,null,null,null,null,null,"",null,null,null,null,null,null,null,null,null,null,null,null,null,"","",null,"","",null,"",null,null,null,null,null,null,null,null,null,null,"",""]
[null,"",null,"","",null,"",null,null,null,"",null,null,"",null,null,null,null,null,null,null,null,null,null,null,null,null,null,"",null,null,null,null,null,null,"",null,null,null,null,null,null,null,null,null,null,null,null,null,"","",null,"","",null,"",null,null,null,null,null,null,null,null,null,null,"",""]
[null,"",null,"","",null,"",null,null,null,"",null,null,"",null,null,null,null,null,null,null,null,null,null,null,null,null,null,"",null,null,null,null,null,null,"",null,null,null,null,null,null,null,null,null,null,null,null,null,"","",null,"","",null,"",null,null,null,null,null,null,null,null,null,null,"",""]
[null,"",null,"","",null,"",null,null,null,"",null,null,"",null,null,null,null,null,null,null,null,null,null,null,null,null,null,"",null,null,null,null,null,null,"",null,null,null,null,null,null,null,null,null,null,null,null,null,"","",null,"","",null,"",null,null,null,null,null,null,null,null,null,null,"",""]
[null,"",null,"","",null,"",null,null,null,"",null,null,"",null,null,null,null,null,null,null,null,null,null,null,null,null,null,"",null,null,null,null,null,null,"",null,null,null,null,null,null,null,null,null,null,null,null,null,"","",null,"","",null,"",null,null,null,null,null,null,null,null,null,null,"",""]
[null,"",null,"","",null,"",null,null,null,"",null,null,"",null,null,null,null,null,null,null,null,null,null,null,null,null,null,"",null,null,null,null,null,null,"",null,null,null,null,null,null,null,null,null,null,null,null,null,"","",null,"","",null,"",null,null,null,null,null,null,null,null,null,null,"",""]
[null,"",null,"","",null,"",null,null,null,"",null,null,"",null,null,null,null,null,null,null,null,null,null,null,null,null,null,"",null,null,null,null,null,null,"",null,null,null,null,null,null,null,null,null,null,null,null,null,"","",null,"","",null,"",null,null,null,null,null,null,null,null,null,null,"",""]
[null,"",null,"","",null,"",null,null,null,"",null,null,"",null,null,null,null,null,null,null,null,null,null,null,null,null,null,"",null,null,null,null,null,null,"",null,null,null,null,null,null,null,null,null,null,null,null,null,"","",null,"","",null,"",null,null,null,null,null,null,null,null,null,null,"",""]
[null,"",null,"","",null,"",null,null,null,"",null,null,"",null,null,null,null,null,null,null,null,null,null,null,null,null,null,"",null,null,null,null,null,null,"",null,null,null,null,null,null,null,null,null,null,null,null,null,"","",null,"","",null,"",null,null,null,null,null,null,null,null,null,null,"",""]
[null,"",null,"","",null,"",null,null,null,"",null,null,"",null,null,null,null,null,null,null,null,null,null,null,null,null,null,"",null,null,null,null,null,null,"",null,null,null,null,null,null,null,null,null,null,null,null,null,"","",null,"","",null,"",null,null,null,null,null,null,null,null,null,null,"",""]
[null,"",null,"","",null,"",null,null,null,"",null,null,"",null,null,null,null,null,null,null,null,null,null,null,null,null,null,"",null,null,null,null,null,null,"",null,null,null,null,null,null,null,null,null,null,null,null,null,"","",null,"","",null,"",null,null,null,null,null,null,null,null,null,null,"",""]
[null,"",null,"","",null,"",null,null,null,"",null,null,"",null,null,null,null,null,null,null,null,null,null,null,null,null,null,"",null,null,null,null,null,null,"",null,null,null,null,null,null,null,null,null,null,null,null,null,"","",null,"","",null,"",null,null,null,null,null,null,null,null,null,null,"",""]
[null,"",null,"","",null,"",null,null,null,"",null,null,"",null,null,null,null,null,null,null,null,null,null,null,null,null,null,"",null,null,null,null,null,null,"",null,null,null,null,null,null,null,null,null,null,null,null,null,"","",null,"","",null,"",null,null,null,null,null,null,null,null,null,null,"",""]
[null,"",null,"","",null,"",null,null,null,"",null,null,"",null,null,null,null,null,null,null,null,null,null,null,null,null,null,"",null,null,null,null,null,null,"",null,null,null,null,null,null,null,null,null,null,null,null,null,"","",null,"","",null,"",null,null,null,null,null,null,null,null,null,null,"",""]
[null,"",null,"","",null,"",null,null,null,"",null,null,"",null,null,null,null,null,null,null,null,null,null,null,null,null,null,"",null,null,null,null,null,null,"",null,null,null,null,null,null,null,null,null,null,null,null,null,"","",null,"","",null,"",null,null,null,null,null,null,null,null,null,null,"",""]
[null,"",null,"","",null,"",null,null,null,"",null,null,"",null,null,null,null,null,null,null,null,null,null,null,null,null,null,"",null,null,null,null,null,null,"",null,null,null,null,null,null,null,null,null,null,null,null,null,"","",null,"","",null,"",null,null,null,null,null,null,null,null,null,null,"",""]
[null,"",null,"","",null,"",null,null,null,"",null,null,"",null,null,null,null,null,null,null,null,null,null,null,null,null,null,"",null,null,null,null,null,null,"",null,null,null,null,null,null,null,null,null,null,null,null,null,"","",null,"","",null,"",null,null,null,null,null,null,null,null,null,null,"",""]
[null,"",null,"","",null,"",null,null,null,"",null,null,"",null,null,null,null,null,null,null,null,null,null,null,null,null,null,"",null,null,null,null,null,null,"",null,null,null,null,null,null,null,null,null,null,null,null,null,"","",null,"","",null,"",null,null,null,null,null,null,null,null,null,null,"",""]
[null,"",null,"","",null,"",null,null,null,"",null,null,"",null,null,null,null,null,null,null,null,null,null,null,null,null,null,"",null,null,null,null,null,null,"",null,null,null,null,null,null,null,null,null,null,null,null,null,"","",null,"","",null,"",null,null,null,null,null,null,null,null,null,null,"",""]
[null,"",null,"","",null,"",null,null,null,"",null,null,"",null,null,null,null,null,null,null,null,null,null,null,null,null,null,"",null,null,null,null,null,null,"",null,null,null,null,null,null,null,null,null,null,null,null,null,"","",null,"","",null,"",null,null,null,null,null,null,null,null,null,null,"",""]
[null,"",null,"","",null,"",null,null,null,"",null,null,"",null,null,null,null,null,null,null,null,null,null,null,null,null,null,"",null,null,null,null,null,null,"",null,null,null,null,null,null,null,null,null,null,null,null,null,"","",null,"","",null,"",null,null,null,null,null,null,null,null,null,null,"",""]
[null,"",null,"","",null,"",null,null,null,"",null,null,"",null,null,null,null,null,null,null,null,null,null,null,null,null,null,"",null,null,null,null,null,null,"",null,null,null,null,null,null,null,null,null,null,null,null,null,"","",null,"","",null,"",null,null,null,null,null,null,null,null,null,null,"",""]
[null,"",null,"","",null,"",null,null,null,"",null,null,"",null,null,null,null,null,null,null,null,null,null,null,null,null,null,"",null,null,null,null,null,null,"",null,null,null,null,null,null,null,null,null,null,null,null,null,"","",null,"","",null,"",null,null,null,null,null,null,null,null,null,null,"",""]
[null,"",null,"","",null,"",null,null,null,"",null,null,"",null,null,null,null,null,null,null,null,null,null,null,null,null,null,"",null,null,null,null,null,null,"",null,null,null,null,null,null,null,null,null,null,null,null,null,"","",null,"","",null,"",null,null,null,null,null,null,null,null,null,null,"",""]
[null,"",null,"","",null,"",null,null,null,"",null,null,"",null,null,null,null,null,null,null,null,null,null,null,null,null,null,"",null,null,null,null,null,null,"",null,null,null,null,null,null,null,null,null,null,null,null,null,"","",null,"","",null,"",null,null,null,null,null,null,null,null,null,null,"",""]
[null,"",null,"","",null,"",null,null,null,"",null,null,"",null,null,null,null,null,null,null,null,null,null,null,null,null,null,"",null,null,null,null,null,null,"",null,null,null,null,null,null,null,null,null,null,null,null,null,"","",null,"","",null,"",null,null,null,null,null,null,null,null,null,null,"",""]
[null,"",null,"","",null,"",null,null,null,"",null,null,"",null,null,null,null,null,null,null,null,null,null,null,null,null,null,"",null,null,null,null,null,null,"",null,null,null,null,null,null,null,null,null,null,null,null,null,"","",null,"","",null,"",null,null,null,null,null,null,null,null,null,null,"",""]
[null,"",null,"","",null,"",null,null,null,"",null,null,"",null,null,null,null,null,null,null,null,null,null,null,null,null,null,"",null,null,null,null,null,null,"",null,null,null,null,null,null,null,null,null,null,null,null,null,"","",null,"","",null,"",null,null,null,null,null,null,null,null,null,null,"",""]
[null,"",null,"","",null,"",null,null,null,"",null,null,"",null,null,null,null,null,null,null,null,null,null,null,null,null,null,"",null,null,null,null,null,null,"",null,null,null,null,null,null,null,null,null,null,null,null,null,"","",null,"","",null,"",null,null,null,null,null,null,null,null,null,null,"",""]
[null,"",null,"","",null,"",null,null,null,"",null,null,"",null,null,null,null,null,null,null,null,null,null,null,null,null,null,"",null,null,null,null,null,null,"",null,null,null,null,null,null,null,null,null,null,null,null,null,"","",null,"","",null,"",null,null,null,null,null,null,null,null,null,null,"",""]
[null,"",null,"","",null,"",null,null,null,"",null,null,"",null,null,null,null,null,null,null,null,null,null,null,null,null,null,"",null,null,null,null,null,null,"",null,null,null,null,null,null,null,null,null,null,null,null,null,"","",null,"","",null,"",null,null,null,null,null,null,null,null,null,null,"",""]
[null,"",null,"","",null,"",null,null,null,"",null,null,"",null,null,null,null,null,null,null,null,null,null,null,null,null,null,"",null,null,null,null,null,null,"",null,null,null,null,null,null,null,null,null,null,null,null,null,"","",null,"","",null,"",null,null,null,null,null,null,null,null,null,null,"",""]
[null,"",null,"","",null,"",null,null,null,"",null,null,"",null,null,null,null,null,null,null,null,null,null,null,null,null,null,"",null,null,null,null,null,null,"",null,null,null,null,null,null,null,null,null,null,null,null,null,"","",null,"","",null,"",null,null,null,null,null,null,null,null,null,null,"",""]
[null,"",null,"","",null,"",null,null,null,"",null,null,"",null,null,null,null,null,null,null,null,null,null,null,null,null,null,"",null,null,null,null,null,null,"",null,null,null,null,null,null,null,null,null,null,null,null,null,"","",null,"","",null,"",null,null,null,null,null,null,null,null,null,null,"",""]
[null,"",null,"","",null,"",null,null,null,"",null,null,"",null,null,null,null,null,null,null,null,null,null,null,null,null,null,"",null,null,null,null,null,null,"",null,null,null,null,null,null,null,null,null,null,null,null,null,"","",null,"","",null,"",null,null,null,null,null,null,null,null,null,null,"",""]
[null,"",null,"","",null,"",null,null,null,"",null,null,"",null,null,null,null,null,null,null,null,null,null,null,null,null,null,"",null,null,null,null,null,null,"",null,null,null,null,null,null,null,null,null,null,null,null,null,"","",null,"","",null,"",null,null,null,null,null,null,null,null,null,null,"",""]
[null,"",null,"","",null,"",null,null,null,"",null,null,"",null,null,null,null,null,null,null,null,null,null,null,null,null,null,"",null,null,null,null,null,null,"",null,null,null,null,null,null,null,null,null,null,null,null,null,"","",null,"","",null,"",null,null,null,null,null,null,null,null,null,null,"",""]
[null,"",null,"","",null,"",null,null,null,"",null,null,"",null,null,null,null,null,null,null,null,null,null,null,null,null,null,"",null,null,null,null,null,null,"",null,null,null,null,null,null,null,null,null,null,null,null,null,"","",null,"","",null,"",null,null,null,null,null,null,null,null,null,null,"",""]
[null,"",null,"","",null,"",null,null,null,"",null,null,"",null,null,null,null,null,null,null,null,null,null,null,null,null,null,"",null,null,null,null,null,null,"",null,null,null,null,null,null,null,null,null,null,null,null,null,"","",null,"","",null,"",null,null,null,null,null,null,null,null,null,null,"",""]
[null,"",null,"","",null,"",null,null,null,"",null,null,"",null,null,null,null,null,null,null,null,null,null,null,null,null,null,"",null,null,null,null,null,null,"",null,null,null,null,null,null,null,null,null,null,null,null,null,"","",null,"","",null,"",null,null,null,null,null,null,null,null,null,null,"",""]
[null,"",null,"","",null,"",null,null,null,"",null,null,"",null,null,null,null,null,null,null,null,null,null,null,null,null,null,"",null,null,null,null,null,null,"",null,null,null,null,null,null,null,null,null,null,null,null,null,"","",null,"","",null,"",null,null,null,null,null,null,null,null,null,null,"",""]
[null,"",null,"","",null,"",null,null,null,"",null,null,"",null,null,null,null,null,null,null,null,null,null,null,null,null,null,"",null,null,null,null,null,null,"",null,null,null,null,null,null,null,null,null,null,null,null,null,"","",null,"","",null,"",null,null,null,null,null,null,null,null,null,null,"",""]
[null,"",null,"","",null,"",null,null,null,"",null,null,"",null,null,null,null,null,null,null,null,null,null,null,null,null,null,"",null,null,null,null,null,null,"",null,null,null,null,null,null,null,null,null,null,null,null,null,"","",null,"","",null,"",null,null,null,null,null,null,null,null,null,null,"",""]
[null,{"$f":"IF(OR($A436=\"English\",$A436=\"Ελληνικά\"),\"Individual\",\"\")","v":""},null,{"$f":"IF(OR($A436=\"English\",$A436=\"Ελληνικά\"),\"Standard\",\"\")","v":""},{"$f":"IF(OR($A436=\"English\",$A436=\"Ελληνικά\"),\"Small/Medium Enterprise\",\"\")","v":""},null,"",null,null,null,"",null,null,"",null,null,null,null,null,null,null,null,null,null,null,null,null,null,"",null,null,null,null,null,null,"",null,null,null,null,null,null,null,null,null,null,null,null,null,"","",null,"","",null,"",null,null,null,null,null,null,null,null,null,null,"",""]
[null,"",null,"","",null,{"$f":"IF(A437=\"\",\"\",IF(AH437=\"Ammochostos\",\"Famagusta\",IF(AH437=\"Larnaka\",\"Larnaca\",IF(AH437=\"Lemesos\",\"Limassol\",IF(AH437=\"Nicosia\",\"Nicosia\",IF(AH437=\"Pafos\",\"Paphos\",\"Central Offices\"))))))","v":""},null,null,null,"",null,null,"",null,null,null,null,null,null,null,null,null,null,null,null,null,null,{"$f":"IF(OR($A437=\"English\",$A437=\"Ελληνικά\"),\"Residence\",\"\")","v":""},null,null,null,null,null,null,{"$f":"IF(OR($A437=\"English\",$A437=\"Ελληνικά\"),\"Yes\",\"\")","v":""},null,null,null,null,null,null,null,null,null,null,null,null,null,{"$f":"IF(OR($A437=\"English\",$A437=\"Ελληνικά\"),\"Yes\",\"\")","v":""},{"$f":"IF(OR($A437=\"English\",$A437=\"Ελληνικά\"),\"Primary\",\"\")","v":""},null,{"$f":"IF(OR($A437=\"English\",$A437=\"Ελληνικά\"),\"Yes\",\"\")","v":""},"",null,"",null,null,null,null,null,null,null,null,null,null,"",{"$f":"IF(OR($A437=\"English\",$A437=\"Ελληνικά\"),\"INDIVIDUAL WITHOUT RETURN SUBMISSION OBLIGATION\",\"\")","v":""}]
[null,"",null,"","",null,"",null,null,null,{"$f":"IF(OR($A438=\"English\",$A438=\"Ελληνικά\"),\"Yes\",\"\")","v":""},null,null,{"$f":"IF($T438=\"Male\", \"Mr\", IF($T438=\"Female\", \"Mrs\", \"\"))","v":""},null,null,null,null,null,null,null,null,null,null,null,null,null,null,"",null,null,null,null,null,null,"",null,null,null,null,null,null,null,null,null,null,null,null,null,"","",null,"",{"$f":"IF(OR($A438=\"English\",$A438=\"Ελληνικά\"),\"Social Insurance\",\"\")","v":""},null,{"$f":"IF(OR($A438=\"English\",$A438=\"Ελληνικά\"),\"Cyprus\",\"\")","v":""},null,null,null,null,null,null,null,null,null,null,{"$f":"IF(OR($A438=\"English\",$A438=\"Ελληνικά\"),\"Applicant / Taxpayer\",\"\")","v":""},""]
[null,"",null,"","",null,"",null,null,null,"",null,null,"",null,null,null,null,null,null,null,null,null,null,null,null,null,null,"",null,null,null,null,null,null,"",null,null,null,null,null,null,null,null,null,null,null,null,null,"","",null,"","",null,"",null,null,null,null,null,null,null,null,null,null,"",""]
[null,"",null,"","",null,"",null,null,null,"",null,null,"",null,null,null,null,null,null,null,null,null,null,null,null,null,null,"",null,null,null,null,null,null,"",null,null,null,null,null,null,null,null,null,null,null,null,null,"","",null,"","",null,"",null,null,null,null,null,null,null,null,null,null,"",""]
[null,"",null,"","",null,"",null,null,null,"",null,null,"",null,null,null,null,null,null,null,null,null,null,null,null,null,null,"",null,null,null,null,null,null,"",null,null,null,null,null,null,null,null,null,null,null,null,null,"","",null,"","",null,"",null,null,null,null,null,null,null,null,null,null,"",""]
[null,"",null,"","",null,"",null,null,null,"",null,null,"",null,null,null,null,null,null,null,null,null,null,null,null,null,null,"",null,null,null,null,null,null,"",null,null,null,null,null,null,null,null,null,null,null,null,null,"","",null,"","",null,"",null,null,null,null,null,null,null,null,null,null,"",""]
[null,"",null,"","",null,"",null,null,null,"",null,null,"",null,null,null,null,null,null,null,null,null,null,null,null,null,null,"",null,null,null,null,null,null,"",null,null,null,null,null,null,null,null,null,null,null,null,null,"","",null,"","",null,"",null,null,null,null,null,null,null,null,null,null,"",""]
[null,"",null,"","",null,"",null,null,null,"",null,null,"",null,null,null,null,null,null,null,null,null,null,null,null,null,null,"",null,null,null,null,null,null,"",null,null,null,null,null,null,null,null,null,null,null,null,null,"","",null,"","",null,"",null,null,null,null,null,null,null,null,null,null,"",""]
[null,"",null,"","",null,"",null,null,null,"",null,null,"",null,null,null,null,null,null,null,null,null,null,null,null,null,null,"",null,null,null,null,null,null,"",null,null,null,null,null,null,null,null,null,null,null,null,null,"","",null,"","",null,"",null,null,null,null,null,null,null,null,null,null,"",""]
[null,"",null,"","",null,"",null,null,null,"",null,null,"",null,null,null,null,null,null,null,null,null,null,null,null,null,null,"",null,null,null,null,null,null,"",null,null,null,null,null,null,null,null,null,null,null,null,null,"","",null,"","",null,"",null,null,null,null,null,null,null,null,null,null,"",""]
[null,"",null,"","",null,"",null,null,null,"",null,null,"",null,null,null,null,null,null,null,null,null,null,null,null,null,null,"",null,null,null,null,null,null,"",null,null,null,null,null,null,null,null,null,null,null,null,null,"","",null,"","",null,"",null,null,null,null,null,null,null,null,null,null,"",""]
[null,"",null,"","",null,"",null,null,null,"",null,null,"",null,null,null,null,null,null,null,null,null,null,null,null,null,null,"",null,null,null,null,null,null,"",null,null,null,null,null,null,null,null,null,null,null,null,null,"","",null,"","",null,"",null,null,null,null,null,null,null,null,null,null,"",""]
[null,"",null,"","",null,"",null,null,null,"",null,null,"",null,null,null,null,null,null,null,null,null,null,null,null,null,null,"",null,null,null,null,null,null,"",null,null,null,null,null,null,null,null,null,null,null,null,null,"","",null,"","",null,"",null,null,null,null,null,null,null,null,null,null,"",""]
[null,"",null,"","",null,"",null,null,null,"",null,null,"",null,null,null,null,null,null,null,null,null,null,null,null,null,null,"",null,null,null,null,null,null,"",null,null,null,null,null,null,null,null,null,null,null,null,null,"","",null,"","",null,"",null,null,null,null,null,null,null,null,null,null,"",""]
[null,"",null,"","",null,"",null,null,null,"",null,null,"",null,null,null,null,null,null,null,null,null,null,null,null,null,null,"",null,null,null,null,null,null,"",null,null,null,null,null,null,null,null,null,null,null,null,null,"","",null,"","",null,"",null,null,null,null,null,null,null,null,null,null,"",""]
[null,"",null,"","",null,"",null,null,null,"",null,null,"",null,null,null,null,null,null,null,null,null,null,null,null,null,null,"",null,null,null,null,null,null,"",null,null,null,null,null,null,null,null,null,null,null,null,null,"","",null,"","",null,"",null,null,null,null,null,null,null,null,null,null,"",""]
[null,"",null,"","",null,"",null,null,null,"",null,null,"",null,null,null,null,null,null,null,null,null,null,null,null,null,null,"",null,null,null,null,null,null,"",null,null,null,null,null,null,null,null,null,null,null,null,null,"","",null,"","",null,"",null,null,null,null,null,null,null,null,null,null,"",""]
[null,"",null,"","",null,"",null,null,null,"",null,null,"",null,null,null,null,null,null,null,null,null,null,null,null,null,null,"",null,null,null,null,null,null,"",null,null,null,null,null,null,null,null,null,null,null,null,null,"","",null,"","",null,"",null,null,null,null,null,null,null,null,null,null,"",""]
[null,"",null,"","",null,"",null,null,null,"",null,null,"",null,null,null,null,null,null,null,null,null,null,null,null,null,null,"",null,null,null,null,null,null,"",null,null,null,null,null,null,null,null,null,null,null,null,null,"","",null,"","",null,"",null,null,null,null,null,null,null,null,null,null,"",""]
[null,"",null,"","",null,"",null,null,null,"",null,null,"",null,null,null,null,null,null,null,null,null,null,null,null,null,null,"",null,null,null,null,null,null,"",null,null,null,null,null,null,null,null,null,null,null,null,null,"","",null,"","",null,"",null,null,null,null,null,null,null,null,null,null,"",""]
[null,"",null,"","",null,"",null,null,null,"",null,null,"",null,null,null,null,null,null,null,null,null,null,null,null,null,null,"",null,null,null,null,null,null,"",null,null,null,null,null,null,null,null,null,null,null,null,null,"","",null,"","",null,"",null,null,null,null,null,null,null,null,null,null,"",""]
[null,"",null,"","",null,"",null,null,null,"",null,null,"",null,null,null,null,null,null,null,null,null,null,null,null,null,null,"",null,null,null,null,null,null,"",null,null,null,null,null,null,null,null,null,null,null,null,null,"","",null,"","",null,"",null,null,null,null,null,null,null,null,null,null,"",""]
[null,"",null,"","",null,"",null,null,null,"",null,null,"",null,null,null,null,null,null,null,null,null,null,null,null,null,null,"",null,null,null,null,null,null,"",null,null,null,null,null,null,null,null,null,null,null,null,null,"","",null,"","",null,"",null,null,null,null,null,null,null,null,null,null,"",""]
[null,"",null,"","",null,"",null,null,null,"",null,null,"",null,null,null,null,null,null,null,null,null,null,null,null,null,null,"",null,null,null,null,null,null,"",null,null,null,null,null,null,null,null,null,null,null,null,null,"","",null,"","",null,"",null,null,null,null,null,null,null,null,null,null,"",""]
[null,"",null,"","",null,"",null,null,null,"",null,null,"",null,null,null,null,null,null,null,null,null,null,null,null,null,null,"",null,null,null,null,null,null,"",null,null,null,null,null,null,null,null,null,null,null,null,null,"","",null,"","",null,"",null,null,null,null,null,null,null,null,null,null,"",""]
[null,"",null,"","",null,"",null,null,null,"",null,null,"",null,null,null,null,null,null,null,null,null,null,null,null,null,null,"",null,null,null,null,null,null,"",null,null,null,null,null,null,null,null,null,null,null,null,null,"","",null,"","",null,"",null,null,null,null,null,null,null,null,null,null,"",""]
[null,"",null,"","",null,"",null,null,null,"",null,null,"",null,null,null,null,null,null,null,null,null,null,null,null,null,null,"",null,null,null,null,null,null,"",null,null,null,null,null,null,null,null,null,null,null,null,null,"","",null,"","",null,"",null,null,null,null,null,null,null,null,null,null,"",""]
[null,"",null,"","",null,"",null,null,null,"",null,null,"",null,null,null,null,null,null,null,null,null,null,null,null,null,null,"",null,null,null,null,null,null,"",null,null,null,null,null,null,null,null,null,null,null,null,null,"","",null,"","",null,"",null,null,null,null,null,null,null,null,null,null,"",""]
[null,"",null,"","",null,"",null,null,null,"",null,null,"",null,null,null,null,null,null,null,null,null,null,null,null,null,null,"",null,null,null,null,null,null,"",null,null,null,null,null,null,null,null,null,null,null,null,null,"","",null,"","",null,"",null,null,null,null,null,null,null,null,null,null,"",""]
[null,"",null,"","",null,"",null,null,null,"",null,null,"",null,null,null,null,null,null,null,null,null,null,null,null,null,null,"",null,null,null,null,null,null,"",null,null,null,null,null,null,null,null,null,null,null,null,null,"","",null,"","",null,"",null,null,null,null,null,null,null,null,null,null,"",""]
[null,"",null,"","",null,"",null,null,null,"",null,null,"",null,null,null,null,null,null,null,null,null,null,null,null,null,null,"",null,null,null,null,null,null,"",null,null,null,null,null,null,null,null,null,null,null,null,null,"","",null,"","",null,"",null,null,null,null,null,null,null,null,null,null,"",""]
[null,"",null,"","",null,"",null,null,null,"",null,null,"",null,null,null,null,null,null,null,null,null,null,null,null,null,null,"",null,null,null,null,null,null,"",null,null,null,null,null,null,null,null,null,null,null,null,null,"","",null,"","",null,"",null,null,null,null,null,null,null,null,null,null,"",""]
[null,"",null,"","",null,"",null,null,null,"",null,null,"",null,null,null,null,null,null,null,null,null,null,null,null,null,null,"",null,null,null,null,null,null,"",null,null,null,null,null,null,null,null,null,null,null,null,null,"","",null,"","",null,"",null,null,null,null,null,null,null,null,null,null,"",""]
[null,"",null,"","",null,"",null,null,null,"",null,null,"",null,null,null,null,null,null,null,null,null,null,null,null,null,null,"",null,null,null,null,null,null,"",null,null,null,null,null,null,null,null,null,null,null,null,null,"","",null,"","",null,"",null,null,null,null,null,null,null,null,null,null,"",""]
[null,"",null,"","",null,"",null,null,null,"",null,null,"",null,null,null,null,null,null,null,null,null,null,null,null,null,null,"",null,null,null,null,null,null,"",null,null,null,null,null,null,null,null,null,null,null,null,null,"","",null,"","",null,"",null,null,null,null,null,null,null,null,null,null,"",""]
[null,"",null,"","",null,"",null,null,null,"",null,null,"",null,null,null,null,null,null,null,null,null,null,null,null,null,null,"",null,null,null,null,null,null,"",null,null,null,null,null,null,null,null,null,null,null,null,null,"","",null,"","",null,"",null,null,null,null,null,null,null,null,null,null,"",""]
[null,"",null,"","",null,"",null,null,null,"",null,null,"",null,null,null,null,null,null,null,null,null,null,null,null,null,null,"",null,null,null,null,null,null,"",null,null,null,null,null,null,null,null,null,null,null,null,null,"","",null,"","",null,"",null,null,null,null,null,null,null,null,null,null,"",""]
[null,"",null,"","",null,"",null,null,null,"",null,null,"",null,null,null,null,null,null,null,null,null,null,null,null,null,null,"",null,null,null,null,null,null,"",null,null,null,null,null,null,null,null,null,null,null,null,null,"","",null,"","",null,"",null,null,null,null,null,null,null,null,null,null,"",""]
[null,"",null,"","",null,"",null,null,null,"",null,null,"",null,null,null,null,null,null,null,null,null,null,null,null,null,null,"",null,null,null,null,null,null,"",null,null,null,null,null,null,null,null,null,null,null,null,null,"","",null,"","",null,"",null,null,null,null,null,null,null,null,null,null,"",""]
[null,"",null,"","",null,"",null,null,null,"",null,null,"",null,null,null,null,null,null,null,null,null,null,null,null,null,null,"",null,null,null,null,null,null,"",null,null,null,null,null,null,null,null,null,null,null,null,null,"","",null,"","",null,"",null,null,null,null,null,null,null,null,null,null,"",""]
[null,"",null,"","",null,"",null,null,null,"",null,null,"",null,null,null,null,null,null,null,null,null,null,null,null,null,null,"",null,null,null,null,null,null,"",null,null,null,null,null,null,null,null,null,null,null,null,null,"","",null,"","",null,"",null,null,null,null,null,null,null,null,null,null,"",""]
[null,"",null,"","",null,"",null,null,null,"",null,null,"",null,null,null,null,null,null,null,null,null,null,null,null,null,null,"",null,null,null,null,null,null,"",null,null,null,null,null,null,null,null,null,null,null,null,null,"","",null,"","",null,"",null,null,null,null,null,null,null,null,null,null,"",""]
[null,"",null,"","",null,"",null,null,null,"",null,null,"",null,null,null,null,null,null,null,null,null,null,null,null,null,null,"",null,null,null,null,null,null,"",null,null,null,null,null,null,null,null,null,null,null,null,null,"","",null,"","",null,"",null,null,null,null,null,null,null,null,null,null,"",""]
[null,"",null,"","",null,"",null,null,null,"",null,null,"",null,null,null,null,null,null,null,null,null,null,null,null,null,null,"",null,null,null,null,null,null,"",null,null,null,null,null,null,null,null,null,null,null,null,null,"","",null,"","",null,"",null,null,null,null,null,null,null,null,null,null,"",""]
[null,"",null,"","",null,"",null,null,null,"",null,null,"",null,null,null,null,null,null,null,null,null,null,null,null,null,null,"",null,null,null,null,null,null,"",null,null,null,null,null,null,null,null,null,null,null,null,null,"","",null,"","",null,"",null,null,null,null,null,null,null,null,null,null,"",""]
[null,"",null,"","",null,"",null,null,null,"",null,null,"",null,null,null,null,null,null,null,null,null,null,null,null,null,null,"",null,null,null,null,null,null,"",null,null,null,null,null,null,null,null,null,null,null,null,null,"","",null,"","",null,"",null,null,null,null,null,null,null,null,null,null,"",""]
[null,"",null,"","",null,"",null,null,null,"",null,null,"",null,null,null,null,null,null,null,null,null,null,null,null,null,null,"",null,null,null,null,null,null,"",null,null,null,null,null,null,null,null,null,null,null,null,null,"","",null,"","",null,"",null,null,null,null,null,null,null,null,null,null,"",""]
[null,"",null,"","",null,"",null,null,null,"",null,null,"",null,null,null,null,null,null,null,null,null,null,null,null,null,null,"",null,null,null,null,null,null,"",null,null,null,null,null,null,null,null,null,null,null,null,null,"","",null,"","",null,"",null,null,null,null,null,null,null,null,null,null,"",""]
[null,"",null,"","",null,"",null,null,null,"",null,null,"",null,null,null,null,null,null,null,null,null,null,null,null,null,null,"",null,null,null,null,null,null,"",null,null,null,null,null,null,null,null,null,null,null,null,null,"","",null,"","",null,"",null,null,null,null,null,null,null,null,null,null,"",""]
[null,"",null,"","",null,"",null,null,null,"",null,null,"",null,null,null,null,null,null,null,null,null,null,null,null,null,null,"",null,null,null,null,null,null,"",null,null,null,null,null,null,null,null,null,null,null,null,null,"","",null,"","",null,"",null,null,null,null,null,null,null,null,null,null,"",""]
[null,"",null,"","",null,"",null,null,null,"",null,null,"",null,null,null,null,null,null,null,null,null,null,null,null,null,null,"",null,null,null,null,null,null,"",null,null,null,null,null,null,null,null,null,null,null,null,null,"","",null,"","",null,"",null,null,null,null,null,null,null,null,null,null,"",""]
[null,"",null,"","",null,"",null,null,null,"",null,null,"",null,null,null,null,null,null,null,null,null,null,null,null,null,null,"",null,null,null,null,null,null,"",null,null,null,null,null,null,null,null,null,null,null,null,null,"","",null,"","",null,"",null,null,null,null,null,null,null,null,null,null,"",""]
[null,"",null,"","",null,"",null,null,null,"",null,null,"",null,null,null,null,null,null,null,null,null,null,null,null,null,null,"",null,null,null,null,null,null,"",null,null,null,null,null,null,null,null,null,null,null,null,null,"","",null,"","",null,"",null,null,null,null,null,null,null,null,null,null,"",""]
[null,"",null,"","",null,"",null,null,null,"",null,null,"",null,null,null,null,null,null,null,null,null,null,null,null,null,null,"",null,null,null,null,null,null,"",null,null,null,null,null,null,null,null,null,null,null,null,null,"","",null,"","",null,"",null,null,null,null,null,null,null,null,null,null,"",""]
[null,"",null,"","",null,"",null,null,null,"",null,null,"",null,null,null,null,null,null,null,null,null,null,null,null,null,null,"",null,null,null,null,null,null,"",null,null,null,null,null,null,null,null,null,null,null,null,null,"","",null,"","",null,"",null,null,null,null,null,null,null,null,null,null,"",""]
[null,"",null,"","",null,"",null,null,null,"",null,null,"",null,null,null,null,null,null,null,null,null,null,null,null,null,null,"",null,null,null,null,null,null,"",null,null,null,null,null,null,null,null,null,null,null,null,null,"","",null,"","",null,"",null,null,null,null,null,null,null,null,null,null,"",""]
[null,"",null,"","",null,"",null,null,null,"",null,null,"",null,null,null,null,null,null,null,null,null,null,null,null,null,null,"",null,null,null,null,null,null,"",null,null,null,null,null,null,null,null,null,null,null,null,null,"","",null,"","",null,"",null,null,null,null,null,null,null,null,null,null,"",""]
[null,"",null,"","",null,"",null,null,null,"",null,null,"",null,null,null,null,null,null,null,null,null,null,null,null,null,null,"",null,null,null,null,null,null,"",null,null,null,null,null,null,null,null,null,null,null,null,null,"","",null,"","",null,"",null,null,null,null,null,null,null,null,null,null,"",""]
[null,"",null,"","",null,"",null,null,null,"",null,null,"",null,null,null,null,null,null,null,null,null,null,null,null,null,null,"",null,null,null,null,null,null,"",null,null,null,null,null,null,null,null,null,null,null,null,null,"","",null,"","",null,"",null,null,null,null,null,null,null,null,null,null,"",""]
[null,"",null,"","",null,"",null,null,null,"",null,null,"",null,null,null,null,null,null,null,null,null,null,null,null,null,null,"",null,null,null,null,null,null,"",null,null,null,null,null,null,null,null,null,null,null,null,null,"","",null,"","",null,"",null,null,null,null,null,null,null,null,null,null,"",""]
[null,"",null,"","",null,"",null,null,null,"",null,null,"",null,null,null,null,null,null,null,null,null,null,null,null,null,null,"",null,null,null,null,null,null,"",null,null,null,null,null,null,null,null,null,null,null,null,null,"","",null,"","",null,"",null,null,null,null,null,null,null,null,null,null,"",""]
[null,"",null,"","",null,"",null,null,null,"",null,null,"",null,null,null,null,null,null,null,null,null,null,null,null,null,null,"",null,null,null,null,null,null,"",null,null,null,null,null,null,null,null,null,null,null,null,null,"","",null,"","",null,"",null,null,null,null,null,null,null,null,null,null,"",""]
[null,"",null,"","",null,"",null,null,null,"",null,null,"",null,null,null,null,null,null,null,null,null,null,null,null,null,null,"",null,null,null,null,null,null,"",null,null,null,null,null,null,null,null,null,null,null,null,null,"","",null,"","",null,"",null,null,null,null,null,null,null,null,null,null,"",""]
[null,{"$f":"IF(OR($A500=\"English\",$A500=\"Ελληνικά\"),\"Individual\",\"\")","v":""},null,{"$f":"IF(OR($A500=\"English\",$A500=\"Ελληνικά\"),\"Standard\",\"\")","v":""},{"$f":"IF(OR($A500=\"English\",$A500=\"Ελληνικά\"),\"Small/Medium Enterprise\",\"\")","v":""},null,"",null,null,null,"",null,null,"",null,null,null,null,null,null,null,null,null,null,null,null,null,null,"",null,null,null,null,null,null,"",null,null,null,null,null,null,null,null,null,null,null,null,null,"","",null,"","",null,"",null,null,null,null,null,null,null,null,null,null,"",""]
[null,"",null,"","",null,{"$f":"IF(A501=\"\",\"\",IF(AH501=\"Ammochostos\",\"Famagusta\",IF(AH501=\"Larnaka\",\"Larnaca\",IF(AH501=\"Lemesos\",\"Limassol\",IF(AH501=\"Nicosia\",\"Nicosia\",IF(AH501=\"Pafos\",\"Paphos\",\"Central Offices\"))))))","v":""},null,null,null,"",null,null,"",null,null,null,null,null,null,null,null,null,null,null,null,null,null,{"$f":"IF(OR($A501=\"English\",$A501=\"Ελληνικά\"),\"Residence\",\"\")","v":""},null,null,null,null,null,null,{"$f":"IF(OR($A501=\"English\",$A501=\"Ελληνικά\"),\"Yes\",\"\")","v":""},null,null,null,null,null,null,null,null,null,null,null,null,null,{"$f":"IF(OR($A501=\"English\",$A501=\"Ελληνικά\"),\"Yes\",\"\")","v":""},{"$f":"IF(OR($A501=\"English\",$A501=\"Ελληνικά\"),\"Primary\",\"\")","v":""},null,{"$f":"IF(OR($A501=\"English\",$A501=\"Ελληνικά\"),\"Yes\",\"\")","v":""},"",null,"",null,null,null,null,null,null,null,null,null,null,"",{"$f":"IF(OR($A501=\"English\",$A501=\"Ελληνικά\"),\"INDIVIDUAL WITHOUT RETURN SUBMISSION OBLIGATION\",\"\")","v":""}]
[null,"",null,"","",null,"",null,null,null,{"$f":"IF(OR($A502=\"English\",$A502=\"Ελληνικά\"),\"Yes\",\"\")","v":""},null,null,{"$f":"IF($T502=\"Male\", \"Mr\", IF($T502=\"Female\", \"Mrs\", \"\"))","v":""},null,null,null,null,null,null,null,null,null,null,null,null,null,null,"",null,null,null,null,null,null,"",null,null,null,null,null,null,null,null,null,null,null,null,null,"","",null,"",{"$f":"IF(OR($A502=\"English\",$A502=\"Ελληνικά\"),\"Social Insurance\",\"\")","v":""},null,{"$f":"IF(OR($A502=\"English\",$A502=\"Ελληνικά\"),\"Cyprus\",\"\")","v":""},null,null,null,null,null,null,null,null,null,null,{"$f":"IF(OR($A502=\"English\",$A502=\"Ελληνικά\"),\"Applicant / Taxpayer\",\"\")","v":""},""]
[null,"",null,"","",null,"",null,null,null,"",null,null,"",null,null,null,null,null,null,null,null,null,null,null,null,null,null,"",null,null,null,null,null,null,"",null,null,null,null,null,null,null,null,null,null,null,null,null,"","",null,"","",null,"",null,null,null,null,null,null,null,null,null,null,"",""]
[null,"",null,"","",null,"",null,null,null,"",null,null,"",null,null,null,null,null,null,null,null,null,null,null,null,null,null,"",null,null,null,null,null,null,"",null,null,null,null,null,null,null,null,null,null,null,null,null,"","",null,"","",null,"",null,null,null,null,null,null,null,null,null,null,"",""]
[null,"",null,"","",null,"",null,null,null,"",null,null,"",null,null,null,null,null,null,null,null,null,null,null,null,null,null,"",null,null,null,null,null,null,"",null,null,null,null,null,null,null,null,null,null,null,null,null,"","",null,"","",null,"",null,null,null,null,null,null,null,null,null,null,"",""]
[null,"",null,"","",null,"",null,null,null,"",null,null,"",null,null,null,null,null,null,null,null,null,null,null,null,null,null,"",null,null,null,null,null,null,"",null,null,null,null,null,null,null,null,null,null,null,null,null,"","",null,"","",null,"",null,null,null,null,null,null,null,null,null,null,"",""]
[null,"",null,"","",null,"",null,null,null,"",null,null,"",null,null,null,null,null,null,null,null,null,null,null,null,null,null,"",null,null,null,null,null,null,"",null,null,null,null,null,null,null,null,null,null,null,null,null,"","",null,"","",null,"",null,null,null,null,null,null,null,null,null,null,"",""]
[null,"",null,"","",null,"",null,null,null,"",null,null,"",null,null,null,null,null,null,null,null,null,null,null,null,null,null,"",null,null,null,null,null,null,"",null,null,null,null,null,null,null,null,null,null,null,null,null,"","",null,"","",null,"",null,null,null,null,null,null,null,null,null,null,"",""]
[null,"",null,"","",null,"",null,null,null,"",null,null,"",null,null,null,null,null,null,null,null,null,null,null,null,null,null,"",null,null,null,null,null,null,"",null,null,null,null,null,null,null,null,null,null,null,null,null,"","",null,"","",null,"",null,null,null,null,null,null,null,null,null,null,"",""]
[null,"",null,"","",null,"",null,null,null,"",null,null,"",null,null,null,null,null,null,null,null,null,null,null,null,null,null,"",null,null,null,null,null,null,"",null,null,null,null,null,null,null,null,null,null,null,null,null,"","",null,"","",null,"",null,null,null,null,null,null,null,null,null,null,"",""]
[null,"",null,"","",null,"",null,null,null,"",null,null,"",null,null,null,null,null,null,null,null,null,null,null,null,null,null,"",null,null,null,null,null,null,"",null,null,null,null,null,null,null,null,null,null,null,null,null,"","",null,"","",null,"",null,null,null,null,null,null,null,null,null,null,"",""]
[null,"",null,"","",null,"",null,null,null,"",null,null,"",null,null,null,null,null,null,null,null,null,null,null,null,null,null,"",null,null,null,null,null,null,"",null,null,null,null,null,null,null,null,null,null,null,null,null,"","",null,"","",null,"",null,null,null,null,null,null,null,null,null,null,"",""]
[null,"",null,"","",null,"",null,null,null,"",null,null,"",null,null,null,null,null,null,null,null,null,null,null,null,null,null,"",null,null,null,null,null,null,"",null,null,null,null,null,null,null,null,null,null,null,null,null,"","",null,"","",null,"",null,null,null,null,null,null,null,null,null,null,"",""]
[null,"",null,"","",null,"",null,null,null,"",null,null,"",null,null,null,null,null,null,null,null,null,null,null,null,null,null,"",null,null,null,null,null,null,"",null,null,null,null,null,null,null,null,null,null,null,null,null,"","",null,"","",null,"",null,null,null,null,null,null,null,null,null,null,"",""]
[null,"",null,"","",null,"",null,null,null,"",null,null,"",null,null,null,null,null,null,null,null,null,null,null,null,null,null,"",null,null,null,null,null,null,"",null,null,null,null,null,null,null,null,null,null,null,null,null,"","",null,"","",null,"",null,null,null,null,null,null,null,null,null,null,"",""]
[null,"",null,"","",null,"",null,null,null,"",null,null,"",null,null,null,null,null,null,null,null,null,null,null,null,null,null,"",null,null,null,null,null,null,"",null,null,null,null,null,null,null,null,null,null,null,null,null,"","",null,"","",null,"",null,null,null,null,null,null,null,null,null,null,"",""]
[null,"",null,"","",null,"",null,null,null,"",null,null,"",null,null,null,null,null,null,null,null,null,null,null,null,null,null,"",null,null,null,null,null,null,"",null,null,null,null,null,null,null,null,null,null,null,null,null,"","",null,"","",null,"",null,null,null,null,null,null,null,null,null,null,"",""]
[null,"",null,"","",null,"",null,null,null,"",null,null,"",null,null,null,null,null,null,null,null,null,null,null,null,null,null,"",null,null,null,null,null,null,"",null,null,null,null,null,null,null,null,null,null,null,null,null,"","",null,"","",null,"",null,null,null,null,null,null,null,null,null,null,"",""]
[null,"",null,"","",null,"",null,null,null,"",null,null,"",null,null,null,null,null,null,null,null,null,null,null,null,null,null,"",null,null,null,null,null,null,"",null,null,null,null,null,null,null,null,null,null,null,null,null,"","",null,"","",null,"",null,null,null,null,null,null,null,null,null,null,"",""]
[null,"",null,"","",null,"",null,null,null,"",null,null,"",null,null,null,null,null,null,null,null,null,null,null,null,null,null,"",null,null,null,null,null,null,"",null,null,null,null,null,null,null,null,null,null,null,null,null,"","",null,"","",null,"",null,null,null,null,null,null,null,null,null,null,"",""]
[null,"",null,"","",null,"",null,null,null,"",null,null,"",null,null,null,null,null,null,null,null,null,null,null,null,null,null,"",null,null,null,null,null,null,"",null,null,null,null,null,null,null,null,null,null,null,null,null,"","",null,"","",null,"",null,null,null,null,null,null,null,null,null,null,"",""]
[null,"",null,"","",null,"",null,null,null,"",null,null,"",null,null,null,null,null,null,null,null,null,null,null,null,null,null,"",null,null,null,null,null,null,"",null,null,null,null,null,null,null,null,null,null,null,null,null,"","",null,"","",null,"",null,null,null,null,null,null,null,null,null,null,"",""]
[null,"",null,"","",null,"",null,null,null,"",null,null,"",null,null,null,null,null,null,null,null,null,null,null,null,null,null,"",null,null,null,null,null,null,"",null,null,null,null,null,null,null,null,null,null,null,null,null,"","",null,"","",null,"",null,null,null,null,null,null,null,null,null,null,"",""]
[null,"",null,"","",null,"",null,null,null,"",null,null,"",null,null,null,null,null,null,null,null,null,null,null,null,null,null,"",null,null,null,null,null,null,"",null,null,null,null,null,null,null,null,null,null,null,null,null,"","",null,"","",null,"",null,null,null,null,null,null,null,null,null,null,"",""]
[null,"",null,"","",null,"",null,null,null,"",null,null,"",null,null,null,null,null,null,null,null,null,null,null,null,null,null,"",null,null,null,null,null,null,"",null,null,null,null,null,null,null,null,null,null,null,null,null,"","",null,"","",null,"",null,null,null,null,null,null,null,null,null,null,"",""]
[null,"",null,"","",null,"",null,null,null,"",null,null,"",null,null,null,null,null,null,null,null,null,null,null,null,null,null,"",null,null,null,null,null,null,"",null,null,null,null,null,null,null,null,null,null,null,null,null,"","",null,"","",null,"",null,null,null,null,null,null,null,null,null,null,"",""]
[null,"",null,"","",null,"",null,null,null,"",null,null,"",null,null,null,null,null,null,null,null,null,null,null,null,null,null,"",null,null,null,null,null,null,"",null,null,null,null,null,null,null,null,null,null,null,null,null,"","",null,"","",null,"",null,null,null,null,null,null,null,null,null,null,"",""]
[null,"",null,"","",null,"",null,null,null,"",null,null,"",null,null,null,null,null,null,null,null,null,null,null,null,null,null,"",null,null,null,null,null,null,"",null,null,null,null,null,null,null,null,null,null,null,null,null,"","",null,"","",null,"",null,null,null,null,null,null,null,null,null,null,"",""]
[null,"",null,"","",null,"",null,null,null,"",null,null,"",null,null,null,null,null,null,null,null,null,null,null,null,null,null,"",null,null,null,null,null,null,"",null,null,null,null,null,null,null,null,null,null,null,null,null,"","",null,"","",null,"",null,null,null,null,null,null,null,null,null,null,"",""]
[null,"",null,"","",null,"",null,null,null,"",null,null,"",null,null,null,null,null,null,null,null,null,null,null,null,null,null,"",null,null,null,null,null,null,"",null,null,null,null,null,null,null,null,null,null,null,null,null,"","",null,"","",null,"",null,null,null,null,null,null,null,null,null,null,"",""]
[null,"",null,"","",null,"",null,null,null,"",null,null,"",null,null,null,null,null,null,null,null,null,null,null,null,null,null,"",null,null,null,null,null,null,"",null,null,null,null,null,null,null,null,null,null,null,null,null,"","",null,"","",null,"",null,null,null,null,null,null,null,null,null,null,"",""]
[null,"",null,"","",null,"",null,null,null,"",null,null,"",null,null,null,null,null,null,null,null,null,null,null,null,null,null,"",null,null,null,null,null,null,"",null,null,null,null,null,null,null,null,null,null,null,null,null,"","",null,"","",null,"",null,null,null,null,null,null,null,null,null,null,"",""]
[null,"",null,"","",null,"",null,null,null,"",null,null,"",null,null,null,null,null,null,null,null,null,null,null,null,null,null,"",null,null,null,null,null,null,"",null,null,null,null,null,null,null,null,null,null,null,null,null,"","",null,"","",null,"",null,null,null,null,null,null,null,null,null,null,"",""]
[null,"",null,"","",null,"",null,null,null,"",null,null,"",null,null,null,null,null,null,null,null,null,null,null,null,null,null,"",null,null,null,null,null,null,"",null,null,null,null,null,null,null,null,null,null,null,null,null,"","",null,"","",null,"",null,null,null,null,null,null,null,null,null,null,"",""]
[null,"",null,"","",null,"",null,null,null,"",null,null,"",null,null,null,null,null,null,null,null,null,null,null,null,null,null,"",null,null,null,null,null,null,"",null,null,null,null,null,null,null,null,null,null,null,null,null,"","",null,"","",null,"",null,null,null,null,null,null,null,null,null,null,"",""]
[null,"",null,"","",null,"",null,null,null,"",null,null,"",null,null,null,null,null,null,null,null,null,null,null,null,null,null,"",null,null,null,null,null,null,"",null,null,null,null,null,null,null,null,null,null,null,null,null,"","",null,"","",null,"",null,null,null,null,null,null,null,null,null,null,"",""]
[null,"",null,"","",null,"",null,null,null,"",null,null,"",null,null,null,null,null,null,null,null,null,null,null,null,null,null,"",null,null,null,null,null,null,"",null,null,null,null,null,null,null,null,null,null,null,null,null,"","",null,"","",null,"",null,null,null,null,null,null,null,null,null,null,"",""]
[null,"",null,"","",null,"",null,null,null,"",null,null,"",null,null,null,null,null,null,null,null,null,null,null,null,null,null,"",null,null,null,null,null,null,"",null,null,null,null,null,null,null,null,null,null,null,null,null,"","",null,"","",null,"",null,null,null,null,null,null,null,null,null,null,"",""]
[null,"",null,"","",null,"",null,null,null,"",null,null,"",null,null,null,null,null,null,null,null,null,null,null,null,null,null,"",null,null,null,null,null,null,"",null,null,null,null,null,null,null,null,null,null,null,null,null,"","",null,"","",null,"",null,null,null,null,null,null,null,null,null,null,"",""]
[null,"",null,"","",null,"",null,null,null,"",null,null,"",null,null,null,null,null,null,null,null,null,null,null,null,null,null,"",null,null,null,null,null,null,"",null,null,null,null,null,null,null,null,null,null,null,null,null,"","",null,"","",null,"",null,null,null,null,null,null,null,null,null,null,"",""]
[null,"",null,"","",null,"",null,null,null,"",null,null,"",null,null,null,null,null,null,null,null,null,null,null,null,null,null,"",null,null,null,null,null,null,"",null,null,null,null,null,null,null,null,null,null,null,null,null,"","",null,"","",null,"",null,null,null,null,null,null,null,null,null,null,"",""]
[null,"",null,"","",null,"",null,null,null,"",null,null,"",null,null,null,null,null,null,null,null,null,null,null,null,null,null,"",null,null,null,null,null,null,"",null,null,null,null,null,null,null,null,null,null,null,null,null,"","",null,"","",null,"",null,null,null,null,null,null,null,null,null,null,"",""]
[null,"",null,"","",null,"",null,null,null,"",null,null,"",null,null,null,null,null,null,null,null,null,null,null,null,null,null,"",null,null,null,null,null,null,"",null,null,null,null,null,null,null,null,null,null,null,null,null,"","",null,"","",null,"",null,null,null,null,null,null,null,null,null,null,"",""]
[null,"",null,"","",null,"",null,null,null,"",null,null,"",null,null,null,null,null,null,null,null,null,null,null,null,null,null,"",null,null,null,null,null,null,"",null,null,null,null,null,null,null,null,null,null,null,null,null,"","",null,"","",null,"",null,null,null,null,null,null,null,null,null,null,"",""]
[null,"",null,"","",null,"",null,null,null,"",null,null,"",null,null,null,null,null,null,null,null,null,null,null,null,null,null,"",null,null,null,null,null,null,"",null,null,null,null,null,null,null,null,null,null,null,null,null,"","",null,"","",null,"",null,null,null,null,null,null,null,null,null,null,"",""]
[null,"",null,"","",null,"",null,null,null,"",null,null,"",null,null,null,null,null,null,null,null,null,null,null,null,null,null,"",null,null,null,null,null,null,"",null,null,null,null,null,null,null,null,null,null,null,null,null,"","",null,"","",null,"",null,null,null,null,null,null,null,null,null,null,"",""]
[null,"",null,"","",null,"",null,null,null,"",null,null,"",null,null,null,null,null,null,null,null,null,null,null,null,null,null,"",null,null,null,null,null,null,"",null,null,null,null,null,null,null,null,null,null,null,null,null,"","",null,"","",null,"",null,null,null,null,null,null,null,null,null,null,"",""]
[null,"",null,"","",null,"",null,null,null,"",null,null,"",null,null,null,null,null,null,null,null,null,null,null,null,null,null,"",null,null,null,null,null,null,"",null,null,null,null,null,null,null,null,null,null,null,null,null,"","",null,"","",null,"",null,null,null,null,null,null,null,null,null,null,"",""]
[null,"",null,"","",null,"",null,null,null,"",null,null,"",null,null,null,null,null,null,null,null,null,null,null,null,null,null,"",null,null,null,null,null,null,"",null,null,null,null,null,null,null,null,null,null,null,null,null,"","",null,"","",null,"",null,null,null,null,null,null,null,null,null,null,"",""]
[null,"",null,"","",null,"",null,null,null,"",null,null,"",null,null,null,null,null,null,null,null,null,null,null,null,null,null,"",null,null,null,null,null,null,"",null,null,null,null,null,null,null,null,null,null,null,null,null,"","",null,"","",null,"",null,null,null,null,null,null,null,null,null,null,"",""]
[null,"",null,"","",null,"",null,null,null,"",null,null,"",null,null,null,null,null,null,null,null,null,null,null,null,null,null,"",null,null,null,null,null,null,"",null,null,null,null,null,null,null,null,null,null,null,null,null,"","",null,"","",null,"",null,null,null,null,null,null,null,null,null,null,"",""]
[null,"",null,"","",null,"",null,null,null,"",null,null,"",null,null,null,null,null,null,null,null,null,null,null,null,null,null,"",null,null,null,null,null,null,"",null,null,null,null,null,null,null,null,null,null,null,null,null,"","",null,"","",null,"",null,null,null,null,null,null,null,null,null,null,"",""]
[null,"",null,"","",null,"",null,null,null,"",null,null,"",null,null,null,null,null,null,null,null,null,null,null,null,null,null,"",null,null,null,null,null,null,"",null,null,null,null,null,null,null,null,null,null,null,null,null,"","",null,"","",null,"",null,null,null,null,null,null,null,null,null,null,"",""]
[null,"",null,"","",null,"",null,null,null,"",null,null,"",null,null,null,null,null,null,null,null,null,null,null,null,null,null,"",null,null,null,null,null,null,"",null,null,null,null,null,null,null,null,null,null,null,null,null,"","",null,"","",null,"",null,null,null,null,null,null,null,null,null,null,"",""]
[null,"",null,"","",null,"",null,null,null,"",null,null,"",null,null,null,null,null,null,null,null,null,null,null,null,null,null,"",null,null,null,null,null,null,"",null,null,null,null,null,null,null,null,null,null,null,null,null,"","",null,"","",null,"",null,null,null,null,null,null,null,null,null,null,"",""]
[null,"",null,"","",null,"",null,null,null,"",null,null,"",null,null,null,null,null,null,null,null,null,null,null,null,null,null,"",null,null,null,null,null,null,"",null,null,null,null,null,null,null,null,null,null,null,null,null,"","",null,"","",null,"",null,null,null,null,null,null,null,null,null,null,"",""]
[null,"",null,"","",null,"",null,null,null,"",null,null,"",null,null,null,null,null,null,null,null,null,null,null,null,null,null,"",null,null,null,null,null,null,"",null,null,null,null,null,null,null,null,null,null,null,null,null,"","",null,"","",null,"",null,null,null,null,null,null,null,null,null,null,"",""]
[null,"",null,"","",null,"",null,null,null,"",null,null,"",null,null,null,null,null,null,null,null,null,null,null,null,null,null,"",null,null,null,null,null,null,"",null,null,null,null,null,null,null,null,null,null,null,null,null,"","",null,"","",null,"",null,null,null,null,null,null,null,null,null,null,"",""]
[null,"",null,"","",null,"",null,null,null,"",null,null,"",null,null,null,null,null,null,null,null,null,null,null,null,null,null,"",null,null,null,null,null,null,"",null,null,null,null,null,null,null,null,null,null,null,null,null,"","",null,"","",null,"",null,null,null,null,null,null,null,null,null,null,"",""]
[null,"",null,"","",null,"",null,null,null,"",null,null,"",null,null,null,null,null,null,null,null,null,null,null,null,null,null,"",null,null,null,null,null,null,"",null,null,null,null,null,null,null,null,null,null,null,null,null,"","",null,"","",null,"",null,null,null,null,null,null,null,null,null,null,"",""]
[null,"",null,"","",null,"",null,null,null,"",null,null,"",null,null,null,null,null,null,null,null,null,null,null,null,null,null,"",null,null,null,null,null,null,"",null,null,null,null,null,null,null,null,null,null,null,null,null,"","",null,"","",null,"",null,null,null,null,null,null,null,null,null,null,"",""]
[null,"",null,"","",null,"",null,null,null,"",null,null,"",null,null,null,null,null,null,null,null,null,null,null,null,null,null,"",null,null,null,null,null,null,"",null,null,null,null,null,null,null,null,null,null,null,null,null,"","",null,"","",null,"",null,null,null,null,null,null,null,null,null,null,"",""]
[null,"",null,"","",null,"",null,null,null,"",null,null,"",null,null,null,null,null,null,null,null,null,null,null,null,null,null,"",null,null,null,null,null,null,"",null,null,null,null,null,null,null,null,null,null,null,null,null,"","",null,"","",null,"",null,null,null,null,null,null,null,null,null,null,"",""]
[null,{"$f":"IF(OR($A564=\"English\",$A564=\"Ελληνικά\"),\"Individual\",\"\")","v":""},null,{"$f":"IF(OR($A564=\"English\",$A564=\"Ελληνικά\"),\"Standard\",\"\")","v":""},{"$f":"IF(OR($A564=\"English\",$A564=\"Ελληνικά\"),\"Small/Medium Enterprise\",\"\")","v":""},null,"",null,null,null,"",null,null,"",null,null,null,null,null,null,null,null,null,null,null,null,null,null,"",null,null,null,null,null,null,"",null,null,null,null,null,null,null,null,null,null,null,null,null,"","",null,"","",null,"",null,null,null,null,null,null,null,null,null,null,"",""]
[null,"",null,"","",null,{"$f":"IF(A565=\"\",\"\",IF(AH565=\"Ammochostos\",\"Famagusta\",IF(AH565=\"Larnaka\",\"Larnaca\",IF(AH565=\"Lemesos\",\"Limassol\",IF(AH565=\"Nicosia\",\"Nicosia\",IF(AH565=\"Pafos\",\"Paphos\",\"Central Offices\"))))))","v":""},null,null,null,"",null,null,"",null,null,null,null,null,null,null,null,null,null,null,null,null,null,{"$f":"IF(OR($A565=\"English\",$A565=\"Ελληνικά\"),\"Residence\",\"\")","v":""},null,null,null,null,null,null,{"$f":"IF(OR($A565=\"English\",$A565=\"Ελληνικά\"),\"Yes\",\"\")","v":""},null,null,null,null,null,null,null,null,null,null,null,null,null,{"$f":"IF(OR($A565=\"English\",$A565=\"Ελληνικά\"),\"Yes\",\"\")","v":""},{"$f":"IF(OR($A565=\"English\",$A565=\"Ελληνικά\"),\"Primary\",\"\")","v":""},null,{"$f":"IF(OR($A565=\"English\",$A565=\"Ελληνικά\"),\"Yes\",\"\")","v":""},"",null,"",null,null,null,null,null,null,null,null,null,null,"",{"$f":"IF(OR($A565=\"English\",$A565=\"Ελληνικά\"),\"INDIVIDUAL WITHOUT RETURN SUBMISSION OBLIGATION\",\"\")","v":""}]
[null,"",null,"","",null,"",null,null,null,{"$f":"IF(OR($A566=\"English\",$A566=\"Ελληνικά\"),\"Yes\",\"\")","v":""},null,null,{"$f":"IF($T566=\"Male\", \"Mr\", IF($T566=\"Female\", \"Mrs\", \"\"))","v":""},null,null,null,null,null,null,null,null,null,null,null,null,null,null,"",null,null,null,null,null,null,"",null,null,null,null,null,null,null,null,null,null,null,null,null,"","",null,"",{"$f":"IF(OR($A566=\"English\",$A566=\"Ελληνικά\"),\"Social Insurance\",\"\")","v":""},null,{"$f":"IF(OR($A566=\"English\",$A566=\"Ελληνικά\"),\"Cyprus\",\"\")","v":""},null,null,null,null,null,null,null,null,null,null,{"$f":"IF(OR($A566=\"English\",$A566=\"Ελληνικά\"),\"Applicant / Taxpayer\",\"\")","v":""},""]
[null,"",null,"","",null,"",null,null,null,"",null,null,"",null,null,null,null,null,null,null,null,null,null,null,null,null,null,"",null,null,null,null,null,null,"",null,null,null,null,null,null,null,null,null,null,null,null,null,"","",null,"","",null,"",null,null,null,null,null,null,null,null,null,null,"",""]
[null,"",null,"","",null,"",null,null,null,"",null,null,"",null,null,null,null,null,null,null,null,null,null,null,null,null,null,"",null,null,null,null,null,null,"",null,null,null,null,null,null,null,null,null,null,null,null,null,"","",null,"","",null,"",null,null,null,null,null,null,null,null,null,null,"",""]
[null,"",null,"","",null,"",null,null,null,"",null,null,"",null,null,null,null,null,null,null,null,null,null,null,null,null,null,"",null,null,null,null,null,null,"",null,null,null,null,null,null,null,null,null,null,null,null,null,"","",null,"","",null,"",null,null,null,null,null,null,null,null,null,null,"",""]
[null,"",null,"","",null,"",null,null,null,"",null,null,"",null,null,null,null,null,null,null,null,null,null,null,null,null,null,"",null,null,null,null,null,null,"",null,null,null,null,null,null,null,null,null,null,null,null,null,"","",null,"","",null,"",null,null,null,null,null,null,null,null,null,null,"",""]
[null,"",null,"","",null,"",null,null,null,"",null,null,"",null,null,null,null,null,null,null,null,null,null,null,null,null,null,"",null,null,null,null,null,null,"",null,null,null,null,null,null,null,null,null,null,null,null,null,"","",null,"","",null,"",null,null,null,null,null,null,null,null,null,null,"",""]
[null,"",null,"","",null,"",null,null,null,"",null,null,"",null,null,null,null,null,null,null,null,null,null,null,null,null,null,"",null,null,null,null,null,null,"",null,null,null,null,null,null,null,null,null,null,null,null,null,"","",null,"","",null,"",null,null,null,null,null,null,null,null,null,null,"",""]
[null,"",null,"","",null,"",null,null,null,"",null,null,"",null,null,null,null,null,null,null,null,null,null,null,null,null,null,"",null,null,null,null,null,null,"",null,null,null,null,null,null,null,null,null,null,null,null,null,"","",null,"","",null,"",null,null,null,null,null,null,null,null,null,null,"",""]
[null,"",null,"","",null,"",null,null,null,"",null,null,"",null,null,null,null,null,null,null,null,null,null,null,null,null,null,"",null,null,null,null,null,null,"",null,null,null,null,null,null,null,null,null,null,null,null,null,"","",null,"","",null,"",null,null,null,null,null,null,null,null,null,null,"",""]
[null,"",null,"","",null,"",null,null,null,"",null,null,"",null,null,null,null,null,null,null,null,null,null,null,null,null,null,"",null,null,null,null,null,null,"",null,null,null,null,null,null,null,null,null,null,null,null,null,"","",null,"","",null,"",null,null,null,null,null,null,null,null,null,null,"",""]
[null,"",null,"","",null,"",null,null,null,"",null,null,"",null,null,null,null,null,null,null,null,null,null,null,null,null,null,"",null,null,null,null,null,null,"",null,null,null,null,null,null,null,null,null,null,null,null,null,"","",null,"","",null,"",null,null,null,null,null,null,null,null,null,null,"",""]
[null,"",null,"","",null,"",null,null,null,"",null,null,"",null,null,null,null,null,null,null,null,null,null,null,null,null,null,"",null,null,null,null,null,null,"",null,null,null,null,null,null,null,null,null,null,null,null,null,"","",null,"","",null,"",null,null,null,null,null,null,null,null,null,null,"",""]
[null,"",null,"","",null,"",null,null,null,"",null,null,"",null,null,null,null,null,null,null,null,null,null,null,null,null,null,"",null,null,null,null,null,null,"",null,null,null,null,null,null,null,null,null,null,null,null,null,"","",null,"","",null,"",null,null,null,null,null,null,null,null,null,null,"",""]
[null,"",null,"","",null,"",null,null,null,"",null,null,"",null,null,null,null,null,null,null,null,null,null,null,null,null,null,"",null,null,null,null,null,null,"",null,null,null,null,null,null,null,null,null,null,null,null,null,"","",null,"","",null,"",null,null,null,null,null,null,null,null,null,null,"",""]
[null,"",null,"","",null,"",null,null,null,"",null,null,"",null,null,null,null,null,null,null,null,null,null,null,null,null,null,"",null,null,null,null,null,null,"",null,null,null,null,null,null,null,null,null,null,null,null,null,"","",null,"","",null,"",null,null,null,null,null,null,null,null,null,null,"",""]
[null,"",null,"","",null,"",null,null,null,"",null,null,"",null,null,null,null,null,null,null,null,null,null,null,null,null,null,"",null,null,null,null,null,null,"",null,null,null,null,null,null,null,null,null,null,null,null,null,"","",null,"","",null,"",null,null,null,null,null,null,null,null,null,null,"",""]
[null,"",null,"","",null,"",null,null,null,"",null,null,"",null,null,null,null,null,null,null,null,null,null,null,null,null,null,"",null,null,null,null,null,null,"",null,null,null,null,null,null,null,null,null,null,null,null,null,"","",null,"","",null,"",null,null,null,null,null,null,null,null,null,null,"",""]
[null,"",null,"","",null,"",null,null,null,"",null,null,"",null,null,null,null,null,null,null,null,null,null,null,null,null,null,"",null,null,null,null,null,null,"",null,null,null,null,null,null,null,null,null,null,null,null,null,"","",null,"","",null,"",null,null,null,null,null,null,null,null,null,null,"",""]
[null,"",null,"","",null,"",null,null,null,"",null,null,"",null,null,null,null,null,null,null,null,null,null,null,null,null,null,"",null,null,null,null,null,null,"",null,null,null,null,null,null,null,null,null,null,null,null,null,"","",null,"","",null,"",null,null,null,null,null,null,null,null,null,null,"",""]
[null,"",null,"","",null,"",null,null,null,"",null,null,"",null,null,null,null,null,null,null,null,null,null,null,null,null,null,"",null,null,null,null,null,null,"",null,null,null,null,null,null,null,null,null,null,null,null,null,"","",null,"","",null,"",null,null,null,null,null,null,null,null,null,null,"",""]
[null,"",null,"","",null,"",null,null,null,"",null,null,"",null,null,null,null,null,null,null,null,null,null,null,null,null,null,"",null,null,null,null,null,null,"",null,null,null,null,null,null,null,null,null,null,null,null,null,"","",null,"","",null,"",null,null,null,null,null,null,null,null,null,null,"",""]
[null,"",null,"","",null,"",null,null,null,"",null,null,"",null,null,null,null,null,null,null,null,null,null,null,null,null,null,"",null,null,null,null,null,null,"",null,null,null,null,null,null,null,null,null,null,null,null,null,"","",null,"","",null,"",null,null,null,null,null,null,null,null,null,null,"",""]
[null,"",null,"","",null,"",null,null,null,"",null,null,"",null,null,null,null,null,null,null,null,null,null,null,null,null,null,"",null,null,null,null,null,null,"",null,null,null,null,null,null,null,null,null,null,null,null,null,"","",null,"","",null,"",null,null,null,null,null,null,null,null,null,null,"",""]
[null,"",null,"","",null,"",null,null,null,"",null,null,"",null,null,null,null,null,null,null,null,null,null,null,null,null,null,"",null,null,null,null,null,null,"",null,null,null,null,null,null,null,null,null,null,null,null,null,"","",null,"","",null,"",null,null,null,null,null,null,null,null,null,null,"",""]
[null,"",null,"","",null,"",null,null,null,"",null,null,"",null,null,null,null,null,null,null,null,null,null,null,null,null,null,"",null,null,null,null,null,null,"",null,null,null,null,null,null,null,null,null,null,null,null,null,"","",null,"","",null,"",null,null,null,null,null,null,null,null,null,null,"",""]
[null,"",null,"","",null,"",null,null,null,"",null,null,"",null,null,null,null,null,null,null,null,null,null,null,null,null,null,"",null,null,null,null,null,null,"",null,null,null,null,null,null,null,null,null,null,null,null,null,"","",null,"","",null,"",null,null,null,null,null,null,null,null,null,null,"",""]
[null,"",null,"","",null,"",null,null,null,"",null,null,"",null,null,null,null,null,null,null,null,null,null,null,null,null,null,"",null,null,null,null,null,null,"",null,null,null,null,null,null,null,null,null,null,null,null,null,"","",null,"","",null,"",null,null,null,null,null,null,null,null,null,null,"",""]
[null,"",null,"","",null,"",null,null,null,"",null,null,"",null,null,null,null,null,null,null,null,null,null,null,null,null,null,"",null,null,null,null,null,null,"",null,null,null,null,null,null,null,null,null,null,null,null,null,"","",null,"","",null,"",null,null,null,null,null,null,null,null,null,null,"",""]
[null,"",null,"","",null,"",null,null,null,"",null,null,"",null,null,null,null,null,null,null,null,null,null,null,null,null,null,"",null,null,null,null,null,null,"",null,null,null,null,null,null,null,null,null,null,null,null,null,"","",null,"","",null,"",null,null,null,null,null,null,null,null,null,null,"",""]
[null,"",null,"","",null,"",null,null,null,"",null,null,"",null,null,null,null,null,null,null,null,null,null,null,null,null,null,"",null,null,null,null,null,null,"",null,null,null,null,null,null,null,null,null,null,null,null,null,"","",null,"","",null,"",null,null,null,null,null,null,null,null,null,null,"",""]
[null,"",null,"","",null,"",null,null,null,"",null,null,"",null,null,null,null,null,null,null,null,null,null,null,null,null,null,"",null,null,null,null,null,null,"",null,null,null,null,null,null,null,null,null,null,null,null,null,"","",null,"","",null,"",null,null,null,null,null,null,null,null,null,null,"",""]
[null,"",null,"","",null,"",null,null,null,"",null,null,"",null,null,null,null,null,null,null,null,null,null,null,null,null,null,"",null,null,null,null,null,null,"",null,null,null,null,null,null,null,null,null,null,null,null,null,"","",null,"","",null,"",null,null,null,null,null,null,null,null,null,null,"",""]
[null,"",null,"","",null,"",null,null,null,"",null,null,"",null,null,null,null,null,null,null,null,null,null,null,null,null,null,"",null,null,null,null,null,null,"",null,null,null,null,null,null,null,null,null,null,null,null,null,"","",null,"","",null,"",null,null,null,null,null,null,null,null,null,null,"",""]
[null,"",null,"","",null,"",null,null,null,"",null,null,"",null,null,null,null,null,null,null,null,null,null,null,null,null,null,"",null,null,null,null,null,null,"",null,null,null,null,null,null,null,null,null,null,null,null,null,"","",null,"","",null,"",null,null,null,null,null,null,null,null,null,null,"",""]
[null,"",null,"","",null,"",null,null,null,"",null,null,"",null,null,null,null,null,null,null,null,null,null,null,null,null,null,"",null,null,null,null,null,null,"",null,null,null,null,null,null,null,null,null,null,null,null,null,"","",null,"","",null,"",null,null,null,null,null,null,null,null,null,null,"",""]
[null,"",null,"","",null,"",null,null,null,"",null,null,"",null,null,null,null,null,null,null,null,null,null,null,null,null,null,"",null,null,null,null,null,null,"",null,null,null,null,null,null,null,null,null,null,null,null,null,"","",null,"","",null,"",null,null,null,null,null,null,null,null,null,null,"",""]
[null,"",null,"","",null,"",null,null,null,"",null,null,"",null,null,null,null,null,null,null,null,null,null,null,null,null,null,"",null,null,null,null,null,null,"",null,null,null,null,null,null,null,null,null,null,null,null,null,"","",null,"","",null,"",null,null,null,null,null,null,null,null,null,null,"",""]
[null,"",null,"","",null,"",null,null,null,"",null,null,"",null,null,null,null,null,null,null,null,null,null,null,null,null,null,"",null,null,null,null,null,null,"",null,null,null,null,null,null,null,null,null,null,null,null,null,"","",null,"","",null,"",null,null,null,null,null,null,null,null,null,null,"",""]
[null,"",null,"","",null,"",null,null,null,"",null,null,"",null,null,null,null,null,null,null,null,null,null,null,null,null,null,"",null,null,null,null,null,null,"",null,null,null,null,null,null,null,null,null,null,null,null,null,"","",null,"","",null,"",null,null,null,null,null,null,null,null,null,null,"",""]
[null,"",null,"","",null,"",null,null,null,"",null,null,"",null,null,null,null,null,null,null,null,null,null,null,null,null,null,"",null,null,null,null,null,null,"",null,null,null,null,null,null,null,null,null,null,null,null,null,"","",null,"","",null,"",null,null,null,null,null,null,null,null,null,null,"",""]
[null,"",null,"","",null,"",null,null,null,"",null,null,"",null,null,null,null,null,null,null,null,null,null,null,null,null,null,"",null,null,null,null,null,null,"",null,null,null,null,null,null,null,null,null,null,null,null,null,"","",null,"","",null,"",null,null,null,null,null,null,null,null,null,null,"",""]
[null,"",null,"","",null,"",null,null,null,"",null,null,"",null,null,null,null,null,null,null,null,null,null,null,null,null,null,"",null,null,null,null,null,null,"",null,null,null,null,null,null,null,null,null,null,null,null,null,"","",null,"","",null,"",null,null,null,null,null,null,null,null,null,null,"",""]
[null,"",null,"","",null,"",null,null,null,"",null,null,"",null,null,null,null,null,null,null,null,null,null,null,null,null,null,"",null,null,null,null,null,null,"",null,null,null,null,null,null,null,null,null,null,null,null,null,"","",null,"","",null,"",null,null,null,null,null,null,null,null,null,null,"",""]
[null,"",null,"","",null,"",null,null,null,"",null,null,"",null,null,null,null,null,null,null,null,null,null,null,null,null,null,"",null,null,null,null,null,null,"",null,null,null,null,null,null,null,null,null,null,null,null,null,"","",null,"","",null,"",null,null,null,null,null,null,null,null,null,null,"",""]
[null,"",null,"","",null,"",null,null,null,"",null,null,"",null,null,null,null,null,null,null,null,null,null,null,null,null,null,"",null,null,null,null,null,null,"",null,null,null,null,null,null,null,null,null,null,null,null,null,"","",null,"","",null,"",null,null,null,null,null,null,null,null,null,null,"",""]
[null,"",null,"","",null,"",null,null,null,"",null,null,"",null,null,null,null,null,null,null,null,null,null,null,null,null,null,"",null,null,null,null,null,null,"",null,null,null,null,null,null,null,null,null,null,null,null,null,"","",null,"","",null,"",null,null,null,null,null,null,null,null,null,null,"",""]
[null,"",null,"","",null,"",null,null,null,"",null,null,"",null,null,null,null,null,null,null,null,null,null,null,null,null,null,"",null,null,null,null,null,null,"",null,null,null,null,null,null,null,null,null,null,null,null,null,"","",null,"","",null,"",null,null,null,null,null,null,null,null,null,null,"",""]
[null,"",null,"","",null,"",null,null,null,"",null,null,"",null,null,null,null,null,null,null,null,null,null,null,null,null,null,"",null,null,null,null,null,null,"",null,null,null,null,null,null,null,null,null,null,null,null,null,"","",null,"","",null,"",null,null,null,null,null,null,null,null,null,null,"",""]
[null,"",null,"","",null,"",null,null,null,"",null,null,"",null,null,null,null,null,null,null,null,null,null,null,null,null,null,"",null,null,null,null,null,null,"",null,null,null,null,null,null,null,null,null,null,null,null,null,"","",null,"","",null,"",null,null,null,null,null,null,null,null,null,null,"",""]
[null,"",null,"","",null,"",null,null,null,"",null,null,"",null,null,null,null,null,null,null,null,null,null,null,null,null,null,"",null,null,null,null,null,null,"",null,null,null,null,null,null,null,null,null,null,null,null,null,"","",null,"","",null,"",null,null,null,null,null,null,null,null,null,null,"",""]
[null,"",null,"","",null,"",null,null,null,"",null,null,"",null,null,null,null,null,null,null,null,null,null,null,null,null,null,"",null,null,null,null,null,null,"",null,null,null,null,null,null,null,null,null,null,null,null,null,"","",null,"","",null,"",null,null,null,null,null,null,null,null,null,null,"",""]
[null,"",null,"","",null,"",null,null,null,"",null,null,"",null,null,null,null,null,null,null,null,null,null,null,null,null,null,"",null,null,null,null,null,null,"",null,null,null,null,null,null,null,null,null,null,null,null,null,"","",null,"","",null,"",null,null,null,null,null,null,null,null,null,null,"",""]
[null,"",null,"","",null,"",null,null,null,"",null,null,"",null,null,null,null,null,null,null,null,null,null,null,null,null,null,"",null,null,null,null,null,null,"",null,null,null,null,null,null,null,null,null,null,null,null,null,"","",null,"","",null,"",null,null,null,null,null,null,null,null,null,null,"",""]
[null,"",null,"","",null,"",null,null,null,"",null,null,"",null,null,null,null,null,null,null,null,null,null,null,null,null,null,"",null,null,null,null,null,null,"",null,null,null,null,null,null,null,null,null,null,null,null,null,"","",null,"","",null,"",null,null,null,null,null,null,null,null,null,null,"",""]
[null,"",null,"","",null,"",null,null,null,"",null,null,"",null,null,null,null,null,null,null,null,null,null,null,null,null,null,"",null,null,null,null,null,null,"",null,null,null,null,null,null,null,null,null,null,null,null,null,"","",null,"","",null,"",null,null,null,null,null,null,null,null,null,null,"",""]
[null,"",null,"","",null,"",null,null,null,"",null,null,"",null,null,null,null,null,null,null,null,null,null,null,null,null,null,"",null,null,null,null,null,null,"",null,null,null,null,null,null,null,null,null,null,null,null,null,"","",null,"","",null,"",null,null,null,null,null,null,null,null,null,null,"",""]
[null,"",null,"","",null,"",null,null,null,"",null,null,"",null,null,null,null,null,null,null,null,null,null,null,null,null,null,"",null,null,null,null,null,null,"",null,null,null,null,null,null,null,null,null,null,null,null,null,"","",null,"","",null,"",null,null,null,null,null,null,null,null,null,null,"",""]
[null,"",null,"","",null,"",null,null,null,"",null,null,"",null,null,null,null,null,null,null,null,null,null,null,null,null,null,"",null,null,null,null,null,null,"",null,null,null,null,null,null,null,null,null,null,null,null,null,"","",null,"","",null,"",null,null,null,null,null,null,null,null,null,null,"",""]
[null,"",null,"","",null,"",null,null,null,"",null,null,"",null,null,null,null,null,null,null,null,null,null,null,null,null,null,"",null,null,null,null,null,null,"",null,null,null,null,null,null,null,null,null,null,null,null,null,"","",null,"","",null,"",null,null,null,null,null,null,null,null,null,null,"",""]
[null,"",null,"","",null,"",null,null,null,"",null,null,"",null,null,null,null,null,null,null,null,null,null,null,null,null,null,"",null,null,null,null,null,null,"",null,null,null,null,null,null,null,null,null,null,null,null,null,"","",null,"","",null,"",null,null,null,null,null,null,null,null,null,null,"",""]
[null,"",null,"","",null,"",null,null,null,"",null,null,"",null,null,null,null,null,null,null,null,null,null,null,null,null,null,"",null,null,null,null,null,null,"",null,null,null,null,null,null,null,null,null,null,null,null,null,"","",null,"","",null,"",null,null,null,null,null,null,null,null,null,null,"",""]
[null,"",null,"","",null,"",null,null,null,"",null,null,"",null,null,null,null,null,null,null,null,null,null,null,null,null,null,"",null,null,null,null,null,null,"",null,null,null,null,null,null,null,null,null,null,null,null,null,"","",null,"","",null,"",null,null,null,null,null,null,null,null,null,null,"",""]
[null,{"$f":"IF(OR($A628=\"English\",$A628=\"Ελληνικά\"),\"Individual\",\"\")","v":""},null,{"$f":"IF(OR($A628=\"English\",$A628=\"Ελληνικά\"),\"Standard\",\"\")","v":""},{"$f":"IF(OR($A628=\"English\",$A628=\"Ελληνικά\"),\"Small/Medium Enterprise\",\"\")","v":""},null,"",null,null,null,"",null,null,"",null,null,null,null,null,null,null,null,null,null,null,null,null,null,"",null,null,null,null,null,null,"",null,null,null,null,null,null,null,null,null,null,null,null,null,"","",null,"","",null,"",null,null,null,null,null,null,null,null,null,null,"",""]
[null,"",null,"","",null,{"$f":"IF(A629=\"\",\"\",IF(AH629=\"Ammochostos\",\"Famagusta\",IF(AH629=\"Larnaka\",\"Larnaca\",IF(AH629=\"Lemesos\",\"Limassol\",IF(AH629=\"Nicosia\",\"Nicosia\",IF(AH629=\"Pafos\",\"Paphos\",\"Central Offices\"))))))","v":""},null,null,null,"",null,null,"",null,null,null,null,null,null,null,null,null,null,null,null,null,null,{"$f":"IF(OR($A629=\"English\",$A629=\"Ελληνικά\"),\"Residence\",\"\")","v":""},null,null,null,null,null,null,{"$f":"IF(OR($A629=\"English\",$A629=\"Ελληνικά\"),\"Yes\",\"\")","v":""},null,null,null,null,null,null,null,null,null,null,null,null,null,{"$f":"IF(OR($A629=\"English\",$A629=\"Ελληνικά\"),\"Yes\",\"\")","v":""},{"$f":"IF(OR($A629=\"English\",$A629=\"Ελληνικά\"),\"Primary\",\"\")","v":""},null,{"$f":"IF(OR($A629=\"English\",$A629=\"Ελληνικά\"),\"Yes\",\"\")","v":""},"",null,"",null,null,null,null,null,null,null,null,null,null,"",{"$f":"IF(OR($A629=\"English\",$A629=\"Ελληνικά\"),\"INDIVIDUAL WITHOUT RETURN SUBMISSION OBLIGATION\",\"\")","v":""}]
[null,"",null,"","",null,"",null,null,null,{"$f":"IF(OR($A630=\"English\",$A630=\"Ελληνικά\"),\"Yes\",\"\")","v":""},null,null,{"$f":"IF($T630=\"Male\", \"Mr\", IF($T630=\"Female\", \"Mrs\", \"\"))","v":""},null,null,null,null,null,null,null,null,null,null,null,null,null,null,"",null,null,null,null,null,null,"",null,null,null,null,null,null,null,null,null,null,null,null,null,"","",null,"",{"$f":"IF(OR($A630=\"English\",$A630=\"Ελληνικά\"),\"Social Insurance\",\"\")","v":""},null,{"$f":"IF(OR($A630=\"English\",$A630=\"Ελληνικά\"),\"Cyprus\",\"\")","v":""},null,null,null,null,null,null,null,null,null,null,{"$f":"IF(OR($A630=\"English\",$A630=\"Ελληνικά\"),\"Applicant / Taxpayer\",\"\")","v":""},""]
[null,"",null,"","",null,"",null,null,null,"",null,null,"",null,null,null,null,null,null,null,null,null,null,null,null,null,null,"",null,null,null,null,null,null,"",null,null,null,null,null,null,null,null,null,null,null,null,null,"","",null,"","",null,"",null,null,null,null,null,null,null,null,null,null,"",""]
[null,"",null,"","",null,"",null,null,null,"",null,null,"",null,null,null,null,null,null,null,null,null,null,null,null,null,null,"",null,null,null,null,null,null,"",null,null,null,null,null,null,null,null,null,null,null,null,null,"","",null,"","",null,"",null,null,null,null,null,null,null,null,null,null,"",""]
[null,"",null,"","",null,"",null,null,null,"",null,null,"",null,null,null,null,null,null,null,null,null,null,null,null,null,null,"",null,null,null,null,null,null,"",null,null,null,null,null,null,null,null,null,null,null,null,null,"","",null,"","",null,"",null,null,null,null,null,null,null,null,null,null,"",""]
[null,"",null,"","",null,"",null,null,null,"",null,null,"",null,null,null,null,null,null,null,null,null,null,null,null,null,null,"",null,null,null,null,null,null,"",null,null,null,null,null,null,null,null,null,null,null,null,null,"","",null,"","",null,"",null,null,null,null,null,null,null,null,null,null,"",""]
[null,"",null,"","",null,"",null,null,null,"",null,null,"",null,null,null,null,null,null,null,null,null,null,null,null,null,null,"",null,null,null,null,null,null,"",null,null,null,null,null,null,null,null,null,null,null,null,null,"","",null,"","",null,"",null,null,null,null,null,null,null,null,null,null,"",""]
[null,"",null,"","",null,"",null,null,null,"",null,null,"",null,null,null,null,null,null,null,null,null,null,null,null,null,null,"",null,null,null,null,null,null,"",null,null,null,null,null,null,null,null,null,null,null,null,null,"","",null,"","",null,"",null,null,null,null,null,null,null,null,null,null,"",""]
[null,"",null,"","",null,"",null,null,null,"",null,null,"",null,null,null,null,null,null,null,null,null,null,null,null,null,null,"",null,null,null,null,null,null,"",null,null,null,null,null,null,null,null,null,null,null,null,null,"","",null,"","",null,"",null,null,null,null,null,null,null,null,null,null,"",""]
[null,"",null,"","",null,"",null,null,null,"",null,null,"",null,null,null,null,null,null,null,null,null,null,null,null,null,null,"",null,null,null,null,null,null,"",null,null,null,null,null,null,null,null,null,null,null,null,null,"","",null,"","",null,"",null,null,null,null,null,null,null,null,null,null,"",""]
[null,"",null,"","",null,"",null,null,null,"",null,null,"",null,null,null,null,null,null,null,null,null,null,null,null,null,null,"",null,null,null,null,null,null,"",null,null,null,null,null,null,null,null,null,null,null,null,null,"","",null,"","",null,"",null,null,null,null,null,null,null,null,null,null,"",""]
[null,"",null,"","",null,"",null,null,null,"",null,null,"",null,null,null,null,null,null,null,null,null,null,null,null,null,null,"",null,null,null,null,null,null,"",null,null,null,null,null,null,null,null,null,null,null,null,null,"","",null,"","",null,"",null,null,null,null,null,null,null,null,null,null,"",""]
[null,"",null,"","",null,"",null,null,null,"",null,null,"",null,null,null,null,null,null,null,null,null,null,null,null,null,null,"",null,null,null,null,null,null,"",null,null,null,null,null,null,null,null,null,null,null,null,null,"","",null,"","",null,"",null,null,null,null,null,null,null,null,null,null,"",""]
[null,"",null,"","",null,"",null,null,null,"",null,null,"",null,null,null,null,null,null,null,null,null,null,null,null,null,null,"",null,null,null,null,null,null,"",null,null,null,null,null,null,null,null,null,null,null,null,null,"","",null,"","",null,"",null,null,null,null,null,null,null,null,null,null,"",""]
[null,"",null,"","",null,"",null,null,null,"",null,null,"",null,null,null,null,null,null,null,null,null,null,null,null,null,null,"",null,null,null,null,null,null,"",null,null,null,null,null,null,null,null,null,null,null,null,null,"","",null,"","",null,"",null,null,null,null,null,null,null,null,null,null,"",""]
[null,"",null,"","",null,"",null,null,null,"",null,null,"",null,null,null,null,null,null,null,null,null,null,null,null,null,null,"",null,null,null,null,null,null,"",null,null,null,null,null,null,null,null,null,null,null,null,null,"","",null,"","",null,"",null,null,null,null,null,null,null,null,null,null,"",""]
[null,"",null,"","",null,"",null,null,null,"",null,null,"",null,null,null,null,null,null,null,null,null,null,null,null,null,null,"",null,null,null,null,null,null,"",null,null,null,null,null,null,null,null,null,null,null,null,null,"","",null,"","",null,"",null,null,null,null,null,null,null,null,null,null,"",""]
[null,"",null,"","",null,"",null,null,null,"",null,null,"",null,null,null,null,null,null,null,null,null,null,null,null,null,null,"",null,null,null,null,null,null,"",null,null,null,null,null,null,null,null,null,null,null,null,null,"","",null,"","",null,"",null,null,null,null,null,null,null,null,null,null,"",""]
[null,"",null,"","",null,"",null,null,null,"",null,null,"",null,null,null,null,null,null,null,null,null,null,null,null,null,null,"",null,null,null,null,null,null,"",null,null,null,null,null,null,null,null,null,null,null,null,null,"","",null,"","",null,"",null,null,null,null,null,null,null,null,null,null,"",""]
[null,"",null,"","",null,"",null,null,null,"",null,null,"",null,null,null,null,null,null,null,null,null,null,null,null,null,null,"",null,null,null,null,null,null,"",null,null,null,null,null,null,null,null,null,null,null,null,null,"","",null,"","",null,"",null,null,null,null,null,null,null,null,null,null,"",""]
[null,"",null,"","",null,"",null,null,null,"",null,null,"",null,null,null,null,null,null,null,null,null,null,null,null,null,null,"",null,null,null,null,null,null,"",null,null,null,null,null,null,null,null,null,null,null,null,null,"","",null,"","",null,"",null,null,null,null,null,null,null,null,null,null,"",""]
[null,"",null,"","",null,"",null,null,null,"",null,null,"",null,null,null,null,null,null,null,null,null,null,null,null,null,null,"",null,null,null,null,null,null,"",null,null,null,null,null,null,null,null,null,null,null,null,null,"","",null,"","",null,"",null,null,null,null,null,null,null,null,null,null,"",""]
[null,"",null,"","",null,"",null,null,null,"",null,null,"",null,null,null,null,null,null,null,null,null,null,null,null,null,null,"",null,null,null,null,null,null,"",null,null,null,null,null,null,null,null,null,null,null,null,null,"","",null,"","",null,"",null,null,null,null,null,null,null,null,null,null,"",""]
[null,"",null,"","",null,"",null,null,null,"",null,null,"",null,null,null,null,null,null,null,null,null,null,null,null,null,null,"",null,null,null,null,null,null,"",null,null,null,null,null,null,null,null,null,null,null,null,null,"","",null,"","",null,"",null,null,null,null,null,null,null,null,null,null,"",""]
[null,"",null,"","",null,"",null,null,null,"",null,null,"",null,null,null,null,null,null,null,null,null,null,null,null,null,null,"",null,null,null,null,null,null,"",null,null,null,null,null,null,null,null,null,null,null,null,null,"","",null,"","",null,"",null,null,null,null,null,null,null,null,null,null,"",""]
[null,"",null,"","",null,"",null,null,null,"",null,null,"",null,null,null,null,null,null,null,null,null,null,null,null,null,null,"",null,null,null,null,null,null,"",null,null,null,null,null,null,null,null,null,null,null,null,null,"","",null,"","",null,"",null,null,null,null,null,null,null,null,null,null,"",""]
[null,"",null,"","",null,"",null,null,null,"",null,null,"",null,null,null,null,null,null,null,null,null,null,null,null,null,null,"",null,null,null,null,null,null,"",null,null,null,null,null,null,null,null,null,null,null,null,null,"","",null,"","",null,"",null,null,null,null,null,null,null,null,null,null,"",""]
[null,"",null,"","",null,"",null,null,null,"",null,null,"",null,null,null,null,null,null,null,null,null,null,null,null,null,null,"",null,null,null,null,null,null,"",null,null,null,null,null,null,null,null,null,null,null,null,null,"","",null,"","",null,"",null,null,null,null,null,null,null,null,null,null,"",""]
[null,"",null,"","",null,"",null,null,null,"",null,null,"",null,null,null,null,null,null,null,null,null,null,null,null,null,null,"",null,null,null,null,null,null,"",null,null,null,null,null,null,null,null,null,null,null,null,null,"","",null,"","",null,"",null,null,null,null,null,null,null,null,null,null,"",""]
[null,"",null,"","",null,"",null,null,null,"",null,null,"",null,null,null,null,null,null,null,null,null,null,null,null,null,null,"",null,null,null,null,null,null,"",null,null,null,null,null,null,null,null,null,null,null,null,null,"","",null,"","",null,"",null,null,null,null,null,null,null,null,null,null,"",""]
[null,"",null,"","",null,"",null,null,null,"",null,null,"",null,null,null,null,null,null,null,null,null,null,null,null,null,null,"",null,null,null,null,null,null,"",null,null,null,null,null,null,null,null,null,null,null,null,null,"","",null,"","",null,"",null,null,null,null,null,null,null,null,null,null,"",""]
[null,"",null,"","",null,"",null,null,null,"",null,null,"",null,null,null,null,null,null,null,null,null,null,null,null,null,null,"",null,null,null,null,null,null,"",null,null,null,null,null,null,null,null,null,null,null,null,null,"","",null,"","",null,"",null,null,null,null,null,null,null,null,null,null,"",""]
[null,"",null,"","",null,"",null,null,null,"",null,null,"",null,null,null,null,null,null,null,null,null,null,null,null,null,null,"",null,null,null,null,null,null,"",null,null,null,null,null,null,null,null,null,null,null,null,null,"","",null,"","",null,"",null,null,null,null,null,null,null,null,null,null,"",""]
[null,"",null,"","",null,"",null,null,null,"",null,null,"",null,null,null,null,null,null,null,null,null,null,null,null,null,null,"",null,null,null,null,null,null,"",null,null,null,null,null,null,null,null,null,null,null,null,null,"","",null,"","",null,"",null,null,null,null,null,null,null,null,null,null,"",""]
[null,"",null,"","",null,"",null,null,null,"",null,null,"",null,null,null,null,null,null,null,null,null,null,null,null,null,null,"",null,null,null,null,null,null,"",null,null,null,null,null,null,null,null,null,null,null,null,null,"","",null,"","",null,"",null,null,null,null,null,null,null,null,null,null,"",""]
[null,"",null,"","",null,"",null,null,null,"",null,null,"",null,null,null,null,null,null,null,null,null,null,null,null,null,null,"",null,null,null,null,null,null,"",null,null,null,null,null,null,null,null,null,null,null,null,null,"","",null,"","",null,"",null,null,null,null,null,null,null,null,null,null,"",""]
[null,"",null,"","",null,"",null,null,null,"",null,null,"",null,null,null,null,null,null,null,null,null,null,null,null,null,null,"",null,null,null,null,null,null,"",null,null,null,null,null,null,null,null,null,null,null,null,null,"","",null,"","",null,"",null,null,null,null,null,null,null,null,null,null,"",""]
[null,"",null,"","",null,"",null,null,null,"",null,null,"",null,null,null,null,null,null,null,null,null,null,null,null,null,null,"",null,null,null,null,null,null,"",null,null,null,null,null,null,null,null,null,null,null,null,null,"","",null,"","",null,"",null,null,null,null,null,null,null,null,null,null,"",""]
[null,"",null,"","",null,"",null,null,null,"",null,null,"",null,null,null,null,null,null,null,null,null,null,null,null,null,null,"",null,null,null,null,null,null,"",null,null,null,null,null,null,null,null,null,null,null,null,null,"","",null,"","",null,"",null,null,null,null,null,null,null,null,null,null,"",""]
[null,"",null,"","",null,"",null,null,null,"",null,null,"",null,null,null,null,null,null,null,null,null,null,null,null,null,null,"",null,null,null,null,null,null,"",null,null,null,null,null,null,null,null,null,null,null,null,null,"","",null,"","",null,"",null,null,null,null,null,null,null,null,null,null,"",""]
[null,"",null,"","",null,"",null,null,null,"",null,null,"",null,null,null,null,null,null,null,null,null,null,null,null,null,null,"",null,null,null,null,null,null,"",null,null,null,null,null,null,null,null,null,null,null,null,null,"","",null,"","",null,"",null,null,null,null,null,null,null,null,null,null,"",""]
[null,"",null,"","",null,"",null,null,null,"",null,null,"",null,null,null,null,null,null,null,null,null,null,null,null,null,null,"",null,null,null,null,null,null,"",null,null,null,null,null,null,null,null,null,null,null,null,null,"","",null,"","",null,"",null,null,null,null,null,null,null,null,null,null,"",""]
[null,"",null,"","",null,"",null,null,null,"",null,null,"",null,null,null,null,null,null,null,null,null,null,null,null,null,null,"",null,null,null,null,null,null,"",null,null,null,null,null,null,null,null,null,null,null,null,null,"","",null,"","",null,"",null,null,null,null,null,null,null,null,null,null,"",""]
[null,"",null,"","",null,"",null,null,null,"",null,null,"",null,null,null,null,null,null,null,null,null,null,null,null,null,null,"",null,null,null,null,null,null,"",null,null,null,null,null,null,null,null,null,null,null,null,null,"","",null,"","",null,"",null,null,null,null,null,null,null,null,null,null,"",""]
[null,"",null,"","",null,"",null,null,null,"",null,null,"",null,null,null,null,null,null,null,null,null,null,null,null,null,null,"",null,null,null,null,null,null,"",null,null,null,null,null,null,null,null,null,null,null,null,null,"","",null,"","",null,"",null,null,null,null,null,null,null,null,null,null,"",""]
[null,"",null,"","",null,"",null,null,null,"",null,null,"",null,null,null,null,null,null,null,null,null,null,null,null,null,null,"",null,null,null,null,null,null,"",null,null,null,null,null,null,null,null,null,null,null,null,null,"","",null,"","",null,"",null,null,null,null,null,null,null,null,null,null,"",""]
[null,"",null,"","",null,"",null,null,null,"",null,null,"",null,null,null,null,null,null,null,null,null,null,null,null,null,null,"",null,null,null,null,null,null,"",null,null,null,null,null,null,null,null,null,null,null,null,null,"","",null,"","",null,"",null,null,null,null,null,null,null,null,null,null,"",""]
[null,"",null,"","",null,"",null,null,null,"",null,null,"",null,null,null,null,null,null,null,null,null,null,null,null,null,null,"",null,null,null,null,null,null,"",null,null,null,null,null,null,null,null,null,null,null,null,null,"","",null,"","",null,"",null,null,null,null,null,null,null,null,null,null,"",""]
[null,"",null,"","",null,"",null,null,null,"",null,null,"",null,null,null,null,null,null,null,null,null,null,null,null,null,null,"",null,null,null,null,null,null,"",null,null,null,null,null,null,null,null,null,null,null,null,null,"","",null,"","",null,"",null,null,null,null,null,null,null,null,null,null,"",""]
[null,"",null,"","",null,"",null,null,null,"",null,null,"",null,null,null,null,null,null,null,null,null,null,null,null,null,null,"",null,null,null,null,null,null,"",null,null,null,null,null,null,null,null,null,null,null,null,null,"","",null,"","",null,"",null,null,null,null,null,null,null,null,null,null,"",""]
[null,"",null,"","",null,"",null,null,null,"",null,null,"",null,null,null,null,null,null,null,null,null,null,null,null,null,null,"",null,null,null,null,null,null,"",null,null,null,null,null,null,null,null,null,null,null,null,null,"","",null,"","",null,"",null,null,null,null,null,null,null,null,null,null,"",""]
[null,"",null,"","",null,"",null,null,null,"",null,null,"",null,null,null,null,null,null,null,null,null,null,null,null,null,null,"",null,null,null,null,null,null,"",null,null,null,null,null,null,null,null,null,null,null,null,null,"","",null,"","",null,"",null,null,null,null,null,null,null,null,null,null,"",""]
[null,"",null,"","",null,"",null,null,null,"",null,null,"",null,null,null,null,null,null,null,null,null,null,null,null,null,null,"",null,null,null,null,null,null,"",null,null,null,null,null,null,null,null,null,null,null,null,null,"","",null,"","",null,"",null,null,null,null,null,null,null,null,null,null,"",""]
[null,"",null,"","",null,"",null,null,null,"",null,null,"",null,null,null,null,null,null,null,null,null,null,null,null,null,null,"",null,null,null,null,null,null,"",null,null,null,null,null,null,null,null,null,null,null,null,null,"","",null,"","",null,"",null,null,null,null,null,null,null,null,null,null,"",""]
[null,"",null,"","",null,"",null,null,null,"",null,null,"",null,null,null,null,null,null,null,null,null,null,null,null,null,null,"",null,null,null,null,null,null,"",null,null,null,null,null,null,null,null,null,null,null,null,null,"","",null,"","",null,"",null,null,null,null,null,null,null,null,null,null,"",""]
[null,"",null,"","",null,"",null,null,null,"",null,null,"",null,null,null,null,null,null,null,null,null,null,null,null,null,null,"",null,null,null,null,null,null,"",null,null,null,null,null,null,null,null,null,null,null,null,null,"","",null,"","",null,"",null,null,null,null,null,null,null,null,null,null,"",""]
[null,"",null,"","",null,"",null,null,null,"",null,null,"",null,null,null,null,null,null,null,null,null,null,null,null,null,null,"",null,null,null,null,null,null,"",null,null,null,null,null,null,null,null,null,null,null,null,null,"","",null,"","",null,"",null,null,null,null,null,null,null,null,null,null,"",""]
[null,"",null,"","",null,"",null,null,null,"",null,null,"",null,null,null,null,null,null,null,null,null,null,null,null,null,null,"",null,null,null,null,null,null,"",null,null,null,null,null,null,null,null,null,null,null,null,null,"","",null,"","",null,"",null,null,null,null,null,null,null,null,null,null,"",""]
[null,"",null,"","",null,"",null,null,null,"",null,null,"",null,null,null,null,null,null,null,null,null,null,null,null,null,null,"",null,null,null,null,null,null,"",null,null,null,null,null,null,null,null,null,null,null,null,null,"","",null,"","",null,"",null,null,null,null,null,null,null,null,null,null,"",""]
[null,"",null,"","",null,"",null,null,null,"",null,null,"",null,null,null,null,null,null,null,null,null,null,null,null,null,null,"",null,null,null,null,null,null,"",null,null,null,null,null,null,null,null,null,null,null,null,null,"","",null,"","",null,"",null,null,null,null,null,null,null,null,null,null,"",""]
[null,"",null,"","",null,"",null,null,null,"",null,null,"",null,null,null,null,null,null,null,null,null,null,null,null,null,null,"",null,null,null,null,null,null,"",null,null,null,null,null,null,null,null,null,null,null,null,null,"","",null,"","",null,"",null,null,null,null,null,null,null,null,null,null,"",""]
[null,"",null,"","",null,"",null,null,null,"",null,null,"",null,null,null,null,null,null,null,null,null,null,null,null,null,null,"",null,null,null,null,null,null,"",null,null,null,null,null,null,null,null,null,null,null,null,null,"","",null,"","",null,"",null,null,null,null,null,null,null,null,null,null,"",""]
[null,"",null,"","",null,"",null,null,null,"",null,null,"",null,null,null,null,null,null,null,null,null,null,null,null,null,null,"",null,null,null,null,null,null,"",null,null,null,null,null,null,null,null,null,null,null,null,null,"","",null,"","",null,"",null,null,null,null,null,null,null,null,null,null,"",""]
[null,{"$f":"IF(OR($A692=\"English\",$A692=\"Ελληνικά\"),\"Individual\",\"\")","v":""},null,{"$f":"IF(OR($A692=\"English\",$A692=\"Ελληνικά\"),\"Standard\",\"\")","v":""},{"$f":"IF(OR($A692=\"English\",$A692=\"Ελληνικά\"),\"Small/Medium Enterprise\",\"\")","v":""},null,"",null,null,null,"",null,null,"",null,null,null,null,null,null,null,null,null,null,null,null,null,null,"",null,null,null,null,null,null,"",null,null,null,null,null,null,null,null,null,null,null,null,null,"","",null,"","",null,"",null,null,null,null,null,null,null,null,null,null,"",""]
[null,"",null,"","",null,{"$f":"IF(A693=\"\",\"\",IF(AH693=\"Ammochostos\",\"Famagusta\",IF(AH693=\"Larnaka\",\"Larnaca\",IF(AH693=\"Lemesos\",\"Limassol\",IF(AH693=\"Nicosia\",\"Nicosia\",IF(AH693=\"Pafos\",\"Paphos\",\"Central Offices\"))))))","v":""},null,null,null,"",null,null,"",null,null,null,null,null,null,null,null,null,null,null,null,null,null,{"$f":"IF(OR($A693=\"English\",$A693=\"Ελληνικά\"),\"Residence\",\"\")","v":""},null,null,null,null,null,null,{"$f":"IF(OR($A693=\"English\",$A693=\"Ελληνικά\"),\"Yes\",\"\")","v":""},null,null,null,null,null,null,null,null,null,null,null,null,null,{"$f":"IF(OR($A693=\"English\",$A693=\"Ελληνικά\"),\"Yes\",\"\")","v":""},{"$f":"IF(OR($A693=\"English\",$A693=\"Ελληνικά\"),\"Primary\",\"\")","v":""},null,{"$f":"IF(OR($A693=\"English\",$A693=\"Ελληνικά\"),\"Yes\",\"\")","v":""},"",null,"",null,null,null,null,null,null,null,null,null,null,"",{"$f":"IF(OR($A693=\"English\",$A693=\"Ελληνικά\"),\"INDIVIDUAL WITHOUT RETURN SUBMISSION OBLIGATION\",\"\")","v":""}]
[null,"",null,"","",null,"",null,null,null,{"$f":"IF(OR($A694=\"English\",$A694=\"Ελληνικά\"),\"Yes\",\"\")","v":""},null,null,{"$f":"IF($T694=\"Male\", \"Mr\", IF($T694=\"Female\", \"Mrs\", \"\"))","v":""},null,null,null,null,null,null,null,null,null,null,null,null,null,null,"",null,null,null,null,null,null,"",null,null,null,null,null,null,null,null,null,null,null,null,null,"","",null,"",{"$f":"IF(OR($A694=\"English\",$A694=\"Ελληνικά\"),\"Social Insurance\",\"\")","v":""},null,{"$f":"IF(OR($A694=\"English\",$A694=\"Ελληνικά\"),\"Cyprus\",\"\")","v":""},null,null,null,null,null,null,null,null,null,null,{"$f":"IF(OR($A694=\"English\",$A694=\"Ελληνικά\"),\"Applicant / Taxpayer\",\"\")","v":""},""]
[null,"",null,"","",null,"",null,null,null,"",null,null,"",null,null,null,null,null,null,null,null,null,null,null,null,null,null,"",null,null,null,null,null,null,"",null,null,null,null,null,null,null,null,null,null,null,null,null,"","",null,"","",null,"",null,null,null,null,null,null,null,null,null,null,"",""]
[null,"",null,"","",null,"",null,null,null,"",null,null,"",null,null,null,null,null,null,null,null,null,null,null,null,null,null,"",null,null,null,null,null,null,"",null,null,null,null,null,null,null,null,null,null,null,null,null,"","",null,"","",null,"",null,null,null,null,null,null,null,null,null,null,"",""]
[null,"",null,"","",null,"",null,null,null,"",null,null,"",null,null,null,null,null,null,null,null,null,null,null,null,null,null,"",null,null,null,null,null,null,"",null,null,null,null,null,null,null,null,null,null,null,null,null,"","",null,"","",null,"",null,null,null,null,null,null,null,null,null,null,"",""]
[null,"",null,"","",null,"",null,null,null,"",null,null,"",null,null,null,null,null,null,null,null,null,null,null,null,null,null,"",null,null,null,null,null,null,"",null,null,null,null,null,null,null,null,null,null,null,null,null,"","",null,"","",null,"",null,null,null,null,null,null,null,null,null,null,"",""]
[null,"",null,"","",null,"",null,null,null,"",null,null,"",null,null,null,null,null,null,null,null,null,null,null,null,null,null,"",null,null,null,null,null,null,"",null,null,null,null,null,null,null,null,null,null,null,null,null,"","",null,"","",null,"",null,null,null,null,null,null,null,null,null,null,"",""]
[null,"",null,"","",null,"",null,null,null,"",null,null,"",null,null,null,null,null,null,null,null,null,null,null,null,null,null,"",null,null,null,null,null,null,"",null,null,null,null,null,null,null,null,null,null,null,null,null,"","",null,"","",null,"",null,null,null,null,null,null,null,null,null,null,"",""]
[null,"",null,"","",null,"",null,null,null,"",null,null,"",null,null,null,null,null,null,null,null,null,null,null,null,null,null,"",null,null,null,null,null,null,"",null,null,null,null,null,null,null,null,null,null,null,null,null,"","",null,"","",null,"",null,null,null,null,null,null,null,null,null,null,"",""]
[null,"",null,"","",null,"",null,null,null,"",null,null,"",null,null,null,null,null,null,null,null,null,null,null,null,null,null,"",null,null,null,null,null,null,"",null,null,null,null,null,null,null,null,null,null,null,null,null,"","",null,"","",null,"",null,null,null,null,null,null,null,null,null,null,"",""]
[null,"",null,"","",null,"",null,null,null,"",null,null,"",null,null,null,null,null,null,null,null,null,null,null,null,null,null,"",null,null,null,null,null,null,"",null,null,null,null,null,null,null,null,null,null,null,null,null,"","",null,"","",null,"",null,null,null,null,null,null,null,null,null,null,"",""]
[null,"",null,"","",null,"",null,null,null,"",null,null,"",null,null,null,null,null,null,null,null,null,null,null,null,null,null,"",null,null,null,null,null,null,"",null,null,null,null,null,null,null,null,null,null,null,null,null,"","",null,"","",null,"",null,null,null,null,null,null,null,null,null,null,"",""]
[null,"",null,"","",null,"",null,null,null,"",null,null,"",null,null,null,null,null,null,null,null,null,null,null,null,null,null,"",null,null,null,null,null,null,"",null,null,null,null,null,null,null,null,null,null,null,null,null,"","",null,"","",null,"",null,null,null,null,null,null,null,null,null,null,"",""]
[null,"",null,"","",null,"",null,null,null,"",null,null,"",null,null,null,null,null,null,null,null,null,null,null,null,null,null,"",null,null,null,null,null,null,"",null,null,null,null,null,null,null,null,null,null,null,null,null,"","",null,"","",null,"",null,null,null,null,null,null,null,null,null,null,"",""]
[null,"",null,"","",null,"",null,null,null,"",null,null,"",null,null,null,null,null,null,null,null,null,null,null,null,null,null,"",null,null,null,null,null,null,"",null,null,null,null,null,null,null,null,null,null,null,null,null,"","",null,"","",null,"",null,null,null,null,null,null,null,null,null,null,"",""]
[null,"",null,"","",null,"",null,null,null,"",null,null,"",null,null,null,null,null,null,null,null,null,null,null,null,null,null,"",null,null,null,null,null,null,"",null,null,null,null,null,null,null,null,null,null,null,null,null,"","",null,"","",null,"",null,null,null,null,null,null,null,null,null,null,"",""]
[null,"",null,"","",null,"",null,null,null,"",null,null,"",null,null,null,null,null,null,null,null,null,null,null,null,null,null,"",null,null,null,null,null,null,"",null,null,null,null,null,null,null,null,null,null,null,null,null,"","",null,"","",null,"",null,null,null,null,null,null,null,null,null,null,"",""]
[null,"",null,"","",null,"",null,null,null,"",null,null,"",null,null,null,null,null,null,null,null,null,null,null,null,null,null,"",null,null,null,null,null,null,"",null,null,null,null,null,null,null,null,null,null,null,null,null,"","",null,"","",null,"",null,null,null,null,null,null,null,null,null,null,"",""]
[null,"",null,"","",null,"",null,null,null,"",null,null,"",null,null,null,null,null,null,null,null,null,null,null,null,null,null,"",null,null,null,null,null,null,"",null,null,null,null,null,null,null,null,null,null,null,null,null,"","",null,"","",null,"",null,null,null,null,null,null,null,null,null,null,"",""]
[null,"",null,"","",null,"",null,null,null,"",null,null,"",null,null,null,null,null,null,null,null,null,null,null,null,null,null,"",null,null,null,null,null,null,"",null,null,null,null,null,null,null,null,null,null,null,null,null,"","",null,"","",null,"",null,null,null,null,null,null,null,null,null,null,"",""]
[null,"",null,"","",null,"",null,null,null,"",null,null,"",null,null,null,null,null,null,null,null,null,null,null,null,null,null,"",null,null,null,null,null,null,"",null,null,null,null,null,null,null,null,null,null,null,null,null,"","",null,"","",null,"",null,null,null,null,null,null,null,null,null,null,"",""]
[null,"",null,"","",null,"",null,null,null,"",null,null,"",null,null,null,null,null,null,null,null,null,null,null,null,null,null,"",null,null,null,null,null,null,"",null,null,null,null,null,null,null,null,null,null,null,null,null,"","",null,"","",null,"",null,null,null,null,null,null,null,null,null,null,"",""]
[null,"",null,"","",null,"",null,null,null,"",null,null,"",null,null,null,null,null,null,null,null,null,null,null,null,null,null,"",null,null,null,null,null,null,"",null,null,null,null,null,null,null,null,null,null,null,null,null,"","",null,"","",null,"",null,null,null,null,null,null,null,null,null,null,"",""]
[null,"",null,"","",null,"",null,null,null,"",null,null,"",null,null,null,null,null,null,null,null,null,null,null,null,null,null,"",null,null,null,null,null,null,"",null,null,null,null,null,null,null,null,null,null,null,null,null,"","",null,"","",null,"",null,null,null,null,null,null,null,null,null,null,"",""]
[null,"",null,"","",null,"",null,null,null,"",null,null,"",null,null,null,null,null,null,null,null,null,null,null,null,null,null,"",null,null,null,null,null,null,"",null,null,null,null,null,null,null,null,null,null,null,null,null,"","",null,"","",null,"",null,null,null,null,null,null,null,null,null,null,"",""]
[null,"",null,"","",null,"",null,null,null,"",null,null,"",null,null,null,null,null,null,null,null,null,null,null,null,null,null,"",null,null,null,null,null,null,"",null,null,null,null,null,null,null,null,null,null,null,null,null,"","",null,"","",null,"",null,null,null,null,null,null,null,null,null,null,"",""]
[null,"",null,"","",null,"",null,null,null,"",null,null,"",null,null,null,null,null,null,null,null,null,null,null,null,null,null,"",null,null,null,null,null,null,"",null,null,null,null,null,null,null,null,null,null,null,null,null,"","",null,"","",null,"",null,null,null,null,null,null,null,null,null,null,"",""]
[null,"",null,"","",null,"",null,null,null,"",null,null,"",null,null,null,null,null,null,null,null,null,null,null,null,null,null,"",null,null,null,null,null,null,"",null,null,null,null,null,null,null,null,null,null,null,null,null,"","",null,"","",null,"",null,null,null,null,null,null,null,null,null,null,"",""]
[null,"",null,"","",null,"",null,null,null,"",null,null,"",null,null,null,null,null,null,null,null,null,null,null,null,null,null,"",null,null,null,null,null,null,"",null,null,null,null,null,null,null,null,null,null,null,null,null,"","",null,"","",null,"",null,null,null,null,null,null,null,null,null,null,"",""]
[null,"",null,"","",null,"",null,null,null,"",null,null,"",null,null,null,null,null,null,null,null,null,null,null,null,null,null,"",null,null,null,null,null,null,"",null,null,null,null,null,null,null,null,null,null,null,null,null,"","",null,"","",null,"",null,null,null,null,null,null,null,null,null,null,"",""]
[null,"",null,"","",null,"",null,null,null,"",null,null,"",null,null,null,null,null,null,null,null,null,null,null,null,null,null,"",null,null,null,null,null,null,"",null,null,null,null,null,null,null,null,null,null,null,null,null,"","",null,"","",null,"",null,null,null,null,null,null,null,null,null,null,"",""]
[null,"",null,"","",null,"",null,null,null,"",null,null,"",null,null,null,null,null,null,null,null,null,null,null,null,null,null,"",null,null,null,null,null,null,"",null,null,null,null,null,null,null,null,null,null,null,null,null,"","",null,"","",null,"",null,null,null,null,null,null,null,null,null,null,"",""]
[null,"",null,"","",null,"",null,null,null,"",null,null,"",null,null,null,null,null,null,null,null,null,null,null,null,null,null,"",null,null,null,null,null,null,"",null,null,null,null,null,null,null,null,null,null,null,null,null,"","",null,"","",null,"",null,null,null,null,null,null,null,null,null,null,"",""]
[null,"",null,"","",null,"",null,null,null,"",null,null,"",null,null,null,null,null,null,null,null,null,null,null,null,null,null,"",null,null,null,null,null,null,"",null,null,null,null,null,null,null,null,null,null,null,null,null,"","",null,"","",null,"",null,null,null,null,null,null,null,null,null,null,"",""]
[null,"",null,"","",null,"",null,null,null,"",null,null,"",null,null,null,null,null,null,null,null,null,null,null,null,null,null,"",null,null,null,null,null,null,"",null,null,null,null,null,null,null,null,null,null,null,null,null,"","",null,"","",null,"",null,null,null,null,null,null,null,null,null,null,"",""]
[null,"",null,"","",null,"",null,null,null,"",null,null,"",null,null,null,null,null,null,null,null,null,null,null,null,null,null,"",null,null,null,null,null,null,"",null,null,null,null,null,null,null,null,null,null,null,null,null,"","",null,"","",null,"",null,null,null,null,null,null,null,null,null,null,"",""]
[null,"",null,"","",null,"",null,null,null,"",null,null,"",null,null,null,null,null,null,null,null,null,null,null,null,null,null,"",null,null,null,null,null,null,"",null,null,null,null,null,null,null,null,null,null,null,null,null,"","",null,"","",null,"",null,null,null,null,null,null,null,null,null,null,"",""]
[null,"",null,"","",null,"",null,null,null,"",null,null,"",null,null,null,null,null,null,null,null,null,null,null,null,null,null,"",null,null,null,null,null,null,"",null,null,null,null,null,null,null,null,null,null,null,null,null,"","",null,"","",null,"",null,null,null,null,null,null,null,null,null,null,"",""]
[null,"",null,"","",null,"",null,null,null,"",null,null,"",null,null,null,null,null,null,null,null,null,null,null,null,null,null,"",null,null,null,null,null,null,"",null,null,null,null,null,null,null,null,null,null,null,null,null,"","",null,"","",null,"",null,null,null,null,null,null,null,null,null,null,"",""]
[null,"",null,"","",null,"",null,null,null,"",null,null,"",null,null,null,null,null,null,null,null,null,null,null,null,null,null,"",null,null,null,null,null,null,"",null,null,null,null,null,null,null,null,null,null,null,null,null,"","",null,"","",null,"",null,null,null,null,null,null,null,null,null,null,"",""]
[null,"",null,"","",null,"",null,null,null,"",null,null,"",null,null,null,null,null,null,null,null,null,null,null,null,null,null,"",null,null,null,null,null,null,"",null,null,null,null,null,null,null,null,null,null,null,null,null,"","",null,"","",null,"",null,null,null,null,null,null,null,null,null,null,"",""]
[null,"",null,"","",null,"",null,null,null,"",null,null,"",null,null,null,null,null,null,null,null,null,null,null,null,null,null,"",null,null,null,null,null,null,"",null,null,null,null,null,null,null,null,null,null,null,null,null,"","",null,"","",null,"",null,null,null,null,null,null,null,null,null,null,"",""]
[null,"",null,"","",null,"",null,null,null,"",null,null,"",null,null,null,null,null,null,null,null,null,null,null,null,null,null,"",null,null,null,null,null,null,"",null,null,null,null,null,null,null,null,null,null,null,null,null,"","",null,"","",null,"",null,null,null,null,null,null,null,null,null,null,"",""]
[null,"",null,"","",null,"",null,null,null,"",null,null,"",null,null,null,null,null,null,null,null,null,null,null,null,null,null,"",null,null,null,null,null,null,"",null,null,null,null,null,null,null,null,null,null,null,null,null,"","",null,"","",null,"",null,null,null,null,null,null,null,null,null,null,"",""]
[null,"",null,"","",null,"",null,null,null,"",null,null,"",null,null,null,null,null,null,null,null,null,null,null,null,null,null,"",null,null,null,null,null,null,"",null,null,null,null,null,null,null,null,null,null,null,null,null,"","",null,"","",null,"",null,null,null,null,null,null,null,null,null,null,"",""]
[null,"",null,"","",null,"",null,null,null,"",null,null,"",null,null,null,null,null,null,null,null,null,null,null,null,null,null,"",null,null,null,null,null,null,"",null,null,null,null,null,null,null,null,null,null,null,null,null,"","",null,"","",null,"",null,null,null,null,null,null,null,null,null,null,"",""]
[null,"",null,"","",null,"",null,null,null,"",null,null,"",null,null,null,null,null,null,null,null,null,null,null,null,null,null,"",null,null,null,null,null,null,"",null,null,null,null,null,null,null,null,null,null,null,null,null,"","",null,"","",null,"",null,null,null,null,null,null,null,null,null,null,"",""]
[null,"",null,"","",null,"",null,null,null,"",null,null,"",null,null,null,null,null,null,null,null,null,null,null,null,null,null,"",null,null,null,null,null,null,"",null,null,null,null,null,null,null,null,null,null,null,null,null,"","",null,"","",null,"",null,null,null,null,null,null,null,null,null,null,"",""]
[null,"",null,"","",null,"",null,null,null,"",null,null,"",null,null,null,null,null,null,null,null,null,null,null,null,null,null,"",null,null,null,null,null,null,"",null,null,null,null,null,null,null,null,null,null,null,null,null,"","",null,"","",null,"",null,null,null,null,null,null,null,null,null,null,"",""]
[null,"",null,"","",null,"",null,null,null,"",null,null,"",null,null,null,null,null,null,null,null,null,null,null,null,null,null,"",null,null,null,null,null,null,"",null,null,null,null,null,null,null,null,null,null,null,null,null,"","",null,"","",null,"",null,null,null,null,null,null,null,null,null,null,"",""]
[null,"",null,"","",null,"",null,null,null,"",null,null,"",null,null,null,null,null,null,null,null,null,null,null,null,null,null,"",null,null,null,null,null,null,"",null,null,null,null,null,null,null,null,null,null,null,null,null,"","",null,"","",null,"",null,null,null,null,null,null,null,null,null,null,"",""]
[null,"",null,"","",null,"",null,null,null,"",null,null,"",null,null,null,null,null,null,null,null,null,null,null,null,null,null,"",null,null,null,null,null,null,"",null,null,null,null,null,null,null,null,null,null,null,null,null,"","",null,"","",null,"",null,null,null,null,null,null,null,null,null,null,"",""]
[null,"",null,"","",null,"",null,null,null,"",null,null,"",null,null,null,null,null,null,null,null,null,null,null,null,null,null,"",null,null,null,null,null,null,"",null,null,null,null,null,null,null,null,null,null,null,null,null,"","",null,"","",null,"",null,null,null,null,null,null,null,null,null,null,"",""]
[null,"",null,"","",null,"",null,null,null,"",null,null,"",null,null,null,null,null,null,null,null,null,null,null,null,null,null,"",null,null,null,null,null,null,"",null,null,null,null,null,null,null,null,null,null,null,null,null,"","",null,"","",null,"",null,null,null,null,null,null,null,null,null,null,"",""]
[null,"",null,"","",null,"",null,null,null,"",null,null,"",null,null,null,null,null,null,null,null,null,null,null,null,null,null,"",null,null,null,null,null,null,"",null,null,null,null,null,null,null,null,null,null,null,null,null,"","",null,"","",null,"",null,null,null,null,null,null,null,null,null,null,"",""]
[null,"",null,"","",null,"",null,null,null,"",null,null,"",null,null,null,null,null,null,null,null,null,null,null,null,null,null,"",null,null,null,null,null,null,"",null,null,null,null,null,null,null,null,null,null,null,null,null,"","",null,"","",null,"",null,null,null,null,null,null,null,null,null,null,"",""]
[null,"",null,"","",null,"",null,null,null,"",null,null,"",null,null,null,null,null,null,null,null,null,null,null,null,null,null,"",null,null,null,null,null,null,"",null,null,null,null,null,null,null,null,null,null,null,null,null,"","",null,"","",null,"",null,null,null,null,null,null,null,null,null,null,"",""]
[null,"",null,"","",null,"",null,null,null,"",null,null,"",null,null,null,null,null,null,null,null,null,null,null,null,null,null,"",null,null,null,null,null,null,"",null,null,null,null,null,null,null,null,null,null,null,null,null,"","",null,"","",null,"",null,null,null,null,null,null,null,null,null,null,"",""]
[null,"",null,"","",null,"",null,null,null,"",null,null,"",null,null,null,null,null,null,null,null,null,null,null,null,null,null,"",null,null,null,null,null,null,"",null,null,null,null,null,null,null,null,null,null,null,null,null,"","",null,"","",null,"",null,null,null,null,null,null,null,null,null,null,"",""]
[null,"",null,"","",null,"",null,null,null,"",null,null,"",null,null,null,null,null,null,null,null,null,null,null,null,null,null,"",null,null,null,null,null,null,"",null,null,null,null,null,null,null,null,null,null,null,null,null,"","",null,"","",null,"",null,null,null,null,null,null,null,null,null,null,"",""]
[null,"",null,"","",null,"",null,null,null,"",null,null,"",null,null,null,null,null,null,null,null,null,null,null,null,null,null,"",null,null,null,null,null,null,"",null,null,null,null,null,null,null,null,null,null,null,null,null,"","",null,"","",null,"",null,null,null,null,null,null,null,null,null,null,"",""]
[null,"",null,"","",null,"",null,null,null,"",null,null,"",null,null,null,null,null,null,null,null,null,null,null,null,null,null,"",null,null,null,null,null,null,"",null,null,null,null,null,null,null,null,null,null,null,null,null,"","",null,"","",null,"",null,null,null,null,null,null,null,null,null,null,"",""]
[null,"",null,"","",null,"",null,null,null,"",null,null,"",null,null,null,null,null,null,null,null,null,null,null,null,null,null,"",null,null,null,null,null,null,"",null,null,null,null,null,null,null,null,null,null,null,null,null,"","",null,"","",null,"",null,null,null,null,null,null,null,null,null,null,"",""]
[null,{"$f":"IF(OR($A756=\"English\",$A756=\"Ελληνικά\"),\"Individual\",\"\")","v":""},null,{"$f":"IF(OR($A756=\"English\",$A756=\"Ελληνικά\"),\"Standard\",\"\")","v":""},{"$f":"IF(OR($A756=\"English\",$A756=\"Ελληνικά\"),\"Small/Medium Enterprise\",\"\")","v":""},null,"",null,null,null,"",null,null,"",null,null,null,null,null,null,null,null,null,null,null,null,null,null,"",null,null,null,null,null,null,"",null,null,null,null,null,null,null,null,null,null,null,null,null,"","",null,"","",null,"",null,null,null,null,null,null,null,null,null,null,"",""]
[null,"",null,"","",null,{"$f":"IF(A757=\"\",\"\",IF(AH757=\"Ammochostos\",\"Famagusta\",IF(AH757=\"Larnaka\",\"Larnaca\",IF(AH757=\"Lemesos\",\"Limassol\",IF(AH757=\"Nicosia\",\"Nicosia\",IF(AH757=\"Pafos\",\"Paphos\",\"Central Offices\"))))))","v":""},null,null,null,"",null,null,"",null,null,null,null,null,null,null,null,null,null,null,null,null,null,{"$f":"IF(OR($A757=\"English\",$A757=\"Ελληνικά\"),\"Residence\",\"\")","v":""},null,null,null,null,null,null,{"$f":"IF(OR($A757=\"English\",$A757=\"Ελληνικά\"),\"Yes\",\"\")","v":""},null,null,null,null,null,null,null,null,null,null,null,null,null,{"$f":"IF(OR($A757=\"English\",$A757=\"Ελληνικά\"),\"Yes\",\"\")","v":""},{"$f":"IF(OR($A757=\"English\",$A757=\"Ελληνικά\"),\"Primary\",\"\")","v":""},null,{"$f":"IF(OR($A757=\"English\",$A757=\"Ελληνικά\"),\"Yes\",\"\")","v":""},"",null,"",null,null,null,null,null,null,null,null,null,null,"",{"$f":"IF(OR($A757=\"English\",$A757=\"Ελληνικά\"),\"INDIVIDUAL WITHOUT RETURN SUBMISSION OBLIGATION\",\"\")","v":""}]
[null,"",null,"","",null,"",null,null,null,{"$f":"IF(OR($A758=\"English\",$A758=\"Ελληνικά\"),\"Yes\",\"\")","v":""},null,null,{"$f":"IF($T758=\"Male\", \"Mr\", IF($T758=\"Female\", \"Mrs\", \"\"))","v":""},null,null,null,null,null,null,null,null,null,null,null,null,null,null,"",null,null,null,null,null,null,"",null,null,null,null,null,null,null,null,null,null,null,null,null,"","",null,"",{"$f":"IF(OR($A758=\"English\",$A758=\"Ελληνικά\"),\"Social Insurance\",\"\")","v":""},null,{"$f":"IF(OR($A758=\"English\",$A758=\"Ελληνικά\"),\"Cyprus\",\"\")","v":""},null,null,null,null,null,null,null,null,null,null,{"$f":"IF(OR($A758=\"English\",$A758=\"Ελληνικά\"),\"Applicant / Taxpayer\",\"\")","v":""},""]
[null,"",null,"","",null,"",null,null,null,"",null,null,"",null,null,null,null,null,null,null,null,null,null,null,null,null,null,"",null,null,null,null,null,null,"",null,null,null,null,null,null,null,null,null,null,null,null,null,"","",null,"","",null,"",null,null,null,null,null,null,null,null,null,null,"",""]
[null,"",null,"","",null,"",null,null,null,"",null,null,"",null,null,null,null,null,null,null,null,null,null,null,null,null,null,"",null,null,null,null,null,null,"",null,null,null,null,null,null,null,null,null,null,null,null,null,"","",null,"","",null,"",null,null,null,null,null,null,null,null,null,null,"",""]
[null,"",null,"","",null,"",null,null,null,"",null,null,"",null,null,null,null,null,null,null,null,null,null,null,null,null,null,"",null,null,null,null,null,null,"",null,null,null,null,null,null,null,null,null,null,null,null,null,"","",null,"","",null,"",null,null,null,null,null,null,null,null,null,null,"",""]
[null,"",null,"","",null,"",null,null,null,"",null,null,"",null,null,null,null,null,null,null,null,null,null,null,null,null,null,"",null,null,null,null,null,null,"",null,null,null,null,null,null,null,null,null,null,null,null,null,"","",null,"","",null,"",null,null,null,null,null,null,null,null,null,null,"",""]
[null,"",null,"","",null,"",null,null,null,"",null,null,"",null,null,null,null,null,null,null,null,null,null,null,null,null,null,"",null,null,null,null,null,null,"",null,null,null,null,null,null,null,null,null,null,null,null,null,"","",null,"","",null,"",null,null,null,null,null,null,null,null,null,null,"",""]
[null,"",null,"","",null,"",null,null,null,"",null,null,"",null,null,null,null,null,null,null,null,null,null,null,null,null,null,"",null,null,null,null,null,null,"",null,null,null,null,null,null,null,null,null,null,null,null,null,"","",null,"","",null,"",null,null,null,null,null,null,null,null,null,null,"",""]
[null,"",null,"","",null,"",null,null,null,"",null,null,"",null,null,null,null,null,null,null,null,null,null,null,null,null,null,"",null,null,null,null,null,null,"",null,null,null,null,null,null,null,null,null,null,null,null,null,"","",null,"","",null,"",null,null,null,null,null,null,null,null,null,null,"",""]
[null,"",null,"","",null,"",null,null,null,"",null,null,"",null,null,null,null,null,null,null,null,null,null,null,null,null,null,"",null,null,null,null,null,null,"",null,null,null,null,null,null,null,null,null,null,null,null,null,"","",null,"","",null,"",null,null,null,null,null,null,null,null,null,null,"",""]
[null,"",null,"","",null,"",null,null,null,"",null,null,"",null,null,null,null,null,null,null,null,null,null,null,null,null,null,"",null,null,null,null,null,null,"",null,null,null,null,null,null,null,null,null,null,null,null,null,"","",null,"","",null,"",null,null,null,null,null,null,null,null,null,null,"",""]
[null,"",null,"","",null,"",null,null,null,"",null,null,"",null,null,null,null,null,null,null,null,null,null,null,null,null,null,"",null,null,null,null,null,null,"",null,null,null,null,null,null,null,null,null,null,null,null,null,"","",null,"","",null,"",null,null,null,null,null,null,null,null,null,null,"",""]
[null,"",null,"","",null,"",null,null,null,"",null,null,"",null,null,null,null,null,null,null,null,null,null,null,null,null,null,"",null,null,null,null,null,null,"",null,null,null,null,null,null,null,null,null,null,null,null,null,"","",null,"","",null,"",null,null,null,null,null,null,null,null,null,null,"",""]
[null,"",null,"","",null,"",null,null,null,"",null,null,"",null,null,null,null,null,null,null,null,null,null,null,null,null,null,"",null,null,null,null,null,null,"",null,null,null,null,null,null,null,null,null,null,null,null,null,"","",null,"","",null,"",null,null,null,null,null,null,null,null,null,null,"",""]
[null,"",null,"","",null,"",null,null,null,"",null,null,"",null,null,null,null,null,null,null,null,null,null,null,null,null,null,"",null,null,null,null,null,null,"",null,null,null,null,null,null,null,null,null,null,null,null,null,"","",null,"","",null,"",null,null,null,null,null,null,null,null,null,null,"",""]
[null,"",null,"","",null,"",null,null,null,"",null,null,"",null,null,null,null,null,null,null,null,null,null,null,null,null,null,"",null,null,null,null,null,null,"",null,null,null,null,null,null,null,null,null,null,null,null,null,"","",null,"","",null,"",null,null,null,null,null,null,null,null,null,null,"",""]
[null,"",null,"","",null,"",null,null,null,"",null,null,"",null,null,null,null,null,null,null,null,null,null,null,null,null,null,"",null,null,null,null,null,null,"",null,null,null,null,null,null,null,null,null,null,null,null,null,"","",null,"","",null,"",null,null,null,null,null,null,null,null,null,null,"",""]
[null,"",null,"","",null,"",null,null,null,"",null,null,"",null,null,null,null,null,null,null,null,null,null,null,null,null,null,"",null,null,null,null,null,null,"",null,null,null,null,null,null,null,null,null,null,null,null,null,"","",null,"","",null,"",null,null,null,null,null,null,null,null,null,null,"",""]
[null,"",null,"","",null,"",null,null,null,"",null,null,"",null,null,null,null,null,null,null,null,null,null,null,null,null,null,"",null,null,null,null,null,null,"",null,null,null,null,null,null,null,null,null,null,null,null,null,"","",null,"","",null,"",null,null,null,null,null,null,null,null,null,null,"",""]
[null,"",null,"","",null,"",null,null,null,"",null,null,"",null,null,null,null,null,null,null,null,null,null,null,null,null,null,"",null,null,null,null,null,null,"",null,null,null,null,null,null,null,null,null,null,null,null,null,"","",null,"","",null,"",null,null,null,null,null,null,null,null,null,null,"",""]
[null,"",null,"","",null,"",null,null,null,"",null,null,"",null,null,null,null,null,null,null,null,null,null,null,null,null,null,"",null,null,null,null,null,null,"",null,null,null,null,null,null,null,null,null,null,null,null,null,"","",null,"","",null,"",null,null,null,null,null,null,null,null,null,null,"",""]
[null,"",null,"","",null,"",null,null,null,"",null,null,"",null,null,null,null,null,null,null,null,null,null,null,null,null,null,"",null,null,null,null,null,null,"",null,null,null,null,null,null,null,null,null,null,null,null,null,"","",null,"","",null,"",null,null,null,null,null,null,null,null,null,null,"",""]
[null,"",null,"","",null,"",null,null,null,"",null,null,"",null,null,null,null,null,null,null,null,null,null,null,null,null,null,"",null,null,null,null,null,null,"",null,null,null,null,null,null,null,null,null,null,null,null,null,"","",null,"","",null,"",null,null,null,null,null,null,null,null,null,null,"",""]
[null,"",null,"","",null,"",null,null,null,"",null,null,"",null,null,null,null,null,null,null,null,null,null,null,null,null,null,"",null,null,null,null,null,null,"",null,null,null,null,null,null,null,null,null,null,null,null,null,"","",null,"","",null,"",null,null,null,null,null,null,null,null,null,null,"",""]
[null,"",null,"","",null,"",null,null,null,"",null,null,"",null,null,null,null,null,null,null,null,null,null,null,null,null,null,"",null,null,null,null,null,null,"",null,null,null,null,null,null,null,null,null,null,null,null,null,"","",null,"","",null,"",null,null,null,null,null,null,null,null,null,null,"",""]
[null,"",null,"","",null,"",null,null,null,"",null,null,"",null,null,null,null,null,null,null,null,null,null,null,null,null,null,"",null,null,null,null,null,null,"",null,null,null,null,null,null,null,null,null,null,null,null,null,"","",null,"","",null,"",null,null,null,null,null,null,null,null,null,null,"",""]
[null,"",null,"","",null,"",null,null,null,"",null,null,"",null,null,null,null,null,null,null,null,null,null,null,null,null,null,"",null,null,null,null,null,null,"",null,null,null,null,null,null,null,null,null,null,null,null,null,"","",null,"","",null,"",null,null,null,null,null,null,null,null,null,null,"",""]
[null,"",null,"","",null,"",null,null,null,"",null,null,"",null,null,null,null,null,null,null,null,null,null,null,null,null,null,"",null,null,null,null,null,null,"",null,null,null,null,null,null,null,null,null,null,null,null,null,"","",null,"","",null,"",null,null,null,null,null,null,null,null,null,null,"",""]
[null,"",null,"","",null,"",null,null,null,"",null,null,"",null,null,null,null,null,null,null,null,null,null,null,null,null,null,"",null,null,null,null,null,null,"",null,null,null,null,null,null,null,null,null,null,null,null,null,"","",null,"","",null,"",null,null,null,null,null,null,null,null,null,null,"",""]
[null,"",null,"","",null,"",null,null,null,"",null,null,"",null,null,null,null,null,null,null,null,null,null,null,null,null,null,"",null,null,null,null,null,null,"",null,null,null,null,null,null,null,null,null,null,null,null,null,"","",null,"","",null,"",null,null,null,null,null,null,null,null,null,null,"",""]
[null,"",null,"","",null,"",null,null,null,"",null,null,"",null,null,null,null,null,null,null,null,null,null,null,null,null,null,"",null,null,null,null,null,null,"",null,null,null,null,null,null,null,null,null,null,null,null,null,"","",null,"","",null,"",null,null,null,null,null,null,null,null,null,null,"",""]
[null,"",null,"","",null,"",null,null,null,"",null,null,"",null,null,null,null,null,null,null,null,null,null,null,null,null,null,"",null,null,null,null,null,null,"",null,null,null,null,null,null,null,null,null,null,null,null,null,"","",null,"","",null,"",null,null,null,null,null,null,null,null,null,null,"",""]
[null,"",null,"","",null,"",null,null,null,"",null,null,"",null,null,null,null,null,null,null,null,null,null,null,null,null,null,"",null,null,null,null,null,null,"",null,null,null,null,null,null,null,null,null,null,null,null,null,"","",null,"","",null,"",null,null,null,null,null,null,null,null,null,null,"",""]
[null,"",null,"","",null,"",null,null,null,"",null,null,"",null,null,null,null,null,null,null,null,null,null,null,null,null,null,"",null,null,null,null,null,null,"",null,null,null,null,null,null,null,null,null,null,null,null,null,"","",null,"","",null,"",null,null,null,null,null,null,null,null,null,null,"",""]
[null,"",null,"","",null,"",null,null,null,"",null,null,"",null,null,null,null,null,null,null,null,null,null,null,null,null,null,"",null,null,null,null,null,null,"",null,null,null,null,null,null,null,null,null,null,null,null,null,"","",null,"","",null,"",null,null,null,null,null,null,null,null,null,null,"",""]
[null,"",null,"","",null,"",null,null,null,"",null,null,"",null,null,null,null,null,null,null,null,null,null,null,null,null,null,"",null,null,null,null,null,null,"",null,null,null,null,null,null,null,null,null,null,null,null,null,"","",null,"","",null,"",null,null,null,null,null,null,null,null,null,null,"",""]
[null,"",null,"","",null,"",null,null,null,"",null,null,"",null,null,null,null,null,null,null,null,null,null,null,null,null,null,"",null,null,null,null,null,null,"",null,null,null,null,null,null,null,null,null,null,null,null,null,"","",null,"","",null,"",null,null,null,null,null,null,null,null,null,null,"",""]
[null,"",null,"","",null,"",null,null,null,"",null,null,"",null,null,null,null,null,null,null,null,null,null,null,null,null,null,"",null,null,null,null,null,null,"",null,null,null,null,null,null,null,null,null,null,null,null,null,"","",null,"","",null,"",null,null,null,null,null,null,null,null,null,null,"",""]
[null,"",null,"","",null,"",null,null,null,"",null,null,"",null,null,null,null,null,null,null,null,null,null,null,null,null,null,"",null,null,null,null,null,null,"",null,null,null,null,null,null,null,null,null,null,null,null,null,"","",null,"","",null,"",null,null,null,null,null,null,null,null,null,null,"",""]
[null,"",null,"","",null,"",null,null,null,"",null,null,"",null,null,null,null,null,null,null,null,null,null,null,null,null,null,"",null,null,null,null,null,null,"",null,null,null,null,null,null,null,null,null,null,null,null,null,"","",null,"","",null,"",null,null,null,null,null,null,null,null,null,null,"",""]
[null,"",null,"","",null,"",null,null,null,"",null,null,"",null,null,null,null,null,null,null,null,null,null,null,null,null,null,"",null,null,null,null,null,null,"",null,null,null,null,null,null,null,null,null,null,null,null,null,"","",null,"","",null,"",null,null,null,null,null,null,null,null,null,null,"",""]
[null,"",null,"","",null,"",null,null,null,"",null,null,"",null,null,null,null,null,null,null,null,null,null,null,null,null,null,"",null,null,null,null,null,null,"",null,null,null,null,null,null,null,null,null,null,null,null,null,"","",null,"","",null,"",null,null,null,null,null,null,null,null,null,null,"",""]
[null,"",null,"","",null,"",null,null,null,"",null,null,"",null,null,null,null,null,null,null,null,null,null,null,null,null,null,"",null,null,null,null,null,null,"",null,null,null,null,null,null,null,null,null,null,null,null,null,"","",null,"","",null,"",null,null,null,null,null,null,null,null,null,null,"",""]
[null,"",null,"","",null,"",null,null,null,"",null,null,"",null,null,null,null,null,null,null,null,null,null,null,null,null,null,"",null,null,null,null,null,null,"",null,null,null,null,null,null,null,null,null,null,null,null,null,"","",null,"","",null,"",null,null,null,null,null,null,null,null,null,null,"",""]
[null,"",null,"","",null,"",null,null,null,"",null,null,"",null,null,null,null,null,null,null,null,null,null,null,null,null,null,"",null,null,null,null,null,null,"",null,null,null,null,null,null,null,null,null,null,null,null,null,"","",null,"","",null,"",null,null,null,null,null,null,null,null,null,null,"",""]
[null,"",null,"","",null,"",null,null,null,"",null,null,"",null,null,null,null,null,null,null,null,null,null,null,null,null,null,"",null,null,null,null,null,null,"",null,null,null,null,null,null,null,null,null,null,null,null,null,"","",null,"","",null,"",null,null,null,null,null,null,null,null,null,null,"",""]
[null,"",null,"","",null,"",null,null,null,"",null,null,"",null,null,null,null,null,null,null,null,null,null,null,null,null,null,"",null,null,null,null,null,null,"",null,null,null,null,null,null,null,null,null,null,null,null,null,"","",null,"","",null,"",null,null,null,null,null,null,null,null,null,null,"",""]
[null,"",null,"","",null,"",null,null,null,"",null,null,"",null,null,null,null,null,null,null,null,null,null,null,null,null,null,"",null,null,null,null,null,null,"",null,null,null,null,null,null,null,null,null,null,null,null,null,"","",null,"","",null,"",null,null,null,null,null,null,null,null,null,null,"",""]
[null,"",null,"","",null,"",null,null,null,"",null,null,"",null,null,null,null,null,null,null,null,null,null,null,null,null,null,"",null,null,null,null,null,null,"",null,null,null,null,null,null,null,null,null,null,null,null,null,"","",null,"","",null,"",null,null,null,null,null,null,null,null,null,null,"",""]
[null,"",null,"","",null,"",null,null,null,"",null,null,"",null,null,null,null,null,null,null,null,null,null,null,null,null,null,"",null,null,null,null,null,null,"",null,null,null,null,null,null,null,null,null,null,null,null,null,"","",null,"","",null,"",null,null,null,null,null,null,null,null,null,null,"",""]
[null,"",null,"","",null,"",null,null,null,"",null,null,"",null,null,null,null,null,null,null,null,null,null,null,null,null,null,"",null,null,null,null,null,null,"",null,null,null,null,null,null,null,null,null,null,null,null,null,"","",null,"","",null,"",null,null,null,null,null,null,null,null,null,null,"",""]
[null,"",null,"","",null,"",null,null,null,"",null,null,"",null,null,null,null,null,null,null,null,null,null,null,null,null,null,"",null,null,null,null,null,null,"",null,null,null,null,null,null,null,null,null,null,null,null,null,"","",null,"","",null,"",null,null,null,null,null,null,null,null,null,null,"",""]
[null,"",null,"","",null,"",null,null,null,"",null,null,"",null,null,null,null,null,null,null,null,null,null,null,null,null,null,"",null,null,null,null,null,null,"",null,null,null,null,null,null,null,null,null,null,null,null,null,"","",null,"","",null,"",null,null,null,null,null,null,null,null,null,null,"",""]
[null,"",null,"","",null,"",null,null,null,"",null,null,"",null,null,null,null,null,null,null,null,null,null,null,null,null,null,"",null,null,null,null,null,null,"",null,null,null,null,null,null,null,null,null,null,null,null,null,"","",null,"","",null,"",null,null,null,null,null,null,null,null,null,null,"",""]
[null,"",null,"","",null,"",null,null,null,"",null,null,"",null,null,null,null,null,null,null,null,null,null,null,null,null,null,"",null,null,null,null,null,null,"",null,null,null,null,null,null,null,null,null,null,null,null,null,"","",null,"","",null,"",null,null,null,null,null,null,null,null,null,null,"",""]
[null,"",null,"","",null,"",null,null,null,"",null,null,"",null,null,null,null,null,null,null,null,null,null,null,null,null,null,"",null,null,null,null,null,null,"",null,null,null,null,null,null,null,null,null,null,null,null,null,"","",null,"","",null,"",null,null,null,null,null,null,null,null,null,null,"",""]
[null,"",null,"","",null,"",null,null,null,"",null,null,"",null,null,null,null,null,null,null,null,null,null,null,null,null,null,"",null,null,null,null,null,null,"",null,null,null,null,null,null,null,null,null,null,null,null,null,"","",null,"","",null,"",null,null,null,null,null,null,null,null,null,null,"",""]
[null,"",null,"","",null,"",null,null,null,"",null,null,"",null,null,null,null,null,null,null,null,null,null,null,null,null,null,"",null,null,null,null,null,null,"",null,null,null,null,null,null,null,null,null,null,null,null,null,"","",null,"","",null,"",null,null,null,null,null,null,null,null,null,null,"",""]
[null,"",null,"","",null,"",null,null,null,"",null,null,"",null,null,null,null,null,null,null,null,null,null,null,null,null,null,"",null,null,null,null,null,null,"",null,null,null,null,null,null,null,null,null,null,null,null,null,"","",null,"","",null,"",null,null,null,null,null,null,null,null,null,null,"",""]
[null,"",null,"","",null,"",null,null,null,"",null,null,"",null,null,null,null,null,null,null,null,null,null,null,null,null,null,"",null,null,null,null,null,null,"",null,null,null,null,null,null,null,null,null,null,null,null,null,"","",null,"","",null,"",null,null,null,null,null,null,null,null,null,null,"",""]
[null,"",null,"","",null,"",null,null,null,"",null,null,"",null,null,null,null,null,null,null,null,null,null,null,null,null,null,"",null,null,null,null,null,null,"",null,null,null,null,null,null,null,null,null,null,null,null,null,"","",null,"","",null,"",null,null,null,null,null,null,null,null,null,null,"",""]
[null,"",null,"","",null,"",null,null,null,"",null,null,"",null,null,null,null,null,null,null,null,null,null,null,null,null,null,"",null,null,null,null,null,null,"",null,null,null,null,null,null,null,null,null,null,null,null,null,"","",null,"","",null,"",null,null,null,null,null,null,null,null,null,null,"",""]
[null,"",null,"","",null,"",null,null,null,"",null,null,"",null,null,null,null,null,null,null,null,null,null,null,null,null,null,"",null,null,null,null,null,null,"",null,null,null,null,null,null,null,null,null,null,null,null,null,"","",null,"","",null,"",null,null,null,null,null,null,null,null,null,null,"",""]
[null,{"$f":"IF(OR($A820=\"English\",$A820=\"Ελληνικά\"),\"Individual\",\"\")","v":""},null,{"$f":"IF(OR($A820=\"English\",$A820=\"Ελληνικά\"),\"Standard\",\"\")","v":""},{"$f":"IF(OR($A820=\"English\",$A820=\"Ελληνικά\"),\"Small/Medium Enterprise\",\"\")","v":""},null,"",null,null,null,"",null,null,"",null,null,null,null,null,null,null,null,null,null,null,null,null,null,"",null,null,null,null,null,null,"",null,null,null,null,null,null,null,null,null,null,null,null,null,"","",null,"","",null,"",null,null,null,null,null,null,null,null,null,null,"",""]
[null,"",null,"","",null,{"$f":"IF(A821=\"\",\"\",IF(AH821=\"Ammochostos\",\"Famagusta\",IF(AH821=\"Larnaka\",\"Larnaca\",IF(AH821=\"Lemesos\",\"Limassol\",IF(AH821=\"Nicosia\",\"Nicosia\",IF(AH821=\"Pafos\",\"Paphos\",\"Central Offices\"))))))","v":""},null,null,null,"",null,null,"",null,null,null,null,null,null,null,null,null,null,null,null,null,null,{"$f":"IF(OR($A821=\"English\",$A821=\"Ελληνικά\"),\"Residence\",\"\")","v":""},null,null,null,null,null,null,{"$f":"IF(OR($A821=\"English\",$A821=\"Ελληνικά\"),\"Yes\",\"\")","v":""},null,null,null,null,null,null,null,null,null,null,null,null,null,{"$f":"IF(OR($A821=\"English\",$A821=\"Ελληνικά\"),\"Yes\",\"\")","v":""},{"$f":"IF(OR($A821=\"English\",$A821=\"Ελληνικά\"),\"Primary\",\"\")","v":""},null,{"$f":"IF(OR($A821=\"English\",$A821=\"Ελληνικά\"),\"Yes\",\"\")","v":""},"",null,"",null,null,null,null,null,null,null,null,null,null,"",{"$f":"IF(OR($A821=\"English\",$A821=\"Ελληνικά\"),\"INDIVIDUAL WITHOUT RETURN SUBMISSION OBLIGATION\",\"\")","v":""}]
[null,"",null,"","",null,"",null,null,null,{"$f":"IF(OR($A822=\"English\",$A822=\"Ελληνικά\"),\"Yes\",\"\")","v":""},null,null,{"$f":"IF($T822=\"Male\", \"Mr\", IF($T822=\"Female\", \"Mrs\", \"\"))","v":""},null,null,null,null,null,null,null,null,null,null,null,null,null,null,"",null,null,null,null,null,null,"",null,null,null,null,null,null,null,null,null,null,null,null,null,"","",null,"",{"$f":"IF(OR($A822=\"English\",$A822=\"Ελληνικά\"),\"Social Insurance\",\"\")","v":""},null,{"$f":"IF(OR($A822=\"English\",$A822=\"Ελληνικά\"),\"Cyprus\",\"\")","v":""},null,null,null,null,null,null,null,null,null,null,{"$f":"IF(OR($A822=\"English\",$A822=\"Ελληνικά\"),\"Applicant / Taxpayer\",\"\")","v":""},""]
[null,"",null,"","",null,"",null,null,null,"",null,null,"",null,null,null,null,null,null,null,null,null,null,null,null,null,null,"",null,null,null,null,null,null,"",null,null,null,null,null,null,null,null,null,null,null,null,null,"","",null,"","",null,"",null,null,null,null,null,null,null,null,null,null,"",""]
[null,"",null,"","",null,"",null,null,null,"",null,null,"",null,null,null,null,null,null,null,null,null,null,null,null,null,null,"",null,null,null,null,null,null,"",null,null,null,null,null,null,null,null,null,null,null,null,null,"","",null,"","",null,"",null,null,null,null,null,null,null,null,null,null,"",""]
[null,"",null,"","",null,"",null,null,null,"",null,null,"",null,null,null,null,null,null,null,null,null,null,null,null,null,null,"",null,null,null,null,null,null,"",null,null,null,null,null,null,null,null,null,null,null,null,null,"","",null,"","",null,"",null,null,null,null,null,null,null,null,null,null,"",""]
[null,"",null,"","",null,"",null,null,null,"",null,null,"",null,null,null,null,null,null,null,null,null,null,null,null,null,null,"",null,null,null,null,null,null,"",null,null,null,null,null,null,null,null,null,null,null,null,null,"","",null,"","",null,"",null,null,null,null,null,null,null,null,null,null,"",""]
[null,"",null,"","",null,"",null,null,null,"",null,null,"",null,null,null,null,null,null,null,null,null,null,null,null,null,null,"",null,null,null,null,null,null,"",null,null,null,null,null,null,null,null,null,null,null,null,null,"","",null,"","",null,"",null,null,null,null,null,null,null,null,null,null,"",""]
[null,"",null,"","",null,"",null,null,null,"",null,null,"",null,null,null,null,null,null,null,null,null,null,null,null,null,null,"",null,null,null,null,null,null,"",null,null,null,null,null,null,null,null,null,null,null,null,null,"","",null,"","",null,"",null,null,null,null,null,null,null,null,null,null,"",""]
[null,"",null,"","",null,"",null,null,null,"",null,null,"",null,null,null,null,null,null,null,null,null,null,null,null,null,null,"",null,null,null,null,null,null,"",null,null,null,null,null,null,null,null,null,null,null,null,null,"","",null,"","",null,"",null,null,null,null,null,null,null,null,null,null,"",""]
[null,"",null,"","",null,"",null,null,null,"",null,null,"",null,null,null,null,null,null,null,null,null,null,null,null,null,null,"",null,null,null,null,null,null,"",null,null,null,null,null,null,null,null,null,null,null,null,null,"","",null,"","",null,"",null,null,null,null,null,null,null,null,null,null,"",""]
[null,"",null,"","",null,"",null,null,null,"",null,null,"",null,null,null,null,null,null,null,null,null,null,null,null,null,null,"",null,null,null,null,null,null,"",null,null,null,null,null,null,null,null,null,null,null,null,null,"","",null,"","",null,"",null,null,null,null,null,null,null,null,null,null,"",""]
[null,"",null,"","",null,"",null,null,null,"",null,null,"",null,null,null,null,null,null,null,null,null,null,null,null,null,null,"",null,null,null,null,null,null,"",null,null,null,null,null,null,null,null,null,null,null,null,null,"","",null,"","",null,"",null,null,null,null,null,null,null,null,null,null,"",""]
[null,"",null,"","",null,"",null,null,null,"",null,null,"",null,null,null,null,null,null,null,null,null,null,null,null,null,null,"",null,null,null,null,null,null,"",null,null,null,null,null,null,null,null,null,null,null,null,null,"","",null,"","",null,"",null,null,null,null,null,null,null,null,null,null,"",""]
[null,"",null,"","",null,"",null,null,null,"",null,null,"",null,null,null,null,null,null,null,null,null,null,null,null,null,null,"",null,null,null,null,null,null,"",null,null,null,null,null,null,null,null,null,null,null,null,null,"","",null,"","",null,"",null,null,null,null,null,null,null,null,null,null,"",""]
[null,"",null,"","",null,"",null,null,null,"",null,null,"",null,null,null,null,null,null,null,null,null,null,null,null,null,null,"",null,null,null,null,null,null,"",null,null,null,null,null,null,null,null,null,null,null,null,null,"","",null,"","",null,"",null,null,null,null,null,null,null,null,null,null,"",""]
[null,"",null,"","",null,"",null,null,null,"",null,null,"",null,null,null,null,null,null,null,null,null,null,null,null,null,null,"",null,null,null,null,null,null,"",null,null,null,null,null,null,null,null,null,null,null,null,null,"","",null,"","",null,"",null,null,null,null,null,null,null,null,null,null,"",""]
[null,"",null,"","",null,"",null,null,null,"",null,null,"",null,null,null,null,null,null,null,null,null,null,null,null,null,null,"",null,null,null,null,null,null,"",null,null,null,null,null,null,null,null,null,null,null,null,null,"","",null,"","",null,"",null,null,null,null,null,null,null,null,null,null,"",""]
[null,"",null,"","",null,"",null,null,null,"",null,null,"",null,null,null,null,null,null,null,null,null,null,null,null,null,null,"",null,null,null,null,null,null,"",null,null,null,null,null,null,null,null,null,null,null,null,null,"","",null,"","",null,"",null,null,null,null,null,null,null,null,null,null,"",""]
[null,"",null,"","",null,"",null,null,null,"",null,null,"",null,null,null,null,null,null,null,null,null,null,null,null,null,null,"",null,null,null,null,null,null,"",null,null,null,null,null,null,null,null,null,null,null,null,null,"","",null,"","",null,"",null,null,null,null,null,null,null,null,null,null,"",""]
[null,"",null,"","",null,"",null,null,null,"",null,null,"",null,null,null,null,null,null,null,null,null,null,null,null,null,null,"",null,null,null,null,null,null,"",null,null,null,null,null,null,null,null,null,null,null,null,null,"","",null,"","",null,"",null,null,null,null,null,null,null,null,null,null,"",""]
[null,"",null,"","",null,"",null,null,null,"",null,null,"",null,null,null,null,null,null,null,null,null,null,null,null,null,null,"",null,null,null,null,null,null,"",null,null,null,null,null,null,null,null,null,null,null,null,null,"","",null,"","",null,"",null,null,null,null,null,null,null,null,null,null,"",""]
[null,"",null,"","",null,"",null,null,null,"",null,null,"",null,null,null,null,null,null,null,null,null,null,null,null,null,null,"",null,null,null,null,null,null,"",null,null,null,null,null,null,null,null,null,null,null,null,null,"","",null,"","",null,"",null,null,null,null,null,null,null,null,null,null,"",""]
[null,"",null,"","",null,"",null,null,null,"",null,null,"",null,null,null,null,null,null,null,null,null,null,null,null,null,null,"",null,null,null,null,null,null,"",null,null,null,null,null,null,null,null,null,null,null,null,null,"","",null,"","",null,"",null,null,null,null,null,null,null,null,null,null,"",""]
[null,"",null,"","",null,"",null,null,null,"",null,null,"",null,null,null,null,null,null,null,null,null,null,null,null,null,null,"",null,null,null,null,null,null,"",null,null,null,null,null,null,null,null,null,null,null,null,null,"","",null,"","",null,"",null,null,null,null,null,null,null,null,null,null,"",""]
[null,"",null,"","",null,"",null,null,null,"",null,null,"",null,null,null,null,null,null,null,null,null,null,null,null,null,null,"",null,null,null,null,null,null,"",null,null,null,null,null,null,null,null,null,null,null,null,null,"","",null,"","",null,"",null,null,null,null,null,null,null,null,null,null,"",""]
[null,"",null,"","",null,"",null,null,null,"",null,null,"",null,null,null,null,null,null,null,null,null,null,null,null,null,null,"",null,null,null,null,null,null,"",null,null,null,null,null,null,null,null,null,null,null,null,null,"","",null,"","",null,"",null,null,null,null,null,null,null,null,null,null,"",""]
[null,"",null,"","",null,"",null,null,null,"",null,null,"",null,null,null,null,null,null,null,null,null,null,null,null,null,null,"",null,null,null,null,null,null,"",null,null,null,null,null,null,null,null,null,null,null,null,null,"","",null,"","",null,"",null,null,null,null,null,null,null,null,null,null,"",""]
[null,"",null,"","",null,"",null,null,null,"",null,null,"",null,null,null,null,null,null,null,null,null,null,null,null,null,null,"",null,null,null,null,null,null,"",null,null,null,null,null,null,null,null,null,null,null,null,null,"","",null,"","",null,"",null,null,null,null,null,null,null,null,null,null,"",""]
[null,"",null,"","",null,"",null,null,null,"",null,null,"",null,null,null,null,null,null,null,null,null,null,null,null,null,null,"",null,null,null,null,null,null,"",null,null,null,null,null,null,null,null,null,null,null,null,null,"","",null,"","",null,"",null,null,null,null,null,null,null,null,null,null,"",""]
[null,"",null,"","",null,"",null,null,null,"",null,null,"",null,null,null,null,null,null,null,null,null,null,null,null,null,null,"",null,null,null,null,null,null,"",null,null,null,null,null,null,null,null,null,null,null,null,null,"","",null,"","",null,"",null,null,null,null,null,null,null,null,null,null,"",""]
[null,"",null,"","",null,"",null,null,null,"",null,null,"",null,null,null,null,null,null,null,null,null,null,null,null,null,null,"",null,null,null,null,null,null,"",null,null,null,null,null,null,null,null,null,null,null,null,null,"","",null,"","",null,"",null,null,null,null,null,null,null,null,null,null,"",""]
[null,"",null,"","",null,"",null,null,null,"",null,null,"",null,null,null,null,null,null,null,null,null,null,null,null,null,null,"",null,null,null,null,null,null,"",null,null,null,null,null,null,null,null,null,null,null,null,null,"","",null,"","",null,"",null,null,null,null,null,null,null,null,null,null,"",""]
[null,"",null,"","",null,"",null,null,null,"",null,null,"",null,null,null,null,null,null,null,null,null,null,null,null,null,null,"",null,null,null,null,null,null,"",null,null,null,null,null,null,null,null,null,null,null,null,null,"","",null,"","",null,"",null,null,null,null,null,null,null,null,null,null,"",""]
[null,"",null,"","",null,"",null,null,null,"",null,null,"",null,null,null,null,null,null,null,null,null,null,null,null,null,null,"",null,null,null,null,null,null,"",null,null,null,null,null,null,null,null,null,null,null,null,null,"","",null,"","",null,"",null,null,null,null,null,null,null,null,null,null,"",""]
[null,"",null,"","",null,"",null,null,null,"",null,null,"",null,null,null,null,null,null,null,null,null,null,null,null,null,null,"",null,null,null,null,null,null,"",null,null,null,null,null,null,null,null,null,null,null,null,null,"","",null,"","",null,"",null,null,null,null,null,null,null,null,null,null,"",""]
[null,"",null,"","",null,"",null,null,null,"",null,null,"",null,null,null,null,null,null,null,null,null,null,null,null,null,null,"",null,null,null,null,null,null,"",null,null,null,null,null,null,null,null,null,null,null,null,null,"","",null,"","",null,"",null,null,null,null,null,null,null,null,null,null,"",""]
[null,"",null,"","",null,"",null,null,null,"",null,null,"",null,null,null,null,null,null,null,null,null,null,null,null,null,null,"",null,null,null,null,null,null,"",null,null,null,null,null,null,null,null,null,null,null,null,null,"","",null,"","",null,"",null,null,null,null,null,null,null,null,null,null,"",""]
[null,"",null,"","",null,"",null,null,null,"",null,null,"",null,null,null,null,null,null,null,null,null,null,null,null,null,null,"",null,null,null,null,null,null,"",null,null,null,null,null,null,null,null,null,null,null,null,null,"","",null,"","",null,"",null,null,null,null,null,null,null,null,null,null,"",""]
[null,"",null,"","",null,"",null,null,null,"",null,null,"",null,null,null,null,null,null,null,null,null,null,null,null,null,null,"",null,null,null,null,null,null,"",null,null,null,null,null,null,null,null,null,null,null,null,null,"","",null,"","",null,"",null,null,null,null,null,null,null,null,null,null,"",""]
[null,"",null,"","",null,"",null,null,null,"",null,null,"",null,null,null,null,null,null,null,null,null,null,null,null,null,null,"",null,null,null,null,null,null,"",null,null,null,null,null,null,null,null,null,null,null,null,null,"","",null,"","",null,"",null,null,null,null,null,null,null,null,null,null,"",""]
[null,"",null,"","",null,"",null,null,null,"",null,null,"",null,null,null,null,null,null,null,null,null,null,null,null,null,null,"",null,null,null,null,null,null,"",null,null,null,null,null,null,null,null,null,null,null,null,null,"","",null,"","",null,"",null,null,null,null,null,null,null,null,null,null,"",""]
[null,"",null,"","",null,"",null,null,null,"",null,null,"",null,null,null,null,null,null,null,null,null,null,null,null,null,null,"",null,null,null,null,null,null,"",null,null,null,null,null,null,null,null,null,null,null,null,null,"","",null,"","",null,"",null,null,null,null,null,null,null,null,null,null,"",""]
[null,"",null,"","",null,"",null,null,null,"",null,null,"",null,null,null,null,null,null,null,null,null,null,null,null,null,null,"",null,null,null,null,null,null,"",null,null,null,null,null,null,null,null,null,null,null,null,null,"","",null,"","",null,"",null,null,null,null,null,null,null,null,null,null,"",""]
[null,"",null,"","",null,"",null,null,null,"",null,null,"",null,null,null,null,null,null,null,null,null,null,null,null,null,null,"",null,null,null,null,null,null,"",null,null,null,null,null,null,null,null,null,null,null,null,null,"","",null,"","",null,"",null,null,null,null,null,null,null,null,null,null,"",""]
[null,"",null,"","",null,"",null,null,null,"",null,null,"",null,null,null,null,null,null,null,null,null,null,null,null,null,null,"",null,null,null,null,null,null,"",null,null,null,null,null,null,null,null,null,null,null,null,null,"","",null,"","",null,"",null,null,null,null,null,null,null,null,null,null,"",""]
[null,"",null,"","",null,"",null,null,null,"",null,null,"",null,null,null,null,null,null,null,null,null,null,null,null,null,null,"",null,null,null,null,null,null,"",null,null,null,null,null,null,null,null,null,null,null,null,null,"","",null,"","",null,"",null,null,null,null,null,null,null,null,null,null,"",""]
[null,"",null,"","",null,"",null,null,null,"",null,null,"",null,null,null,null,null,null,null,null,null,null,null,null,null,null,"",null,null,null,null,null,null,"",null,null,null,null,null,null,null,null,null,null,null,null,null,"","",null,"","",null,"",null,null,null,null,null,null,null,null,null,null,"",""]
[null,"",null,"","",null,"",null,null,null,"",null,null,"",null,null,null,null,null,null,null,null,null,null,null,null,null,null,"",null,null,null,null,null,null,"",null,null,null,null,null,null,null,null,null,null,null,null,null,"","",null,"","",null,"",null,null,null,null,null,null,null,null,null,null,"",""]
[null,"",null,"","",null,"",null,null,null,"",null,null,"",null,null,null,null,null,null,null,null,null,null,null,null,null,null,"",null,null,null,null,null,null,"",null,null,null,null,null,null,null,null,null,null,null,null,null,"","",null,"","",null,"",null,null,null,null,null,null,null,null,null,null,"",""]
[null,"",null,"","",null,"",null,null,null,"",null,null,"",null,null,null,null,null,null,null,null,null,null,null,null,null,null,"",null,null,null,null,null,null,"",null,null,null,null,null,null,null,null,null,null,null,null,null,"","",null,"","",null,"",null,null,null,null,null,null,null,null,null,null,"",""]
[null,"",null,"","",null,"",null,null,null,"",null,null,"",null,null,null,null,null,null,null,null,null,null,null,null,null,null,"",null,null,null,null,null,null,"",null,null,null,null,null,null,null,null,null,null,null,null,null,"","",null,"","",null,"",null,null,null,null,null,null,null,null,null,null,"",""]
[null,"",null,"","",null,"",null,null,null,"",null,null,"",null,null,null,null,null,null,null,null,null,null,null,null,null,null,"",null,null,null,null,null,null,"",null,null,null,null,null,null,null,null,null,null,null,null,null,"","",null,"","",null,"",null,null,null,null,null,null,null,null,null,null,"",""]
[null,"",null,"","",null,"",null,null,null,"",null,null,"",null,null,null,null,null,null,null,null,null,null,null,null,null,null,"",null,null,null,null,null,null,"",null,null,null,null,null,null,null,null,null,null,null,null,null,"","",null,"","",null,"",null,null,null,null,null,null,null,null,null,null,"",""]
[null,"",null,"","",null,"",null,null,null,"",null,null,"",null,null,null,null,null,null,null,null,null,null,null,null,null,null,"",null,null,null,null,null,null,"",null,null,null,null,null,null,null,null,null,null,null,null,null,"","",null,"","",null,"",null,null,null,null,null,null,null,null,null,null,"",""]
[null,"",null,"","",null,"",null,null,null,"",null,null,"",null,null,null,null,null,null,null,null,null,null,null,null,null,null,"",null,null,null,null,null,null,"",null,null,null,null,null,null,null,null,null,null,null,null,null,"","",null,"","",null,"",null,null,null,null,null,null,null,null,null,null,"",""]
[null,"",null,"","",null,"",null,null,null,"",null,null,"",null,null,null,null,null,null,null,null,null,null,null,null,null,null,"",null,null,null,null,null,null,"",null,null,null,null,null,null,null,null,null,null,null,null,null,"","",null,"","",null,"",null,null,null,null,null,null,null,null,null,null,"",""]
[null,"",null,"","",null,"",null,null,null,"",null,null,"",null,null,null,null,null,null,null,null,null,null,null,null,null,null,"",null,null,null,null,null,null,"",null,null,null,null,null,null,null,null,null,null,null,null,null,"","",null,"","",null,"",null,null,null,null,null,null,null,null,null,null,"",""]
[null,"",null,"","",null,"",null,null,null,"",null,null,"",null,null,null,null,null,null,null,null,null,null,null,null,null,null,"",null,null,null,null,null,null,"",null,null,null,null,null,null,null,null,null,null,null,null,null,"","",null,"","",null,"",null,null,null,null,null,null,null,null,null,null,"",""]
[null,"",null,"","",null,"",null,null,null,"",null,null,"",null,null,null,null,null,null,null,null,null,null,null,null,null,null,"",null,null,null,null,null,null,"",null,null,null,null,null,null,null,null,null,null,null,null,null,"","",null,"","",null,"",null,null,null,null,null,null,null,null,null,null,"",""]
[null,"",null,"","",null,"",null,null,null,"",null,null,"",null,null,null,null,null,null,null,null,null,null,null,null,null,null,"",null,null,null,null,null,null,"",null,null,null,null,null,null,null,null,null,null,null,null,null,"","",null,"","",null,"",null,null,null,null,null,null,null,null,null,null,"",""]
[null,"",null,"","",null,"",null,null,null,"",null,null,"",null,null,null,null,null,null,null,null,null,null,null,null,null,null,"",null,null,null,null,null,null,"",null,null,null,null,null,null,null,null,null,null,null,null,null,"","",null,"","",null,"",null,null,null,null,null,null,null,null,null,null,"",""]
[null,"",null,"","",null,"",null,null,null,"",null,null,"",null,null,null,null,null,null,null,null,null,null,null,null,null,null,"",null,null,null,null,null,null,"",null,null,null,null,null,null,null,null,null,null,null,null,null,"","",null,"","",null,"",null,null,null,null,null,null,null,null,null,null,"",""]
[null,"",null,"","",null,"",null,null,null,"",null,null,"",null,null,null,null,null,null,null,null,null,null,null,null,null,null,"",null,null,null,null,null,null,"",null,null,null,null,null,null,null,null,null,null,null,null,null,"","",null,"","",null,"",null,null,null,null,null,null,null,null,null,null,"",""]
[null,{"$f":"IF(OR($A884=\"English\",$A884=\"Ελληνικά\"),\"Individual\",\"\")","v":""},null,{"$f":"IF(OR($A884=\"English\",$A884=\"Ελληνικά\"),\"Standard\",\"\")","v":""},{"$f":"IF(OR($A884=\"English\",$A884=\"Ελληνικά\"),\"Small/Medium Enterprise\",\"\")","v":""},null,"",null,null,null,"",null,null,"",null,null,null,null,null,null,null,null,null,null,null,null,null,null,"",null,null,null,null,null,null,"",null,null,null,null,null,null,null,null,null,null,null,null,null,"","",null,"","",null,"",null,null,null,null,null,null,null,null,null,null,"",""]
[null,"",null,"","",null,{"$f":"IF(A885=\"\",\"\",IF(AH885=\"Ammochostos\",\"Famagusta\",IF(AH885=\"Larnaka\",\"Larnaca\",IF(AH885=\"Lemesos\",\"Limassol\",IF(AH885=\"Nicosia\",\"Nicosia\",IF(AH885=\"Pafos\",\"Paphos\",\"Central Offices\"))))))","v":""},null,null,null,"",null,null,"",null,null,null,null,null,null,null,null,null,null,null,null,null,null,{"$f":"IF(OR($A885=\"English\",$A885=\"Ελληνικά\"),\"Residence\",\"\")","v":""},null,null,null,null,null,null,{"$f":"IF(OR($A885=\"English\",$A885=\"Ελληνικά\"),\"Yes\",\"\")","v":""},null,null,null,null,null,null,null,null,null,null,null,null,null,{"$f":"IF(OR($A885=\"English\",$A885=\"Ελληνικά\"),\"Yes\",\"\")","v":""},{"$f":"IF(OR($A885=\"English\",$A885=\"Ελληνικά\"),\"Primary\",\"\")","v":""},null,{"$f":"IF(OR($A885=\"English\",$A885=\"Ελληνικά\"),\"Yes\",\"\")","v":""},"",null,"",null,null,null,null,null,null,null,null,null,null,"",{"$f":"IF(OR($A885=\"English\",$A885=\"Ελληνικά\"),\"INDIVIDUAL WITHOUT RETURN SUBMISSION OBLIGATION\",\"\")","v":""}]
[null,"",null,"","",null,"",null,null,null,{"$f":"IF(OR($A886=\"English\",$A886=\"Ελληνικά\"),\"Yes\",\"\")","v":""},null,null,{"$f":"IF($T886=\"Male\", \"Mr\", IF($T886=\"Female\", \"Mrs\", \"\"))","v":""},null,null,null,null,null,null,null,null,null,null,null,null,null,null,"",null,null,null,null,null,null,"",null,null,null,null,null,null,null,null,null,null,null,null,null,"","",null,"",{"$f":"IF(OR($A886=\"English\",$A886=\"Ελληνικά\"),\"Social Insurance\",\"\")","v":""},null,{"$f":"IF(OR($A886=\"English\",$A886=\"Ελληνικά\"),\"Cyprus\",\"\")","v":""},null,null,null,null,null,null,null,null,null,null,{"$f":"IF(OR($A886=\"English\",$A886=\"Ελληνικά\"),\"Applicant / Taxpayer\",\"\")","v":""},""]
[null,"",null,"","",null,"",null,null,null,"",null,null,"",null,null,null,null,null,null,null,null,null,null,null,null,null,null,"",null,null,null,null,null,null,"",null,null,null,null,null,null,null,null,null,null,null,null,null,"","",null,"","",null,"",null,null,null,null,null,null,null,null,null,null,"",""]
[null,"",null,"","",null,"",null,null,null,"",null,null,"",null,null,null,null,null,null,null,null,null,null,null,null,null,null,"",null,null,null,null,null,null,"",null,null,null,null,null,null,null,null,null,null,null,null,null,"","",null,"","",null,"",null,null,null,null,null,null,null,null,null,null,"",""]
[null,"",null,"","",null,"",null,null,null,"",null,null,"",null,null,null,null,null,null,null,null,null,null,null,null,null,null,"",null,null,null,null,null,null,"",null,null,null,null,null,null,null,null,null,null,null,null,null,"","",null,"","",null,"",null,null,null,null,null,null,null,null,null,null,"",""]
[null,"",null,"","",null,"",null,null,null,"",null,null,"",null,null,null,null,null,null,null,null,null,null,null,null,null,null,"",null,null,null,null,null,null,"",null,null,null,null,null,null,null,null,null,null,null,null,null,"","",null,"","",null,"",null,null,null,null,null,null,null,null,null,null,"",""]
[null,"",null,"","",null,"",null,null,null,"",null,null,"",null,null,null,null,null,null,null,null,null,null,null,null,null,null,"",null,null,null,null,null,null,"",null,null,null,null,null,null,null,null,null,null,null,null,null,"","",null,"","",null,"",null,null,null,null,null,null,null,null,null,null,"",""]
[null,"",null,"","",null,"",null,null,null,"",null,null,"",null,null,null,null,null,null,null,null,null,null,null,null,null,null,"",null,null,null,null,null,null,"",null,null,null,null,null,null,null,null,null,null,null,null,null,"","",null,"","",null,"",null,null,null,null,null,null,null,null,null,null,"",""]
[null,"",null,"","",null,"",null,null,null,"",null,null,"",null,null,null,null,null,null,null,null,null,null,null,null,null,null,"",null,null,null,null,null,null,"",null,null,null,null,null,null,null,null,null,null,null,null,null,"","",null,"","",null,"",null,null,null,null,null,null,null,null,null,null,"",""]
[null,"",null,"","",null,"",null,null,null,"",null,null,"",null,null,null,null,null,null,null,null,null,null,null,null,null,null,"",null,null,null,null,null,null,"",null,null,null,null,null,null,null,null,null,null,null,null,null,"","",null,"","",null,"",null,null,null,null,null,null,null,null,null,null,"",""]
[null,"",null,"","",null,"",null,null,null,"",null,null,"",null,null,null,null,null,null,null,null,null,null,null,null,null,null,"",null,null,null,null,null,null,"",null,null,null,null,null,null,null,null,null,null,null,null,null,"","",null,"","",null,"",null,null,null,null,null,null,null,null,null,null,"",""]
[null,"",null,"","",null,"",null,null,null,"",null,null,"",null,null,null,null,null,null,null,null,null,null,null,null,null,null,"",null,null,null,null,null,null,"",null,null,null,null,null,null,null,null,null,null,null,null,null,"","",null,"","",null,"",null,null,null,null,null,null,null,null,null,null,"",""]
[null,"",null,"","",null,"",null,null,null,"",null,null,"",null,null,null,null,null,null,null,null,null,null,null,null,null,null,"",null,null,null,null,null,null,"",null,null,null,null,null,null,null,null,null,null,null,null,null,"","",null,"","",null,"",null,null,null,null,null,null,null,null,null,null,"",""]
[null,"",null,"","",null,"",null,null,null,"",null,null,"",null,null,null,null,null,null,null,null,null,null,null,null,null,null,"",null,null,null,null,null,null,"",null,null,null,null,null,null,null,null,null,null,null,null,null,"","",null,"","",null,"",null,null,null,null,null,null,null,null,null,null,"",""]
[null,"",null,"","",null,"",null,null,null,"",null,null,"",null,null,null,null,null,null,null,null,null,null,null,null,null,null,"",null,null,null,null,null,null,"",null,null,null,null,null,null,null,null,null,null,null,null,null,"","",null,"","",null,"",null,null,null,null,null,null,null,null,null,null,"",""]
[null,"",null,"","",null,"",null,null,null,"",null,null,"",null,null,null,null,null,null,null,null,null,null,null,null,null,null,"",null,null,null,null,null,null,"",null,null,null,null,null,null,null,null,null,null,null,null,null,"","",null,"","",null,"",null,null,null,null,null,null,null,null,null,null,"",""]
[null,"",null,"","",null,"",null,null,null,"",null,null,"",null,null,null,null,null,null,null,null,null,null,null,null,null,null,"",null,null,null,null,null,null,"",null,null,null,null,null,null,null,null,null,null,null,null,null,"","",null,"","",null,"",null,null,null,null,null,null,null,null,null,null,"",""]
[null,"",null,"","",null,"",null,null,null,"",null,null,"",null,null,null,null,null,null,null,null,null,null,null,null,null,null,"",null,null,null,null,null,null,"",null,null,null,null,null,null,null,null,null,null,null,null,null,"","",null,"","",null,"",null,null,null,null,null,null,null,null,null,null,"",""]
[null,"",null,"","",null,"",null,null,null,"",null,null,"",null,null,null,null,null,null,null,null,null,null,null,null,null,null,"",null,null,null,null,null,null,"",null,null,null,null,null,null,null,null,null,null,null,null,null,"","",null,"","",null,"",null,null,null,null,null,null,null,null,null,null,"",""]
[null,"",null,"","",null,"",null,null,null,"",null,null,"",null,null,null,null,null,null,null,null,null,null,null,null,null,null,"",null,null,null,null,null,null,"",null,null,null,null,null,null,null,null,null,null,null,null,null,"","",null,"","",null,"",null,null,null,null,null,null,null,null,null,null,"",""]
[null,"",null,"","",null,"",null,null,null,"",null,null,"",null,null,null,null,null,null,null,null,null,null,null,null,null,null,"",null,null,null,null,null,null,"",null,null,null,null,null,null,null,null,null,null,null,null,null,"","",null,"","",null,"",null,null,null,null,null,null,null,null,null,null,"",""]
[null,"",null,"","",null,"",null,null,null,"",null,null,"",null,null,null,null,null,null,null,null,null,null,null,null,null,null,"",null,null,null,null,null,null,"",null,null,null,null,null,null,null,null,null,null,null,null,null,"","",null,"","",null,"",null,null,null,null,null,null,null,null,null,null,"",""]
[null,"",null,"","",null,"",null,null,null,"",null,null,"",null,null,null,null,null,null,null,null,null,null,null,null,null,null,"",null,null,null,null,null,null,"",null,null,null,null,null,null,null,null,null,null,null,null,null,"","",null,"","",null,"",null,null,null,null,null,null,null,null,null,null,"",""]
[null,"",null,"","",null,"",null,null,null,"",null,null,"",null,null,null,null,null,null,null,null,null,null,null,null,null,null,"",null,null,null,null,null,null,"",null,null,null,null,null,null,null,null,null,null,null,null,null,"","",null,"","",null,"",null,null,null,null,null,null,null,null,null,null,"",""]
[null,"",null,"","",null,"",null,null,null,"",null,null,"",null,null,null,null,null,null,null,null,null,null,null,null,null,null,"",null,null,null,null,null,null,"",null,null,null,null,null,null,null,null,null,null,null,null,null,"","",null,"","",null,"",null,null,null,null,null,null,null,null,null,null,"",""]
[null,"",null,"","",null,"",null,null,null,"",null,null,"",null,null,null,null,null,null,null,null,null,null,null,null,null,null,"",null,null,null,null,null,null,"",null,null,null,null,null,null,null,null,null,null,null,null,null,"","",null,"","",null,"",null,null,null,null,null,null,null,null,null,null,"",""]
[null,"",null,"","",null,"",null,null,null,"",null,null,"",null,null,null,null,null,null,null,null,null,null,null,null,null,null,"",null,null,null,null,null,null,"",null,null,null,null,null,null,null,null,null,null,null,null,null,"","",null,"","",null,"",null,null,null,null,null,null,null,null,null,null,"",""]
[null,"",null,"","",null,"",null,null,null,"",null,null,"",null,null,null,null,null,null,null,null,null,null,null,null,null,null,"",null,null,null,null,null,null,"",null,null,null,null,null,null,null,null,null,null,null,null,null,"","",null,"","",null,"",null,null,null,null,null,null,null,null,null,null,"",""]
[null,"",null,"","",null,"",null,null,null,"",null,null,"",null,null,null,null,null,null,null,null,null,null,null,null,null,null,"",null,null,null,null,null,null,"",null,null,null,null,null,null,null,null,null,null,null,null,null,"","",null,"","",null,"",null,null,null,null,null,null,null,null,null,null,"",""]
[null,"",null,"","",null,"",null,null,null,"",null,null,"",null,null,null,null,null,null,null,null,null,null,null,null,null,null,"",null,null,null,null,null,null,"",null,null,null,null,null,null,null,null,null,null,null,null,null,"","",null,"","",null,"",null,null,null,null,null,null,null,null,null,null,"",""]
[null,"",null,"","",null,"",null,null,null,"",null,null,"",null,null,null,null,null,null,null,null,null,null,null,null,null,null,"",null,null,null,null,null,null,"",null,null,null,null,null,null,null,null,null,null,null,null,null,"","",null,"","",null,"",null,null,null,null,null,null,null,null,null,null,"",""]
[null,"",null,"","",null,"",null,null,null,"",null,null,"",null,null,null,null,null,null,null,null,null,null,null,null,null,null,"",null,null,null,null,null,null,"",null,null,null,null,null,null,null,null,null,null,null,null,null,"","",null,"","",null,"",null,null,null,null,null,null,null,null,null,null,"",""]
[null,"",null,"","",null,"",null,null,null,"",null,null,"",null,null,null,null,null,null,null,null,null,null,null,null,null,null,"",null,null,null,null,null,null,"",null,null,null,null,null,null,null,null,null,null,null,null,null,"","",null,"","",null,"",null,null,null,null,null,null,null,null,null,null,"",""]
[null,"",null,"","",null,"",null,null,null,"",null,null,"",null,null,null,null,null,null,null,null,null,null,null,null,null,null,"",null,null,null,null,null,null,"",null,null,null,null,null,null,null,null,null,null,null,null,null,"","",null,"","",null,"",null,null,null,null,null,null,null,null,null,null,"",""]
[null,"",null,"","",null,"",null,null,null,"",null,null,"",null,null,null,null,null,null,null,null,null,null,null,null,null,null,"",null,null,null,null,null,null,"",null,null,null,null,null,null,null,null,null,null,null,null,null,"","",null,"","",null,"",null,null,null,null,null,null,null,null,null,null,"",""]
[null,"",null,"","",null,"",null,null,null,"",null,null,"",null,null,null,null,null,null,null,null,null,null,null,null,null,null,"",null,null,null,null,null,null,"",null,null,null,null,null,null,null,null,null,null,null,null,null,"","",null,"","",null,"",null,null,null,null,null,null,null,null,null,null,"",""]
[null,"",null,"","",null,"",null,null,null,"",null,null,"",null,null,null,null,null,null,null,null,null,null,null,null,null,null,"",null,null,null,null,null,null,"",null,null,null,null,null,null,null,null,null,null,null,null,null,"","",null,"","",null,"",null,null,null,null,null,null,null,null,null,null,"",""]
[null,"",null,"","",null,"",null,null,null,"",null,null,"",null,null,null,null,null,null,null,null,null,null,null,null,null,null,"",null,null,null,null,null,null,"",null,null,null,null,null,null,null,null,null,null,null,null,null,"","",null,"","",null,"",null,null,null,null,null,null,null,null,null,null,"",""]
[null,"",null,"","",null,"",null,null,null,"",null,null,"",null,null,null,null,null,null,null,null,null,null,null,null,null,null,"",null,null,null,null,null,null,"",null,null,null,null,null,null,null,null,null,null,null,null,null,"","",null,"","",null,"",null,null,null,null,null,null,null,null,null,null,"",""]
[null,"",null,"","",null,"",null,null,null,"",null,null,"",null,null,null,null,null,null,null,null,null,null,null,null,null,null,"",null,null,null,null,null,null,"",null,null,null,null,null,null,null,null,null,null,null,null,null,"","",null,"","",null,"",null,null,null,null,null,null,null,null,null,null,"",""]
[null,"",null,"","",null,"",null,null,null,"",null,null,"",null,null,null,null,null,null,null,null,null,null,null,null,null,null,"",null,null,null,null,null,null,"",null,null,null,null,null,null,null,null,null,null,null,null,null,"","",null,"","",null,"",null,null,null,null,null,null,null,null,null,null,"",""]
[null,"",null,"","",null,"",null,null,null,"",null,null,"",null,null,null,null,null,null,null,null,null,null,null,null,null,null,"",null,null,null,null,null,null,"",null,null,null,null,null,null,null,null,null,null,null,null,null,"","",null,"","",null,"",null,null,null,null,null,null,null,null,null,null,"",""]
[null,"",null,"","",null,"",null,null,null,"",null,null,"",null,null,null,null,null,null,null,null,null,null,null,null,null,null,"",null,null,null,null,null,null,"",null,null,null,null,null,null,null,null,null,null,null,null,null,"","",null,"","",null,"",null,null,null,null,null,null,null,null,null,null,"",""]
[null,"",null,"","",null,"",null,null,null,"",null,null,"",null,null,null,null,null,null,null,null,null,null,null,null,null,null,"",null,null,null,null,null,null,"",null,null,null,null,null,null,null,null,null,null,null,null,null,"","",null,"","",null,"",null,null,null,null,null,null,null,null,null,null,"",""]
[null,"",null,"","",null,"",null,null,null,"",null,null,"",null,null,null,null,null,null,null,null,null,null,null,null,null,null,"",null,null,null,null,null,null,"",null,null,null,null,null,null,null,null,null,null,null,null,null,"","",null,"","",null,"",null,null,null,null,null,null,null,null,null,null,"",""]
[null,"",null,"","",null,"",null,null,null,"",null,null,"",null,null,null,null,null,null,null,null,null,null,null,null,null,null,"",null,null,null,null,null,null,"",null,null,null,null,null,null,null,null,null,null,null,null,null,"","",null,"","",null,"",null,null,null,null,null,null,null,null,null,null,"",""]
[null,"",null,"","",null,"",null,null,null,"",null,null,"",null,null,null,null,null,null,null,null,null,null,null,null,null,null,"",null,null,null,null,null,null,"",null,null,null,null,null,null,null,null,null,null,null,null,null,"","",null,"","",null,"",null,null,null,null,null,null,null,null,null,null,"",""]
[null,"",null,"","",null,"",null,null,null,"",null,null,"",null,null,null,null,null,null,null,null,null,null,null,null,null,null,"",null,null,null,null,null,null,"",null,null,null,null,null,null,null,null,null,null,null,null,null,"","",null,"","",null,"",null,null,null,null,null,null,null,null,null,null,"",""]
[null,"",null,"","",null,"",null,null,null,"",null,null,"",null,null,null,null,null,null,null,null,null,null,null,null,null,null,"",null,null,null,null,null,null,"",null,null,null,null,null,null,null,null,null,null,null,null,null,"","",null,"","",null,"",null,null,null,null,null,null,null,null,null,null,"",""]
[null,"",null,"","",null,"",null,null,null,"",null,null,"",null,null,null,null,null,null,null,null,null,null,null,null,null,null,"",null,null,null,null,null,null,"",null,null,null,null,null,null,null,null,null,null,null,null,null,"","",null,"","",null,"",null,null,null,null,null,null,null,null,null,null,"",""]
[null,"",null,"","",null,"",null,null,null,"",null,null,"",null,null,null,null,null,null,null,null,null,null,null,null,null,null,"",null,null,null,null,null,null,"",null,null,null,null,null,null,null,null,null,null,null,null,null,"","",null,"","",null,"",null,null,null,null,null,null,null,null,null,null,"",""]
[null,"",null,"","",null,"",null,null,null,"",null,null,"",null,null,null,null,null,null,null,null,null,null,null,null,null,null,"",null,null,null,null,null,null,"",null,null,null,null,null,null,null,null,null,null,null,null,null,"","",null,"","",null,"",null,null,null,null,null,null,null,null,null,null,"",""]
[null,"",null,"","",null,"",null,null,null,"",null,null,"",null,null,null,null,null,null,null,null,null,null,null,null,null,null,"",null,null,null,null,null,null,"",null,null,null,null,null,null,null,null,null,null,null,null,null,"","",null,"","",null,"",null,null,null,null,null,null,null,null,null,null,"",""]
[null,"",null,"","",null,"",null,null,null,"",null,null,"",null,null,null,null,null,null,null,null,null,null,null,null,null,null,"",null,null,null,null,null,null,"",null,null,null,null,null,null,null,null,null,null,null,null,null,"","",null,"","",null,"",null,null,null,null,null,null,null,null,null,null,"",""]
[null,"",null,"","",null,"",null,null,null,"",null,null,"",null,null,null,null,null,null,null,null,null,null,null,null,null,null,"",null,null,null,null,null,null,"",null,null,null,null,null,null,null,null,null,null,null,null,null,"","",null,"","",null,"",null,null,null,null,null,null,null,null,null,null,"",""]
[null,"",null,"","",null,"",null,null,null,"",null,null,"",null,null,null,null,null,null,null,null,null,null,null,null,null,null,"",null,null,null,null,null,null,"",null,null,null,null,null,null,null,null,null,null,null,null,null,"","",null,"","",null,"",null,null,null,null,null,null,null,null,null,null,"",""]
[null,"",null,"","",null,"",null,null,null,"",null,null,"",null,null,null,null,null,null,null,null,null,null,null,null,null,null,"",null,null,null,null,null,null,"",null,null,null,null,null,null,null,null,null,null,null,null,null,"","",null,"","",null,"",null,null,null,null,null,null,null,null,null,null,"",""]
[null,"",null,"","",null,"",null,null,null,"",null,null,"",null,null,null,null,null,null,null,null,null,null,null,null,null,null,"",null,null,null,null,null,null,"",null,null,null,null,null,null,null,null,null,null,null,null,null,"","",null,"","",null,"",null,null,null,null,null,null,null,null,null,null,"",""]
[null,"",null,"","",null,"",null,null,null,"",null,null,"",null,null,null,null,null,null,null,null,null,null,null,null,null,null,"",null,null,null,null,null,null,"",null,null,null,null,null,null,null,null,null,null,null,null,null,"","",null,"","",null,"",null,null,null,null,null,null,null,null,null,null,"",""]
[null,"",null,"","",null,"",null,null,null,"",null,null,"",null,null,null,null,null,null,null,null,null,null,null,null,null,null,"",null,null,null,null,null,null,"",null,null,null,null,null,null,null,null,null,null,null,null,null,"","",null,"","",null,"",null,null,null,null,null,null,null,null,null,null,"",""]
[null,"",null,"","",null,"",null,null,null,"",null,null,"",null,null,null,null,null,null,null,null,null,null,null,null,null,null,"",null,null,null,null,null,null,"",null,null,null,null,null,null,null,null,null,null,null,null,null,"","",null,"","",null,"",null,null,null,null,null,null,null,null,null,null,"",""]
[null,"",null,"","",null,"",null,null,null,"",null,null,"",null,null,null,null,null,null,null,null,null,null,null,null,null,null,"",null,null,null,null,null,null,"",null,null,null,null,null,null,null,null,null,null,null,null,null,"","",null,"","",null,"",null,null,null,null,null,null,null,null,null,null,"",""]
[null,"",null,"","",null,"",null,null,null,"",null,null,"",null,null,null,null,null,null,null,null,null,null,null,null,null,null,"",null,null,null,null,null,null,"",null,null,null,null,null,null,null,null,null,null,null,null,null,"","",null,"","",null,"",null,null,null,null,null,null,null,null,null,null,"",""]
[null,{"$f":"IF(OR($A948=\"English\",$A948=\"Ελληνικά\"),\"Individual\",\"\")","v":""},null,{"$f":"IF(OR($A948=\"English\",$A948=\"Ελληνικά\"),\"Standard\",\"\")","v":""},{"$f":"IF(OR($A948=\"English\",$A948=\"Ελληνικά\"),\"Small/Medium Enterprise\",\"\")","v":""},null,"",null,null,null,"",null,null,"",null,null,null,null,null,null,null,null,null,null,null,null,null,null,"",null,null,null,null,null,null,"",null,null,null,null,null,null,null,null,null,null,null,null,null,"","",null,"","",null,"",null,null,null,null,null,null,null,null,null,null,"",""]
[null,"",null,"","",null,{"$f":"IF(A949=\"\",\"\",IF(AH949=\"Ammochostos\",\"Famagusta\",IF(AH949=\"Larnaka\",\"Larnaca\",IF(AH949=\"Lemesos\",\"Limassol\",IF(AH949=\"Nicosia\",\"Nicosia\",IF(AH949=\"Pafos\",\"Paphos\",\"Central Offices\"))))))","v":""},null,null,null,"",null,null,"",null,null,null,null,null,null,null,null,null,null,null,null,null,null,{"$f":"IF(OR($A949=\"English\",$A949=\"Ελληνικά\"),\"Residence\",\"\")","v":""},null,null,null,null,null,null,{"$f":"IF(OR($A949=\"English\",$A949=\"Ελληνικά\"),\"Yes\",\"\")","v":""},null,null,null,null,null,null,null,null,null,null,null,null,null,{"$f":"IF(OR($A949=\"English\",$A949=\"Ελληνικά\"),\"Yes\",\"\")","v":""},{"$f":"IF(OR($A949=\"English\",$A949=\"Ελληνικά\"),\"Primary\",\"\")","v":""},null,{"$f":"IF(OR($A949=\"English\",$A949=\"Ελληνικά\"),\"Yes\",\"\")","v":""},"",null,"",null,null,null,null,null,null,null,null,null,null,"",{"$f":"IF(OR($A949=\"English\",$A949=\"Ελληνικά\"),\"INDIVIDUAL WITHOUT RETURN SUBMISSION OBLIGATION\",\"\")","v":""}]
[null,"",null,"","",null,"",null,null,null,{"$f":"IF(OR($A950=\"English\",$A950=\"Ελληνικά\"),\"Yes\",\"\")","v":""},null,null,{"$f":"IF($T950=\"Male\", \"Mr\", IF($T950=\"Female\", \"Mrs\", \"\"))","v":""},null,null,null,null,null,null,null,null,null,null,null,null,null,null,"",null,null,null,null,null,null,"",null,null,null,null,null,null,null,null,null,null,null,null,null,"","",null,"",{"$f":"IF(OR($A950=\"English\",$A950=\"Ελληνικά\"),\"Social Insurance\",\"\")","v":""},null,{"$f":"IF(OR($A950=\"English\",$A950=\"Ελληνικά\"),\"Cyprus\",\"\")","v":""},null,null,null,null,null,null,null,null,null,null,{"$f":"IF(OR($A950=\"English\",$A950=\"Ελληνικά\"),\"Applicant / Taxpayer\",\"\")","v":""},""]
[null,"",null,"","",null,"",null,null,null,"",null,null,"",null,null,null,null,null,null,null,null,null,null,null,null,null,null,"",null,null,null,null,null,null,"",null,null,null,null,null,null,null,null,null,null,null,null,null,"","",null,"","",null,"",null,null,null,null,null,null,null,null,null,null,"",""]
[null,"",null,"","",null,"",null,null,null,"",null,null,"",null,null,null,null,null,null,null,null,null,null,null,null,null,null,"",null,null,null,null,null,null,"",null,null,null,null,null,null,null,null,null,null,null,null,null,"","",null,"","",null,"",null,null,null,null,null,null,null,null,null,null,"",""]
[null,"",null,"","",null,"",null,null,null,"",null,null,"",null,null,null,null,null,null,null,null,null,null,null,null,null,null,"",null,null,null,null,null,null,"",null,null,null,null,null,null,null,null,null,null,null,null,null,"","",null,"","",null,"",null,null,null,null,null,null,null,null,null,null,"",""]
[null,"",null,"","",null,"",null,null,null,"",null,null,"",null,null,null,null,null,null,null,null,null,null,null,null,null,null,"",null,null,null,null,null,null,"",null,null,null,null,null,null,null,null,null,null,null,null,null,"","",null,"","",null,"",null,null,null,null,null,null,null,null,null,null,"",""]
[null,"",null,"","",null,"",null,null,null,"",null,null,"",null,null,null,null,null,null,null,null,null,null,null,null,null,null,"",null,null,null,null,null,null,"",null,null,null,null,null,null,null,null,null,null,null,null,null,"","",null,"","",null,"",null,null,null,null,null,null,null,null,null,null,"",""]
[null,"",null,"","",null,"",null,null,null,"",null,null,"",null,null,null,null,null,null,null,null,null,null,null,null,null,null,"",null,null,null,null,null,null,"",null,null,null,null,null,null,null,null,null,null,null,null,null,"","",null,"","",null,"",null,null,null,null,null,null,null,null,null,null,"",""]
[null,"",null,"","",null,"",null,null,null,"",null,null,"",null,null,null,null,null,null,null,null,null,null,null,null,null,null,"",null,null,null,null,null,null,"",null,null,null,null,null,null,null,null,null,null,null,null,null,"","",null,"","",null,"",null,null,null,null,null,null,null,null,null,null,"",""]
[null,"",null,"","",null,"",null,null,null,"",null,null,"",null,null,null,null,null,null,null,null,null,null,null,null,null,null,"",null,null,null,null,null,null,"",null,null,null,null,null,null,null,null,null,null,null,null,null,"","",null,"","",null,"",null,null,null,null,null,null,null,null,null,null,"",""]
[null,"",null,"","",null,"",null,null,null,"",null,null,"",null,null,null,null,null,null,null,null,null,null,null,null,null,null,"",null,null,null,null,null,null,"",null,null,null,null,null,null,null,null,null,null,null,null,null,"","",null,"","",null,"",null,null,null,null,null,null,null,null,null,null,"",""]
[null,"",null,"","",null,"",null,null,null,"",null,null,"",null,null,null,null,null,null,null,null,null,null,null,null,null,null,"",null,null,null,null,null,null,"",null,null,null,null,null,null,null,null,null,null,null,null,null,"","",null,"","",null,"",null,null,null,null,null,null,null,null,null,null,"",""]
[null,"",null,"","",null,"",null,null,null,"",null,null,"",null,null,null,null,null,null,null,null,null,null,null,null,null,null,"",null,null,null,null,null,null,"",null,null,null,null,null,null,null,null,null,null,null,null,null,"","",null,"","",null,"",null,null,null,null,null,null,null,null,null,null,"",""]
[null,"",null,"","",null,"",null,null,null,"",null,null,"",null,null,null,null,null,null,null,null,null,null,null,null,null,null,"",null,null,null,null,null,null,"",null,null,null,null,null,null,null,null,null,null,null,null,null,"","",null,"","",null,"",null,null,null,null,null,null,null,null,null,null,"",""]
[null,"",null,"","",null,"",null,null,null,"",null,null,"",null,null,null,null,null,null,null,null,null,null,null,null,null,null,"",null,null,null,null,null,null,"",null,null,null,null,null,null,null,null,null,null,null,null,null,"","",null,"","",null,"",null,null,null,null,null,null,null,null,null,null,"",""]
[null,"",null,"","",null,"",null,null,null,"",null,null,"",null,null,null,null,null,null,null,null,null,null,null,null,null,null,"",null,null,null,null,null,null,"",null,null,null,null,null,null,null,null,null,null,null,null,null,"","",null,"","",null,"",null,null,null,null,null,null,null,null,null,null,"",""]
[null,"",null,"","",null,"",null,null,null,"",null,null,"",null,null,null,null,null,null,null,null,null,null,null,null,null,null,"",null,null,null,null,null,null,"",null,null,null,null,null,null,null,null,null,null,null,null,null,"","",null,"","",null,"",null,null,null,null,null,null,null,null,null,null,"",""]
[null,"",null,"","",null,"",null,null,null,"",null,null,"",null,null,null,null,null,null,null,null,null,null,null,null,null,null,"",null,null,null,null,null,null,"",null,null,null,null,null,null,null,null,null,null,null,null,null,"","",null,"","",null,"",null,null,null,null,null,null,null,null,null,null,"",""]
[null,"",null,"","",null,"",null,null,null,"",null,null,"",null,null,null,null,null,null,null,null,null,null,null,null,null,null,"",null,null,null,null,null,null,"",null,null,null,null,null,null,null,null,null,null,null,null,null,"","",null,"","",null,"",null,null,null,null,null,null,null,null,null,null,"",""]
[null,"",null,"","",null,"",null,null,null,"",null,null,"",null,null,null,null,null,null,null,null,null,null,null,null,null,null,"",null,null,null,null,null,null,"",null,null,null,null,null,null,null,null,null,null,null,null,null,"","",null,"","",null,"",null,null,null,null,null,null,null,null,null,null,"",""]
[null,"",null,"","",null,"",null,null,null,"",null,null,"",null,null,null,null,null,null,null,null,null,null,null,null,null,null,"",null,null,null,null,null,null,"",null,null,null,null,null,null,null,null,null,null,null,null,null,"","",null,"","",null,"",null,null,null,null,null,null,null,null,null,null,"",""]
[null,"",null,"","",null,"",null,null,null,"",null,null,"",null,null,null,null,null,null,null,null,null,null,null,null,null,null,"",null,null,null,null,null,null,"",null,null,null,null,null,null,null,null,null,null,null,null,null,"","",null,"","",null,"",null,null,null,null,null,null,null,null,null,null,"",""]
[null,"",null,"","",null,"",null,null,null,"",null,null,"",null,null,null,null,null,null,null,null,null,null,null,null,null,null,"",null,null,null,null,null,null,"",null,null,null,null,null,null,null,null,null,null,null,null,null,"","",null,"","",null,"",null,null,null,null,null,null,null,null,null,null,"",""]
[null,"",null,"","",null,"",null,null,null,"",null,null,"",null,null,null,null,null,null,null,null,null,null,null,null,null,null,"",null,null,null,null,null,null,"",null,null,null,null,null,null,null,null,null,null,null,null,null,"","",null,"","",null,"",null,null,null,null,null,null,null,null,null,null,"",""]
[null,"",null,"","",null,"",null,null,null,"",null,null,"",null,null,null,null,null,null,null,null,null,null,null,null,null,null,"",null,null,null,null,null,null,"",null,null,null,null,null,null,null,null,null,null,null,null,null,"","",null,"","",null,"",null,null,null,null,null,null,null,null,null,null,"",""]
[null,"",null,"","",null,"",null,null,null,"",null,null,"",null,null,null,null,null,null,null,null,null,null,null,null,null,null,"",null,null,null,null,null,null,"",null,null,null,null,null,null,null,null,null,null,null,null,null,"","",null,"","",null,"",null,null,null,null,null,null,null,null,null,null,"",""]
[null,"",null,"","",null,"",null,null,null,"",null,null,"",null,null,null,null,null,null,null,null,null,null,null,null,null,null,"",null,null,null,null,null,null,"",null,null,null,null,null,null,null,null,null,null,null,null,null,"","",null,"","",null,"",null,null,null,null,null,null,null,null,null,null,"",""]
[null,"",null,"","",null,"",null,null,null,"",null,null,"",null,null,null,null,null,null,null,null,null,null,null,null,null,null,"",null,null,null,null,null,null,"",null,null,null,null,null,null,null,null,null,null,null,null,null,"","",null,"","",null,"",null,null,null,null,null,null,null,null,null,null,"",""]
[null,"",null,"","",null,"",null,null,null,"",null,null,"",null,null,null,null,null,null,null,null,null,null,null,null,null,null,"",null,null,null,null,null,null,"",null,null,null,null,null,null,null,null,null,null,null,null,null,"","",null,"","",null,"",null,null,null,null,null,null,null,null,null,null,"",""]
[null,"",null,"","",null,"",null,null,null,"",null,null,"",null,null,null,null,null,null,null,null,null,null,null,null,null,null,"",null,null,null,null,null,null,"",null,null,null,null,null,null,null,null,null,null,null,null,null,"","",null,"","",null,"",null,null,null,null,null,null,null,null,null,null,"",""]
[null,"",null,"","",null,"",null,null,null,"",null,null,"",null,null,null,null,null,null,null,null,null,null,null,null,null,null,"",null,null,null,null,null,null,"",null,null,null,null,null,null,null,null,null,null,null,null,null,"","",null,"","",null,"",null,null,null,null,null,null,null,null,null,null,"",""]
[null,"",null,"","",null,"",null,null,null,"",null,null,"",null,null,null,null,null,null,null,null,null,null,null,null,null,null,"",null,null,null,null,null,null,"",null,null,null,null,null,null,null,null,null,null,null,null,null,"","",null,"","",null,"",null,null,null,null,null,null,null,null,null,null,"",""]
[null,"",null,"","",null,"",null,null,null,"",null,null,"",null,null,null,null,null,null,null,null,null,null,null,null,null,null,"",null,null,null,null,null,null,"",null,null,null,null,null,null,null,null,null,null,null,null,null,"","",null,"","",null,"",null,null,null,null,null,null,null,null,null,null,"",""]
[null,"",null,"","",null,"",null,null,null,"",null,null,"",null,null,null,null,null,null,null,null,null,null,null,null,null,null,"",null,null,null,null,null,null,"",null,null,null,null,null,null,null,null,null,null,null,null,null,"","",null,"","",null,"",null,null,null,null,null,null,null,null,null,null,"",""]
[null,"",null,"","",null,"",null,null,null,"",null,null,"",null,null,null,null,null,null,null,null,null,null,null,null,null,null,"",null,null,null,null,null,null,"",null,null,null,null,null,null,null,null,null,null,null,null,null,"","",null,"","",null,"",null,null,null,null,null,null,null,null,null,null,"",""]
[null,"",null,"","",null,"",null,null,null,"",null,null,"",null,null,null,null,null,null,null,null,null,null,null,null,null,null,"",null,null,null,null,null,null,"",null,null,null,null,null,null,null,null,null,null,null,null,null,"","",null,"","",null,"",null,null,null,null,null,null,null,null,null,null,"",""]
[null,"",null,"","",null,"",null,null,null,"",null,null,"",null,null,null,null,null,null,null,null,null,null,null,null,null,null,"",null,null,null,null,null,null,"",null,null,null,null,null,null,null,null,null,null,null,null,null,"","",null,"","",null,"",null,null,null,null,null,null,null,null,null,null,"",""]
[null,"",null,"","",null,"",null,null,null,"",null,null,"",null,null,null,null,null,null,null,null,null,null,null,null,null,null,"",null,null,null,null,null,null,"",null,null,null,null,null,null,null,null,null,null,null,null,null,"","",null,"","",null,"",null,null,null,null,null,null,null,null,null,null,"",""]
[null,"",null,"","",null,"",null,null,null,"",null,null,"",null,null,null,null,null,null,null,null,null,null,null,null,null,null,"",null,null,null,null,null,null,"",null,null,null,null,null,null,null,null,null,null,null,null,null,"","",null,"","",null,"",null,null,null,null,null,null,null,null,null,null,"",""]

{"sheet":"Profession","index":1,"n_rows":436,"n_cols":1,"rows_kept":436,"cut":false,"hidden":true,"merged":[]}
["No Profession"]
["Accountants"]
["Accounting and Bookkeeping Clerks"]
["Accounting Associate Professionals"]
["Actors"]
["Administrative and Executive Secretaries"]
["Advertising and Marketing Professionals"]
["Advertising and Public Relations Managers"]
["Aged Care Services Managers"]
["Agricultural and Forestry Production Managers"]
["Agricultural and Industrial Machinery Mechanics and Repairers"]
["Agricultural Technicians"]
["Air Conditioning and Refrigeration Mechanics"]
["Air Traffic Controllers"]
["Air Traffic Safety Electronics Technicians"]
["Aircraft Engine Mechanics and Repairers"]
["Aircraft Pilots and Related Associate Professionals"]
["Ambulance Workers"]
["Animal Producers Not Elsewhere Classified"]
["Announcers on Radio, Television and Other Media"]
["Apiarists and Sericulturists"]
["Applications Programmers"]
["Aquaculture and Fisheries Production Managers"]
["Aquaculture Workers"]
["Archivists and Curators"]
["Armed Forces Occupations, Other Ranks"]
["Assemblers Not Elsewhere Classified"]
["Astrologers, Fortune-tellers and Related Workers"]
["Athletes and Sports Players"]
["Audiologists and Speech Therapists"]
["Authors and Related Writers"]
["Bakers, Pastry-cooks and Confectionery Makers"]
["Bank Tellers and Related Clerks"]
["Bartenders"]
["Beauticians and Related Workers"]
["Bicycle and Related Repairers"]
["Biologists, Botanists, Zoologists and Related Professionals"]
["Blacksmiths, Hammersmiths and Forging Press Workers"]
["Bleaching, Dyeing and Fabric Cleaning Machine Operators"]
["Bookmakers, Croupiers and Related Gaming Workers"]
["Bricklayers and Related Workers "]
["Broadcasting and Audiovisual Technicians"]
["Building and Related Electricians"]
["Building Architects"]
["Building Caretakers"]
["Building Construction Labourers"]
["Building Frame and Related Trades Workers Not Elsewhere Classified"]
["Building Structure Cleaners"]
["Bus and Tram Drivers"]
["Business Services Agents Not Elsewhere Classified"]
["Business Services and Administration Managers Not Elsewhere Classified"]
["Butchers, Fishmongers and Related Food Preparers"]
["Buyers"]
["Cabinet-makers and Related Workers"]
["Car, Taxi and Van Drivers"]
["Carpenters and Joiners"]
["Cartographers and Surveyors"]
["Cashiers and Ticket Clerks"]
["Cement, Stone and Other Mineral Products Machine Operators"]
["Chefs"]
["Chemical and Physical Science Technicians"]
["Chemical Engineering Technicians"]
["Chemical Engineers"]
["Chemical Processing Plant Controllers"]
["Chemical Products Plant and Machine Operators"]
["Chemists"]
["Child Care Services Managers"]
["Child Care Workers"]
["Civil Engineering Labourers"]
["Civil Engineering Technicians"]
["Civil Engineers"]
["Cleaners and Helpers in Offices, Hotels and Other Establishments"]
["Cleaning and Housekeeping Supervisors in Offices, Hotels and Other Establishments"]
["Clearing and Forwarding Agents"]
["Clerical Support Workers Not Elsewhere Classified"]
["Client Information Workers Not Elsewhere Classified"]
["Coding, Proofreading and Related Clerks"]
["Commercial Sales Representatives"]
["Commissioned Armed Forces Officers "]
["Community Health Workers"]
["Companions and Valets"]
["Computer Network and Systems Technicians"]
["Computer Network Professionals"]
["Concrete Placers, Concrete Finishers and Related Workers"]
["Conference and Event Planners"]
["Construction Managers"]
["Construction Supervisors"]
["Contact Centre Information Clerks"]
["Contact Centre Salespersons"]
["Cooks"]
["Craft and Related Workers Not Elsewhere Classified"]
["Crane, Hoist and Related Plant Operators"]
["Creative and Performing Artists Not Elsewhere Classified"]
["Credit and Loans Officers"]
["Crop Farm Labourers"]
["Customs and Border Inspectors"]
["Dairy Products Makers"]
["Dancers and Choreographers"]
["Data Entry Clerks"]
["Database and Network Professionals Not Elsewhere Classified"]
["Database Designers and Administrators"]
["Debt Collectors and Related Workers"]
["Deep-sea Fishery Workers"]
["Dental Assistants and Therapists"]
["Dentists"]
["Dieticians and Nutritionists"]
["Dispensing Opticians "]
["Domestic Cleaners and Helpers"]
["Domestic Housekeepers"]
["Door-to-door Salespersons"]
["Draughtspersons"]
["Drivers of Animal-drawn Vehicles and Machinery"]
["Driving Instructors"]
["Early Childhood Educators"]
["Earthmoving and Related Plant Operators"]
["Economists"]
["Education Managers"]
["Education Methods specialists"]
["Electrical and Electronic Equipment Assemblers"]
["Electrical Engineering Technicians"]
["Electrical Engineers"]
["Electrical Line Installers and Repairers "]
["Electrical Mechanics and Fitters"]
["Electronics Engineering Technicians"]
["Electronics Engineers"]
["Electronics Mechanics and Servicers"]
["Elementary Workers Not Elsewhere Classified"]
["Employment Agents and Contractors"]
["Engineering Professionals Not Elsewhere Classified"]
["Environmental and Occupational Health and Hygiene Professionals"]
["Environmental and Occupational Health Inspectors and Associates"]
["Environmental Engineers"]
["Environmental Protection Professionals"]
["Farming, Forestry and Fisheries Advisers"]
["Fashion and Other Models"]
["Fast Food Preparers"]
["Fibre Preparing, Spinning and Winding Machine Operators"]
["Field Crop and Vegetable Growers"]
["Filing and Copying Clerks"]
["Film, Stage and Related Directors and Producers"]
["Finance Managers"]
["Financial Analysts"]
["Financial and Insurance Services Branch Managers"]
["Financial and Investment Advisers"]
["Firefighters"]
["Fishery and Aquaculture Labourers"]
["Fitness and Recreation Instructors and Programme Leaders"]
["Floor Layers and Tile Setters"]
["Food and Beverage Tasters and Graders"]
["Food and Related Products Machine Operators"]
["Food Service Counter Attendants"]
["Forestry and Related Workers"]
["Forestry Labourers"]
["Forestry Technicians"]
["Freight Handlers"]
["Fruit, Vegetable and Related Preservers"]
["Fumigators and Other Pest and Weed Controllers"]
["Fur and Leather Preparing Machine Operators"]
["Gallery, Museum and Library Technicians"]
["Garbage and Recycling Collectors"]
["Garden and Horticultural Labourers"]
["Gardeners; Horticultural and Nursery Growers"]
["Garment and Related Patternmakers and Cutters"]
["General Office Clerks"]
["Generalist Medical Practitioners "]
["Geologists and Geophysicists"]
["Glass and Ceramics Plant Operators"]
["Glass Makers, Cutters, Grinders and Finishers"]
["Glaziers"]
["Government Licensing Officials"]
["Government Regulatory Associate Professionals Not Elsewhere Classified"]
["Government Social Benefits Officials"]
["Government Tax and Excise Officials"]
["Graphic and Multimedia Designers"]
["Hairdressers"]
["Hand and Pedal Vehicle Drivers"]
["Hand Launderers and Pressers"]
["Hand Packers"]
["Handicraft Workers in Textile, Leather and Related Materials"]
["Handicraft Workers in Wood, Basketry and Related Materials"]
["Handicraft Workers Not Elsewhere Classified"]
["Health Associate Professionals Not Elsewhere Classified"]
["Health Care Assistants"]
["Health Professionals Not Elsewhere Classified"]
["Health Services Managers"]
["Heavy Truck and Lorry Drivers"]
["Home-based Personal Care Workers"]
["Hotel Managers"]
["Hotel Receptionists"]
["House Builders"]
["Human Resource Managers"]
["Hunters and Trappers"]
["Incinerator and Water Treatment Plant Operators"]
["Industrial and Production Engineers"]
["Information and Communications Technology Installers and Servicers"]
["Information and Communications Technology Operations Technicians"]
["Information and Communications Technology Sales Professionals"]
["Information and Communications Technology Services Managers"]
["Information and Communications Technology User Support Technicians"]
["Information Technology Trainers"]
["Inland and Coastal Waters Fishery Workers"]
["Inquiry Clerks"]
["Insulation Workers"]
["Insurance Representatives"]
["Interior Designers and Decorators"]
["Jewellery and Precious Metal Workers"]
["Journalists"]
["Judges"]
["Kitchen Helpers"]
["Landscape Architects"]
["Laundry Machine Operators"]
["Lawyers"]
["Legal and Related Associate Professionals"]
["Legal Professionals Not Elsewhere Classified"]
["Legal Secretaries"]
["Legislators"]
["Librarians and Related Information Professionals"]
["Library Clerks"]
["Life Science Technicians (excluding Medical) "]
["Lifting Truck Operators"]
["Livestock and Dairy Producers"]
["Livestock Farm Labourers"]
["Locomotive Engine Drivers"]
["Mail Carriers and Sorting Clerks"]
["Management and Organization Analysts"]
["Managing Directors and Chief Executives"]
["Manufacturing Labourers Not Elsewhere Classified"]
["Manufacturing Managers"]
["Manufacturing Supervisors"]
["Mathematicians, Actuaries and Statisticians"]
["Mechanical Engineering Technicians"]
["Mechanical Engineers"]
["Mechanical Machinery Assemblers"]
["Medical and Dental Prosthetic Technicians"]
["Medical and Pathology Laboratory Technicians "]
["Medical Assistants"]
["Medical Imaging and Therapeutic Equipment Technicians"]
["Medical Records and Health Information Technicians"]
["Medical Secretaries"]
["Messengers, Package Deliverers and Luggage Porters"]
["Metal Finishing, Plating and Coating Machine Operators"]
["Metal Moulders and Coremakers"]
["Metal Polishers, Wheel Grinders and Tool Sharpeners"]
["Metal Processing Plant Operators"]
["Metal Production Process Controllers"]
["Metal Working Machine Tool Setters and Operators"]
["Meteorologists"]
["Meter Readers and Vending-machine Collectors"]
["Midwifery Associate Professionals"]
["Midwifery Professionals"]
["Mineral and Stone Processing Plant Operators"]
["Miners and Quarriers"]
["Mining and Metallurgical Technicians"]
["Mining Engineers, Metallurgists and Related Professionals"]
["Mining Managers"]
["Mining Supervisors"]
["Mixed Crop and Animal Producers"]
["Mixed Crop and Livestock Farm Labourers"]
["Mixed Crop Growers"]
["Mobile Farm and Forestry Plant Operators"]
["Motor Vehicle Mechanics and Repairers"]
["Motorcycle Drivers"]
["Musical Instrument Makers and Tuners"]
["Musicians, Singers and Composers"]
["Non-commissioned Armed Forces Officers "]
["Nursing Associate Professionals"]
["Nursing Professionals"]
["Odd-job Persons"]
["Office Supervisors"]
["Optometrists and Ophthalmic Opticians"]
["Other Artistic and Cultural Associate Professionals"]
["Other Arts Teachers"]
["Other Cleaning Workers"]
["Other Language Teachers"]
["Other Music Teachers"]
["Packing, Bottling and Labelling Machine Operators"]
["Painters and Related Workers"]
["Paper Products Machine Operators"]
["Paramedical Practitioners"]
["Pawnbrokers and Money-lenders"]
["Payroll Clerks"]
["Pelt Dressers, Tanners and Fellmongers"]
["Personal Care Workers in Health Services Not Elsewhere Classified"]
["Personal Services Workers Not Elsewhere Classified"]
["Personnel and Careers Professionals"]
["Personnel Clerks"]
["Pet Groomers and Animal Care Workers"]
["Petroleum and Natural Gas Refining Plant Operators"]
["Pharmaceutical Technicians and Assistants"]
["Pharmacists"]
["Philosophers, Historians and Political Scientists"]
["Photographers"]
["Photographic Products Machine Operators"]
["Physical and Engineering Science Technicians Not Elsewhere Classified"]
["Physicists and Astronomers"]
["Physiotherapists "]
["Physiotherapy Technicians and Assistants"]
["Plasterers"]
["Plastic Products Machine Operators"]
["Plumbers and Pipe Fitters"]
["Police Inspectors and Detectives"]
["Police Officers"]
["Policy Administration Professionals"]
["Policy and Planning Managers"]
["Potters and Related Workers"]
["Poultry Producers"]
["Power Production Plant Operators"]
["Precision-instrument Makers and Repairers"]
["Pre-press Technicians"]
["Primary School Teachers"]
["Print Finishing and Binding Workers"]
["Printers "]
["Prison Guards"]
["Process Control Technicians Not Elsewhere Classified"]
["Product and Garment Designers"]
["Product Graders and Testers (excluding Foods and Beverages)"]
["Production Clerks"]
["Professional Services Managers Not Elsewhere Classified"]
["Protective Services Workers Not Elsewhere Classified"]
["Psychologists"]
["Public Relations Professionals"]
["Pulp and Papermaking Plant Operators"]
["Railway Brake, Signal and Switch Operators"]
["Real Estate Agents and Property Managers"]
["Receptionists (general)"]
["Refuse Sorters"]
["Religious Associate Professionals"]
["Religious Professionals"]
["Research and Development Managers"]
["Restaurant Managers"]
["Retail and Wholesale Trade Managers"]
["Riggers and Cable Splicers"]
["Roofers"]
["Rubber Products Machine Operators"]
["Sales and Marketing Managers"]
["Sales Demonstrators"]
["Sales Workers Not Elsewhere Classified"]
["Scribes and Related Workers"]
["Secondary Education Teachers"]
["Secretaries (general)"]
["Securities and Finance Dealers and Brokers "]
["Security Guards"]
["Senior Government Officials"]
["Senior Officials of Special-interest Organizations"]
["Service Station Attendants"]
["Services Managers Not Elsewhere Classified"]
["Sewing Machine Operators"]
["Sewing, Embroidery and Related Workers"]
["Sheet Metal Workers"]
["Shelf Fillers"]
["Ships’ Deck Crews and Related Workers"]
["Ships’ Deck Officers and Pilots"]
["Ships’ Engineers"]
["Shoemakers and Related Workers"]
["Shoemaking and Related Machine Operators"]
["Shop Sales Assistants"]
["Shop Supervisors"]
["Shopkeepers"]
["Shotfirers and Blasters"]
["Signwriters, Decorative Painters, Engravers and Etchers"]
["Social Welfare Managers"]
["Social Work and Counselling Professionals"]
["Social Work Associate Professionals"]
["Sociologists, Anthropologists and Related Professionals"]
["Software and Applications Developers and Analysts Not Elsewhere Classified"]
["Software Developers"]
["Special Needs Teachers"]
["Specialist Medical Practitioners "]
["Sports Coaches, Instructors and Officials"]
["Sports, Recreation and Cultural Centre Managers"]
["Spray Painters and Varnishers"]
["Stall and Market Salespersons"]
["Stationary Plant and Machine Operators Not Elsewhere Classified"]
["Statistical, Finance and Insurance Clerks"]
["Statistical, Mathematical and Related Associate Professionals"]
["Steam Engine and Boiler Operators"]
["Stock Clerks"]
["Stonemasons, Stone Cutters, Splitters and Carvers "]
["Street and Related Services Workers"]
["Street Food Salespersons"]
["Street Vendors (excluding Food)"]
["Structural Metal Preparers and Erectors"]
["Subsistence Crop Farmers"]
["Subsistence Fishers, Hunters, Trappers and Gatherers"]
["Subsistence Livestock Farmers"]
["Subsistence Mixed Crop and Livestock Farmers"]
["Supply, Distribution and Related Managers"]
["Survey and Market Research Interviewers"]
["Sweepers and Related Labourers"]
["Systems Administrators"]
["Systems Analysts"]
["Tailors, Dressmakers, Furriers and Hatters"]
["Teachers’ Aides"]
["Teaching Professionals Not Elsewhere Classified"]
["Technical and Medical Sales Professionals (excluding ICT)"]
["Telecommunications Engineering Technicians"]
["Telecommunications Engineers"]
["Telephone Switchboard Operators"]
["Textile, Fur and Leather Products Machine Operators Not Elsewhere Classified"]
["Tobacco Preparers and Tobacco Products Makers"]
["Toolmakers and Related Workers"]
["Town and Traffic Planners"]
["Trade Brokers"]
["Traditional and Complementary Medicine Associate Professionals"]
["Traditional and Complementary Medicine Professionals"]
["Traditional Chiefs and Heads of Villages"]
["Training and Staff Development Professionals"]
["Translators, Interpreters and Other Linguists"]
["Transport Clerks"]
["Transport Conductors"]
["Travel Attendants and Travel Stewards"]
["Travel Consultants and Clerks"]
["Travel Guides"]
["Tree and Shrub Crop Growers"]
["Typists and Word Processing Operators"]
["Undertakers and Embalmers"]
["Underwater Divers"]
["University and Higher Education Teachers"]
["Upholsterers and Related Workers"]
["Valuers and Loss Assessors"]
["Vehicle Cleaners"]
["Veterinarians"]
["Veterinary Technicians and Assistants"]
["Visual Artists"]
["Vocational Education Teachers"]
["Waiters"]
["Water and Firewood Collectors"]
["Weaving and Knitting Machine Operators"]
["Web and Multimedia Developers"]
["Web Technicians"]
["Welders and Flame Cutters"]
["Well Drillers and Borers and Related Workers"]
["Window Cleaners"]
["Wood Processing Plant Operators"]
["Wood Treaters"]
["Woodworking Machine Tool Setters and Operators"]

{"sheet":"CodeID","index":2,"n_rows":224,"n_cols":5,"rows_kept":224,"cut":false,"hidden":true,"merged":[]}
["CodeID","Code","CodeTypeID","Description","ActualValue"]
[530,600,73,"Cyprus",52]
[556,9,73,"Greece",78]
[479,660,73,"Afghanistan",1]
[480,70,73,"Albania",2]
[481,208,73,"Algeria",3]
[482,810,73,"American Ocean Territories",4]
[483,43,73,"Andorra",5]
[484,330,73,"Angola",6]
[485,446,73,"Anguilla",7]
[486,459,73,"Antigua and Barbuda",8]
[487,890,73,"Arctic Region",9]
[488,528,73,"Argentina",10]
[489,77,73,"Armenia",11]
[490,474,73,"Aruba",12]
[491,800,73,"Australia",13]
[492,802,73,"Australian Ocean Territories",14]
[493,38,73,"Austria",15]
[494,78,73,"Azerbaijan",16]
[495,453,73,"Bahamas",17]
[496,640,73,"Bahrain",18]
[497,666,73,"Bangladesh",19]
[498,469,73,"Barbados",20]
[499,73,73,"Belarus",21]
[500,2,73,"Belgium",22]
[501,421,73,"Belize",23]
[502,284,73,"Benin",24]
[503,413,73,"Bermuda",25]
[504,675,73,"Bhutan",26]
[505,257,73,"Bissau-Guinea",27]
[506,516,73,"Bolivia",28]
[507,93,73,"Bosnia Herzegovina",29]
[508,391,73,"Botswana",30]
[509,508,73,"Brazil",31]
[510,357,73,"British Indian Ocean Territory",32]
[511,703,73,"Brunei",33]
[512,68,73,"Bulgaria",34]
[513,236,73,"Burkina Faso",35]
[514,328,73,"Burundi",36]
[515,247,73,"Cabo Verde",37]
[516,696,73,"Cambodia",38]
[517,302,73,"Cameroon",39]
[518,404,73,"Canada",40]
[519,463,73,"Cayman Islands",41]
[520,306,73,"Central African Republic",42]
[521,22,73,"Ceuta and Melilla",43]
[522,244,73,"Chad",44]
[523,512,73,"Chile",45]
[524,720,73,"China",46]
[525,480,73,"Colombian Republic",47]
[526,375,73,"Comoros",48]
[527,436,73,"Costa Rica",49]
[528,92,73,"Croatia",50]
[529,448,73,"Cuba",51]
[531,61,73,"Czech Republic",53]
[532,322,73,"Democratic Republic of the Congo",54]
[533,8,73,"Denmark",55]
[534,338,73,"Djibouti",56]
[535,460,73,"Dominica",57]
[536,456,73,"Dominican Republic",58]
[537,500,73,"Ecuador",59]
[538,220,73,"Egypt",60]
[539,428,73,"El Salvador",61]
[540,310,73,"Equatorial Guinea",62]
[541,53,73,"Estonia",63]
[542,334,73,"Ethiopia",64]
[543,529,73,"Falkland Islands",65]
[544,41,73,"Faroe Islands",66]
[545,815,73,"Fiji",67]
[546,32,73,"Finland",68]
[547,1,73,"France",69]
[548,496,73,"French Guiana",70]
[549,822,73,"French Guinea",71]
[550,314,73,"Gabon",72]
[551,252,73,"Gambia",73]
[552,76,73,"Georgia",74]
[553,4,73,"Germany",75]
[554,276,73,"Ghana",76]
[555,44,73,"Gibraltar",77]
[557,406,73,"Greenland",79]
[558,473,73,"Grenada",80]
[559,458,73,"Guadeloupe",81]
[560,416,73,"Guatemala",82]
[561,260,73,"Guinea",83]
[562,488,73,"Guyana",84]
[563,452,73,"Haiti",85]
[564,424,73,"Honduras",86]
[565,740,73,"Hong Kong",87]
[566,64,73,"Hungary",88]
[567,24,73,"Iceland",89]
[568,664,73,"India",90]
[569,700,73,"Indonesia",91]
[570,616,73,"Iran",92]
[571,612,73,"Iraq",93]
[572,7,73,"Ireland",94]
[573,624,73,"Israel",95]
[574,5,73,"Italy",96]
[575,272,73,"Ivory Coast",97]
[576,464,73,"Jamaica",98]
[577,732,73,"Japan",99]
[578,628,73,"Jordan",100]
[579,79,73,"Kazakhstan",101]
[580,346,73,"Kenya",102]
[581,812,73,"Kiribati",103]
[582,636,73,"Kuwait",104]
[583,83,73,"Kyrgyzstan",105]
[584,684,73,"Laos",106]
[585,54,73,"Latvia",107]
[586,604,73,"Lebanon",108]
[587,395,73,"Lesotho",109]
[588,268,73,"Liberia",110]
[589,216,73,"Libya",111]
[590,55,73,"Lithuania",112]
[591,12,73,"Luxembourg",113]
[592,743,73,"Macau",114]
[593,377,73,"Mahora",115]
[594,370,73,"Malaga",116]
[595,386,73,"Malawi",117]
[596,701,73,"Malaysia",118]
[597,667,73,"Maldives",119]
[598,232,73,"Mali",120]
[599,46,73,"Malta",121]
[600,824,73,"Marshall Islands",122]
[601,462,73,"Martinique",123]
[602,228,73,"Mauritania",124]
[603,373,73,"Mauritius",125]
[604,412,73,"Mexico",126]
[605,823,73,"Micronesia",127]
[606,74,73,"Moldova",128]
[607,716,73,"Mongolia",129]
[608,204,73,"Morocco",130]
[609,366,73,"Mozambique",131]
[610,676,73,"Myanmar",132]
[611,389,73,"Namibia",133]
[612,803,73,"Nauru",134]
[613,672,73,"Nepal",135]
[614,3,73,"Netherlands",136]
[615,478,73,"Netherlands Antilles",137]
[616,809,73,"New Caledonia",138]
[617,804,73,"New Zealand",139]
[618,814,73,"New Zealand Ocean Territories",140]
[619,432,73,"Nicaragua",141]
[620,240,73,"Niger",142]
[621,288,73,"Nigeria",143]
[622,724,73,"North Korea",144]
[623,96,73,"North Macedonia",145]
[624,28,73,"Norway",146]
[625,998,73,"Not Defined",147]
[626,649,73,"Oman",148]
[627,999,73,"Other",149]
[628,662,73,"Pakistan",150]
[629,901,73,"Palestine",151]
[630,442,73,"Panama",152]
[631,801,73,"Papua New Guinea",153]
[632,520,73,"Paraguay",154]
[633,504,73,"Peru",155]
[634,708,73,"Philippines",156]
[635,813,73,"Pitcairn Islands",157]
[636,60,73,"Poland",158]
[637,10,73,"Portugal",159]
[638,644,73,"Qatar",160]
[639,318,73,"Republic of the Congo",161]
[640,372,73,"Reunion",162]
[641,66,73,"Romania",163]
[642,75,73,"Russia",164]
[643,324,73,"Rwanda",165]
[644,449,73,"Saint Kitts and Nevis",166]
[645,408,73,"Saint Pierre and Miquelon",167]
[646,819,73,"Samoa",168]
[647,47,73,"San Marino",169]
[648,311,73,"Sao Tome and Principe",170]
[649,632,73,"Saudi Arabia",171]
[650,248,73,"Senegal",172]
[651,94,73,"Serbia",173]
[652,355,73,"Seychelles",174]
[653,264,73,"Sierra Leone",175]
[654,706,73,"Singapore",176]
[655,63,73,"Slovakia",177]
[656,91,73,"Slovenia",178]
[657,806,73,"Solomon Islands",179]
[658,342,73,"Somalia",180]
[659,388,73,"South Africa",181]
[660,728,73,"South Korea",182]
[661,11,73,"Spain",183]
[662,669,73,"Sri Lanka",184]
[663,329,73,"St Helen's",185]
[664,465,73,"St Lucia",186]
[665,467,73,"St Vincent's and Grenadine",187]
[666,224,73,"Sudan",188]
[667,492,73,"Suriname",189]
[668,393,73,"Swaziland",190]
[669,30,73,"Sweden",191]
[670,39,73,"Switzerland",192]
[671,608,73,"Syria",193]
[672,736,73,"Taiwan",194]
[673,82,73,"Tajikistan",195]
[674,352,73,"Tanzania",196]
[675,680,73,"Thailand",197]
[676,280,73,"Togo",198]
[677,817,73,"Tonga",199]
[678,472,73,"Trinidad and Tobago",200]
[679,212,73,"Tunisia",201]
[680,52,73,"Turkey",202]
[681,80,73,"Turkmenistan",203]
[682,454,73,"Turks and Caicos Islands",204]
[683,807,73,"Tuvalu",205]
[684,350,73,"Uganda",206]
[685,461,73,"UK Virgin Islands",207]
[686,72,73,"Ukraine",208]
[687,647,73,"United Arab Emirates",209]
[688,6,73,"United Kingdom",210]
[689,400,73,"United States of America",211]
[690,524,73,"Uruguay",212]
[691,457,73,"US Virgin Islands",213]
[692,81,73,"Uzbekistan",214]
[693,816,73,"Vanuatu",215]
[694,45,73,"Vatican City",216]
[695,484,73,"Venezuela",217]
[696,690,73,"Viet Nam",218]
[697,811,73,"Wallis and Futuna",219]
[698,451,73,"West Indies",220]
[699,653,73,"Yemen",221]
[700,378,73,"Zambia",222]
[701,382,73,"Zimbabwe",223]

{"sheet":"CODE","index":3,"n_rows":253,"n_cols":2,"rows_kept":253,"cut":false,"hidden":true,"merged":[]}
["Description","CODE"]
["Cyprus","CY"]
["Greece","GR"]
["Afghanistan","AF"]
["Åland Islands","AX"]
["Albania","AL"]
["Algeria","DZ"]
["American Samoa","AS"]
["Andorra","AD"]
["Angola","AO"]
["Anguilla","AI"]
["Antarctica","AQ"]
["Antigua and Barbuda","AG"]
["Argentina","AR"]
["Armenia","AM"]
["Aruba","AW"]
["Australia","AU"]
["Austria","AT"]
["Azerbaijan","AZ"]
["Bahamas","BS"]
["Bahrain","BH"]
["Bangladesh","BD"]
["Barbados","BB"]
["Belarus","BY"]
["Belgium","BE"]
["Belize","BZ"]
["Benin","BJ"]
["Bermuda","BM"]
["Bhutan","BT"]
["Bolivia","BO"]
["Bonaire,  Sint Eustatius and Saba","BQ"]
["Bosnia and Herzegovina","BA"]
["Botswana","BW"]
["Bouvet Island","BV"]
["Brazil","BR"]
["British Indian Ocean Territory","IO"]
["Brunei","BN"]
["Bulgaria","BG"]
["Burkina Faso","BF"]
["Burundi","BI"]
["Cambodia","KH"]
["Cameroon","CM"]
["Canada","CA"]
["Cape Verde","CV"]
["Cayman Islands","KY"]
["Central African Republic","CF"]
["Chad","TD"]
["Chile","CL"]
["China - Peoples Republic of","CN"]
["Christmas Island","CX"]
["Cocos (Keeling) Islands","CC"]
["Colombia","CO"]
["Comoros","KM"]
["Cook Islands","CK"]
["Costa Rica","CR"]
["Cote d'Ivoire","CI"]
["Croatia","HR"]
["Cuba","CU"]
["Curaçao","CW"]
["Czechia","CZ"]
["Democratic Peoples Republic of Korea","KP"]
["Democratic Republic of the Congo","CD"]
["Denmark","DK"]
["Djibouti","DJ"]
["Dominica","DM"]
["Dominican Republic","DO"]
["Ecuador","EC"]
["Egypt","EG"]
["El Salvador","SV"]
["Equatorial Guinea","GQ"]
["Eritrea","ER"]
["Estonia","EE"]
["Eswatini/Swaziland","SZ"]
["Ethiopia","ET"]
["Faroe Islands","FO"]
["Falkland Islands","FK"]
["Federated States of Micronesia","FM"]
["Fiji","FJ"]
["Finland","FI"]
["France","FR"]
["French Guiana","GF"]
["French Polynesia","PF"]
["French Southern Territories","TF"]
["Gabon","GA"]
["Gambia","GM"]
["Georgia","GE"]
["Germany","DE"]
["Ghana","GH"]
["Gibraltar","GI"]
["Greenland","GL"]
["Grenada","GD"]
["Guadeloupe","GP"]
["Guam","GU"]
["Guatemala","GT"]
["Guernsey","GG"]
["Guinea","GN"]
["Guinea-Bissau","GW"]
["Guyana","GY"]
["Haiti","HT"]
["Heard Island and McDonald Islands","HM"]
["High Seas","HS"]
["Honduras","HN"]
["Hong Kong (Special Administrative Region)","HK"]
["Hungary","HU"]
["Iceland","IS"]
["India","IN"]
["Indonesia","ID"]
["Iran","IR"]
["Iraq","IQ"]
["Ireland","IE"]
["Isle of Man","IM"]
["Israel","IL"]
["Italy","IT"]
["Jamaica","JM"]
["Japan","JP"]
["Jersey","JE"]
["Jordan","JO"]
["Kazakhstan","KZ"]
["Kenya","KE"]
["Kiribati","KI"]
["Kosovo","XK"]
["Kuwait","KW"]
["Kyrgyzstan","KG"]
["Laos","LA"]
["Latvia","LV"]
["Lebanon","LB"]
["Lesotho","LS"]
["Liberia","LR"]
["Libya","LY"]
["Liechtenstein","LI"]
["Lithuania","LT"]
["Luxembourg","LU"]
["Macau (Special Administrative Region)","MO"]
["Madagascar","MG"]
["Malawi","MW"]
["Malaysia","MY"]
["Maldives","MV"]
["Mali","ML"]
["Malta","MT"]
["Marshall Islands","MH"]
["Martinique","MQ"]
["Mauritania","MR"]
["Mauritius","MU"]
["Mayotte","YT"]
["Mexico","MX"]
["Moldova","MD"]
["Monaco","MC"]
["Mongolia","MN"]
["Montenegro","ME"]
["Montserrat","MS"]
["Morocco","MA"]
["Mozambique","MZ"]
["Myanmar","MM"]
["Namibia","NA"]
["Nauru","NR"]
["Nepal","NP"]
["Netherlands","NL"]
["Netherlands Antilles","AN"]
["New Caledonia","NC"]
["New Zealand","NZ"]
["Nicaragua","NI"]
["Niger","NE"]
["Nigeria","NG"]
["Niue","NU"]
["Norfolk Island","NF"]
["North Macedonia","MK"]
["Northern Mariana Islands","MP"]
["Norway","NO"]
["Oman","OM"]
["Pakistan","PK"]
["Palau","PW"]
["Palestine","PS"]
["Panama","PA"]
["Papua New Guinea","PG"]
["Paraguay","PY"]
["Peru","PE"]
["Philippines","PH"]
["Pitcairn","PN"]
["Poland","PL"]
["Portugal","PT"]
["Puerto Rico","PR"]
["Qatar","QA"]
["Republic of Korea","KR"]
["Republic of the Congo","CG"]
["Reunion","RE"]
["Romania","RO"]
["Russia","RU"]
["Rwanda","RW"]
["Saint Barthélemy","BL"]
["Saint Martin (French part)","MF"]
["Samoa","WS"]
["San Marino","SM"]
["Sao Tome and Principe","ST"]
["Saudi Arabia","SA"]
["Senegal","SN"]
["Serbia","RS"]
["Seychelles","SC"]
["Sierra Leone","SL"]
["Singapore","SG"]
["Sint Maarten (Dutch part)","SX"]
["Slovak Republic","SK"]
["Slovenia","SI"]
["Solomon Islands","SB"]
["Somalia","SO"]
["South Africa","ZA"]
["South Georgia and the South Sandwich Islands","GS"]
["South Sudan","SS"]
["Spain","ES"]
["Sri Lanka","LK"]
["St Helena","SH"]
["St Kitts and Nevis","KN"]
["St Lucia","LC"]
["St Pierre and Miquelon","PM"]
["St Vincent and the Grenadines","VC"]
["Sudan","SD"]
["Suriname","SR"]
["Svalbard and Jan Mayen","SJ"]
["Sweden","SE"]
["Switzerland","CH"]
["Syria","SY"]
["Taiwan","TW"]
["Tajikistan","TJ"]
["Tanzania","TZ"]
["Thailand","TH"]
["Timor-Leste","TL"]
["Togo","TG"]
["Tokelau","TK"]
["Tonga","TO"]
["Trinidad and Tobago","TT"]
["Tunisia","TN"]
["Turkey","TR"]
["Turkmenistan","TM"]
["Turks and Caicos Islands","TC"]
["Tuvalu","TV"]
["Uganda","UG"]
["Ukraine","UA"]
["United Arab Emirates","AE"]
["United Kingdom","GB"]
["United States Minor Outlying Islands","UM"]
["United States of America","US"]
["Uruguay","UY"]
["Uzbekistan","UZ"]
["Vanuatu","VU"]
["Vatican City State","VA"]
["Venezuela","VE"]
["Viet Nam","VN"]
["Virgin Islands - British","VG"]
["Virgin Islands - United States","VI"]
["Wallis and Futuna","WF"]
["Western Sahara","EH"]
["Yemen","YE"]
["Zambia","ZM"]
["Zimbabwe","ZW"]